Workbook

Sheet 第2編表紙
A2: 第２編 人 口
B16: 人口及び世帯年齢構成ピラミッド
K18: 年少人口
K22: 生産年齢人口
K34: 老齢人口

Sheet 人口の推移
A1: １．住民基本台帳人口
A3: １) 人口の推移（年次別）
D4: （各年9月末現在）
A5: 年 次 | B5: 世 帯 数 | C5: 人 口 | F5: 人口密度 | G5: 備 考
C6: 総数 | D6: 男 | E6: 女 | F6: (1k㎡当たり)
A7: 明治30年 | B7: 143 | C7: 572 | D7: 294 | E7: 278 | F7: 1.9 | G7: 戸町役場開設
A8: 44 | B8: 940 | C8: 5584 | D8: 2812 | E8: 2772 | F8: 18.9
A9: 昭和20年 | B9: 1925 | C9: 11235 | D9: 5443 | E9: 5792 | F9: 38.2
A10: 26 | B10: 2378 | C10: 13496 | D10: 6811 | E10: 6685 | F10: 45.9 | G10: 町制施行
A11: 27 | B11: 2767 | C11: =SUM(D11:E11) -> 14233 | D11: 7057 | E11: 7176 | F11: =C11/294.87 -> 48.26872859
A12: 28 | B12: 3221 | C12: =SUM(D12:E12) -> 16109 | D12: 7959 | E12: 8150 | F12: =C12/294.87 -> 54.63085427
A13: 29 | B13: 3619 | C13: 18175 | D13: 9010 | E13: 9165 | F13: 61.63733171
A14: 30 | B14: 4098 | C14: 19576 | D14: 9691 | E14: 9885 | F14: 66.38857802
A15: 31 | B15: 4535 | C15: 20972 | D15: 10424 | E15: 10548 | F15: 71.1228677
A16: 32 | B16: 4928 | C16: 22107 | D16: 11024 | E16: 11083 | F16: 74.97202157
A17: 33 | B17: 10016 | C17: 27966 | D17: 16431 | E17: 11535 | F17: 94.84179469
A18: 34 | B18: 10689 | C18: 28323 | D18: 16840 | E18: 11483 | F18: 96.05249771
A19: 35 | B19: 11175 | C19: 29614 | D19: 17564 | E19: 12050 | F19: 100.4306983
A20: 36 | B20: 10614 | C20: 28798 | D20: 16930 | E20: 11868 | F20: 97.66337708
A21: 37 | B21: 10082 | C21: 28346 | D21: 16439 | E21: 11907 | F21: 96.13049819
A22: 38 | B22: 9837 | C22: 29190 | D22: 16560 | E22: 12630 | F22: 98.99277648
A23: 39 | B23: 10265 | C23: 30327 | D23: 17058 | E23: 13269 | F23: 102.848713
A24: 40 | B24: 10051 | C24: 31085 | D24: 17111 | E24: 13974 | F24: 105.5
A25: 41 | B25: 10065 | C25: =SUM(D25:E25) -> 31621 | D25: 17190 | E25: 14431 | F25: =C25/294.87 -> 107.2370875
A26: 42 | B26: 10100 | C26: =SUM(D26:E26) -> 32369 | D26: 17383 | E26: 14986 | F26: =C26/294.87 -> 109.7737986
A27: 43 | B27: 17563 | C27: =SUM(D27:E27) -> 32965 | D27: 17563 | E27: 15402 | F27: =C27/294.87 -> 111.7950283
A28: 44 | B28: 10428 | C28: =SUM(D28:E28) -> 33566 | D28: 17793 | E28: 15773 | F28: =C28/294.87 -> 113.8332146
A29: 45 | B29: 10756 | C29: 34619 | D29: 18200 | E29: 16419 | F29: 117.5
A30: 46 | B30: 11237 | C30: 35668 | D30: 18775 | E30: 16893 | F30: 121 | G30: 市制施行
A31: 47 | B31: 11592 | C31: =SUM(D31:E31) -> 36645 | D31: 19191 | E31: 17454 | F31: =C31/294.87 -> 124.2751043
A32: 48 | B32: 11941 | C32: =SUM(D32:E32) -> 37798 | D32: 19753 | E32: 18045 | F32: =C32/294.87 -> 128.185302
A33: 49 | B33: 12366 | C33: =SUM(D33:E33) -> 38876 | D33: 20310 | E33: 18566 | F33: =C33/294.87 -> 131.8411503
A34: 50 | B34: 12829 | C34: 39805 | D34: 20822 | E34: 18983 | F34: 135.1
A35: 51 | B35: 13146 | C35: =SUM(D35:E35) -> 40664 | D35: 21179 | E35: 19485 | F35: =C35/294.87 -> 137.9048394
A36: 52 | B36: 13447 | C36: =SUM(D36:E36) -> 41694 | D36: 21649 | E36: 20045 | F36: =C36/294.87 -> 141.3979042
A37: 53 | B37: 13679 | C37: =SUM(D37:E37) -> 42169 | D37: 21834 | E37: 20335 | F37: =C37/294.87 -> 143.0087835
A38: 54 | B38: 14048 | C38: =SUM(D38:E38) -> 42922 | D38: 22215 | E38: 20707 | F38: =C38/294.87 -> 145.5624512
A39: 55 | B39: 14343 | C39: 43465 | D39: 22481 | E39: 20984 | F39: 157.5
A40: 56 | B40: 14722 | C40: =SUM(D40:E40) -> 44256 | D40: 22860 | E40: 21396 | F40: =C40/294.87 -> 150.0864788
A41: 57 | B41: 15150 | C41: =SUM(D41:E41) -> 45510 | D41: 23433 | E41: 22077 | F41: =C41/294.87 -> 154.3392003
A42: 58 | B42: 15677 | C42: =SUM(D42:E42) -> 46748 | D42: 23955 | E42: 22793 | F42: =C42/294.87 -> 158.5376607
A43: 59 | B43: 16714 | C43: =SUM(D43:E43) -> 47817 | D43: 24439 | E43: 23378 | F43: =C43/294.87 -> 162.1629871
A44: 60 | B44: 16578 | C44: 48724 | D44: 24786 | E44: 23938 | F44: 165.3
A45: 61 | B45: 17144 | C45: =SUM(D45:E45) -> 49574 | D45: 25199 | E45: 24375 | F45: =C45/294.87 -> 168.1215451
A46: 62 | B46: 17757 | C46: =SUM(D46:E46) -> 50785 | D46: 25750 | E46: 25035 | F46: =C46/294.87 -> 172.2284397
A47: 63 | B47: 18423 | C47: =SUM(D47:E47) -> 52213 | D47: 26413 | E47: 25800 | F47: =C47/294.87 -> 177.0712517
A48: 平成元年 | B48: 19248 | C48: 53962 | D48: 27335 | E48: 26627 | F48: 183
A49: 2 | B49: 20145 | C49: 55813 | D49: 28262 | E49: 27551 | F49: 189.3
A50: 3 | B50: 21016 | C50: =SUM(D50:E50) -> 57443 | D50: 29016 | E50: 28427 | F50: =C50/294.87 -> 194.8078814
A51: 4 | B51: 21799 | C51: =SUM(D51:E51) -> 58978 | D51: 29775 | E51: 29203 | F51: =C51/294.87 -> 200.0135653
A52: 5 | B52: 22777 | C52: =SUM(D52:E52) -> 60484 | D52: 30750 | E52: 29734 | F52: =C52/294.87 -> 205.1209007
A53: 6 | B53: 23094 | C53: =SUM(D53:E53) -> 61356 | D53: 30988 | E53: 30368 | F53: =C53/294.87 -> 208.0781361
A54: 7 | B54: 23723 | C54: 62372 | D54: 31531 | E54: 30841 | F54: 211.5
A55: 8 | B55: 24356 | C55: 63275 | D55: 31952 | E55: 31323 | F55: 214.6
A56: 9 | B56: 24899 | C56: 64011 | D56: 32284 | E56: 31727 | F56: 217.1
A57: 10 | B57: 25356 | C57: 64485 | D57: 32462 | E57: 32023 | F57: 218.7
A58: 11 | B58: 25719 | C58: 64897 | D58: 32590 | E58: 32307 | F58: 220.1
A59: 12 | B59: 26092 | C59: 65310 | D59: 32697 | E59: 32613 | F59: 221.5
A60: 13 | B60: 26388 | C60: 65590 | D60: 32785 | E60: 32805 | F60: 222.4
A61: 14 | B61: 26893 | C61: 66172 | D61: 33055 | E61: 33117 | F61: 224.4
A62: 15 | B62: 27378 | C62: 66718 | D62: 33278 | E62: 33440 | F62: 226.3
A63: 16 | B63: 27461 | C63: 67191 | D63: 33391 | E63: 33800 | F63: 227.9
A64: 17 | B64: 28205 | C64: 67598 | D64: 33584 | E64: 34014 | F64: =C64/294.87 -> 229.2467867
A65: 18 | B65: 28725 | C65: 67942 | D65: 33688 | E65: 34254 | F65: 230.4134025
A66: 19 | B66: 29188 | C66: 68417 | D66: 33763 | E66: 34654 | F66: 232.0242819
A67: 20 | B67: 29731 | C67: 68685 | D67: 33867 | E67: 34818 | F67: 232.933157
A68: 21 | B68: 29958 | C68: 68608 | D68: 33773 | E68: 35835 | F68: 232.7
A69: 22 | B69: 30316 | C69: 68809 | D69: 33870 | E69: 34939 | F69: 233.4
A70: 23 | B70: 30575 | C70: 68938 | D70: 33833 | E70: 35105 | F70: 233.8
A71: 24 | B71: 30909 | C71: 69126 | D71: 33806 | E71: 35320 | F71: =69126/294.87 -> 234.4287313
A72: 25 | B72: 31053 | C72: 68876 | D72: 33648 | E72: 35228 | F72: 233.5809001
A73: 26 | B73: 31338 | C73: 68950 | D73: 33610 | E73: 35340 | F73: 233.8318581
A74: 27 | B74: 31688 | C74: 68974 | D74: 33589 | E74: 35385 | F74: 233.9
A75: 〈資料〉生活環境部市民課 | G75: （単位：人）
A76: 注) 調査月日…明治は不明、昭和20年は11月1日
A77: 住民基本台帳法が改正され、平成24年7月より外国人住民が適用対象となった。

Sheet 地域の人口
A1: ２）地域の人口 | AA1: (各年9月末日)
A2: 地 区 | B2: 26年 | F2: 27年 | J2: 地 区 | K2: 26年 | O2: 27年 | S2: 地 区 | T2: 26年 | X2: 27年
B3: 人 口 | E3: 世 帯 | F3: 人 口 | I3: 世 帯 | K3: 人 口 | N3: 世 帯 | O3: 人 口 | R3: 世 帯 | T3: 人 口 | W3: 世 帯 | X3: 人 口 | AA3: 世 帯
B4: 計 | C4: 男 | D4: 女 | F4: 計 | G4: 男 | H4: 女 | K4: 計 | L4: 男 | M4: 女 | O4: 計 | P4: 男 | Q4: 女 | T4: 計 | U4: 男 | V4: 女 | X4: 計 | Y4: 男 | Z4: 女
A5: 漁太 | B5: 157 | C5: 75 | D5: 82 | E5: 69 | F5: 153 | G5: 73 | H5: 80 | I5: 68 | J5: 京町 | K5: 156 | L5: 79 | M5: 77 | N5: 82 | O5: 164 | P5: 83 | Q5: 81 | R5: 85 | S5: 美咲野5丁目 | T5: 247 | U5: 119 | V5: 128 | W5: 98 | X5: 246 | Y5: 117 | Z5: 129 | AA5: 97
A6: 林田 | B6: 40 | C6: 18 | D6: 22 | E6: 23 | F6: 39 | G6: 18 | H6: 21 | I6: 21 | J6: 漁町 | K6: 1042 | L6: 536 | M6: 506 | N6: 564 | O6: 1093 | P6: 559 | Q6: 534 | R6: 594 | S6: 美咲野6丁目 | T6: 391 | U6: 186 | V6: 205 | W6: 139 | X6: 391 | Y6: 189 | Z6: 202 | AA6: 140
A7: 春日 | B7: 141 | C7: 75 | D7: 66 | E7: 59 | F7: 130 | G7: 68 | H7: 62 | I7: 56 | J7: 福住町1丁目 | K7: 744 | L7: 363 | M7: 381 | N7: 358 | O7: 746 | P7: 369 | Q7: 377 | R7: 370 | S7: 恵み野東1丁目 | T7: 312 | U7: 144 | V7: 168 | W7: 125 | X7: 303 | Y7: 139 | Z7: 164 | AA7: 125
A8: 中央 | B8: 220 | C8: 113 | D8: 107 | E8: 82 | F8: 226 | G8: 115 | H8: 111 | I8: 86 | J8: 福住町2丁目 | K8: 374 | L8: 172 | M8: 202 | N8: 188 | O8: 368 | P8: 171 | Q8: 197 | R8: 185 | S8: 恵み野東2丁目 | T8: 558 | U8: 267 | V8: 291 | W8: 222 | X8: 537 | Y8: 254 | Z8: 283 | AA8: 222
A9: 上山口 | B9: 203 | C9: 97 | D9: 106 | E9: 82 | F9: 203 | G9: 97 | H9: 106 | I9: 85 | J9: 福住町3丁目 | K9: 578 | L9: 269 | M9: 309 | N9: 281 | O9: 572 | P9: 259 | Q9: 313 | R9: 277 | S9: 恵み野東3丁目 | T9: 393 | U9: 195 | V9: 198 | W9: 164 | X9: 395 | Y9: 191 | Z9: 204 | AA9: 165
A10: 戸磯 | B10: 151 | C10: 68 | D10: 83 | E10: 75 | F10: 156 | G10: 70 | H10: 86 | I10: 77 | J10: 新町 | K10: 72 | L10: 33 | M10: 39 | N10: 29 | O10: 77 | P10: 36 | Q10: 41 | R10: 30 | S10: 恵み野東4丁目 | T10: 541 | U10: 263 | V10: 278 | W10: 202 | X10: 720 | Y10: 351 | Z10: 369 | AA10: 253
A11: 恵南 | B11: 763 | C11: 476 | D11: 287 | E11: 443 | F11: 784 | G11: 496 | H11: 288 | I11: 467 | J11: 本町 | K11: 498 | L11: 244 | M11: 254 | N11: 247 | O11: 493 | P11: 240 | Q11: 253 | R11: 244 | S11: 恵み野東5丁目 | T11: 569 | U11: 283 | V11: 286 | W11: 250 | X11: 571 | Y11: 280 | Z11: 291 | AA11: 251
A12: 和光町1丁目 | B12: 454 | C12: 220 | D12: 234 | E12: 220 | F12: 458 | G12: 222 | H12: 236 | I12: 222 | J12: 有明町1丁目 | K12: 437 | L12: 221 | M12: 216 | N12: 248 | O12: 422 | P12: 218 | Q12: 204 | R12: 241 | S12: 恵み野東6丁目 | T12: 455 | U12: 225 | V12: 230 | W12: 180 | X12: 472 | Y12: 231 | Z12: 241 | AA12: 189
A13: 和光町2丁目 | B13: 583 | C13: 294 | D13: 289 | E13: 240 | F13: 575 | G13: 290 | H13: 285 | I13: 238 | J13: 有明町2丁目 | K13: 511 | L13: 251 | M13: 260 | N13: 237 | O13: 508 | P13: 256 | Q13: 252 | R13: 234 | S13: 恵み野東7丁目 | T13: 572 | U13: 282 | V13: 290 | W13: 210 | X13: 548 | Y13: 272 | Z13: 276 | AA13: 206
A14: 和光町3丁目 | B14: 501 | C14: 244 | D14: 257 | E14: 227 | F14: 575 | G14: 285 | H14: 290 | I14: 261 | J14: 有明町3丁目 | K14: 290 | L14: 132 | M14: 158 | N14: 138 | O14: 279 | P14: 125 | Q14: 154 | R14: 134 | S14: 恵み野西1丁目 | T14: 721 | U14: 325 | V14: 396 | W14: 321 | X14: 706 | Y14: 315 | Z14: 391 | AA14: 324
A15: 和光町4丁目 | B15: 457 | C15: 227 | D15: 230 | E15: 205 | F15: 453 | G15: 222 | H15: 231 | I15: 209 | J15: 有明町4丁目 | K15: 312 | L15: 150 | M15: 162 | N15: 142 | O15: 295 | P15: 146 | Q15: 149 | R15: 136 | S15: 恵み野西2丁目 | T15: 232 | U15: 102 | V15: 130 | W15: 107 | X15: 223 | Y15: 97 | Z15: 126 | AA15: 104
A16: 和光町5丁目 | B16: 879 | C16: 473 | D16: 406 | E16: 436 | F16: 860 | G16: 461 | H16: 399 | I16: 442 | J16: 有明町5丁目 | K16: 292 | L16: 139 | M16: 153 | N16: 128 | O16: 287 | P16: 139 | Q16: 148 | R16: 122 | S16: 恵み野西3丁目 | T16: 349 | U16: 172 | V16: 177 | W16: 161 | X16: 342 | Y16: 166 | Z16: 176 | AA16: 158
A17: 駒場町1丁目 | B17: 660 | C17: 323 | D17: 337 | E17: 325 | F17: 665 | G17: 330 | H17: 335 | I17: 330 | J17: 有明町6丁目 | K17: 402 | L17: 202 | M17: 200 | N17: 204 | O17: 403 | P17: 205 | Q17: 198 | R17: 203 | S17: 恵み野西4丁目 | T17: 472 | U17: 223 | V17: 249 | W17: 207 | X17: 481 | Y17: 229 | Z17: 252 | AA17: 209
A18: 駒場町2丁目 | B18: 383 | C18: 183 | D18: 200 | E18: 157 | F18: 388 | G18: 183 | H18: 205 | I18: 157 | J18: 大町1丁目 | K18: 201 | L18: 102 | M18: 99 | N18: 98 | O18: 206 | P18: 102 | Q18: 104 | R18: 102 | S18: 恵み野西5丁目 | T18: 299 | U18: 126 | V18: 173 | W18: 152 | X18: 276 | Y18: 120 | Z18: 156 | AA18: 145
A19: 駒場町3丁目 | B19: 306 | C19: 146 | D19: 160 | E19: 133 | F19: 295 | G19: 139 | H19: 156 | I19: 135 | J19: 大町2丁目 | K19: 171 | L19: 91 | M19: 80 | N19: 93 | O19: 166 | P19: 90 | Q19: 76 | R19: 90 | S19: 恵み野西6丁目 | T19: 880 | U19: 411 | V19: 469 | W19: 380 | X19: 860 | Y19: 398 | Z19: 462 | AA19: 378
A20: 駒場町4丁目 | B20: 375 | C20: 183 | D20: 192 | E20: 178 | F20: 363 | G20: 178 | H20: 185 | I20: 172 | J20: 大町3丁目 | K20: 251 | L20: 124 | M20: 127 | N20: 115 | O20: 244 | P20: 124 | Q20: 120 | R20: 115 | S20: 恵み野南1丁目 | T20: 295 | U20: 130 | V20: 165 | W20: 135 | X20: 282 | Y20: 127 | Z20: 155 | AA20: 145
A21: 駒場町5丁目 | B21: 210 | C21: 107 | D21: 103 | E21: 100 | F21: 221 | G21: 112 | H21: 109 | I21: 105 | J21: 大町4丁目 | K21: 198 | L21: 98 | M21: 100 | N21: 101 | O21: 173 | P21: 87 | Q21: 86 | R21: 92 | S21: 恵み野南2丁目 | T21: 546 | U21: 252 | V21: 294 | W21: 237 | X21: 538 | Y21: 248 | Z21: 290 | AA21: 236
A22: 駒場町6丁目 | B22: 265 | C22: 130 | D22: 135 | E22: 124 | F22: 288 | G22: 142 | H22: 146 | I22: 140 | J22: 文京町1丁目 | K22: 589 | L22: 284 | M22: 305 | N22: 244 | O22: 579 | P22: 276 | Q22: 303 | R22: 248 | S22: 恵み野南3丁目 | T22: 628 | U22: 293 | V22: 335 | W22: 271 | X22: 626 | Y22: 286 | Z22: 340 | AA22: 274
A23: 白樺町1丁目 | B23: 388 | C23: 194 | D23: 194 | E23: 168 | F23: 375 | G23: 183 | H23: 192 | I23: 168 | J23: 文京町2丁目 | K23: 490 | L23: 228 | M23: 262 | N23: 194 | O23: 493 | P23: 230 | Q23: 263 | R23: 198 | S23: 恵み野南4丁目 | T23: 744 | U23: 348 | V23: 396 | W23: 323 | X23: 733 | Y23: 339 | Z23: 394 | AA23: 323
A24: 白樺町2丁目 | B24: 329 | C24: 174 | D24: 155 | E24: 164 | F24: 341 | G24: 180 | H24: 161 | I24: 164 | J24: 文京町3丁目 | K24: 147 | L24: 73 | M24: 74 | N24: 73 | O24: 157 | P24: 77 | Q24: 80 | R24: 78 | S24: 恵み野北1丁目 | T24: 494 | U24: 237 | V24: 257 | W24: 213 | X24: 483 | Y24: 230 | Z24: 253 | AA24: 209
A25: 白樺町3丁目 | B25: 685 | C25: 335 | D25: 350 | E25: 258 | F25: 668 | G25: 324 | H25: 344 | I25: 253 | J25: 文京町4丁目 | K25: 662 | L25: 332 | M25: 330 | N25: 278 | O25: 660 | P25: 331 | Q25: 329 | R25: 277 | S25: 恵み野北2丁目 | T25: 506 | U25: 229 | V25: 277 | W25: 218 | X25: 506 | Y25: 233 | Z25: 273 | AA25: 216
A26: 白樺町4丁目 | B26: 31 | C26: 21 | D26: 10 | E26: 16 | F26: 30 | G26: 21 | H26: 9 | I26: 17 | J26: 牧場 | K26: 298 | L26: 143 | M26: 155 | N26: 175 | O26: 305 | P26: 151 | Q26: 154 | R26: 177 | S26: 恵み野北3丁目 | T26: 295 | U26: 128 | V26: 167 | W26: 146 | X26: 286 | Y26: 128 | Z26: 158 | AA26: 145
A27: 黄金北1丁目 | B27: 593 | C27: 295 | D27: 298 | E27: 276 | F27: 593 | G27: 295 | H27: 298 | I27: 277 | J27: 盤尻 | K27: 16 | L27: 10 | M27: 6 | N27: 11 | O27: 15 | P27: 8 | Q27: 7 | R27: 10 | S27: 恵み野北4丁目 | T27: 327 | U27: 160 | V27: 167 | W27: 141 | X27: 323 | Y27: 157 | Z27: 166 | AA27: 135
A28: 黄金北2丁目 | B28: 554 | C28: 260 | D28: 294 | E28: 253 | F28: 564 | G28: 262 | H28: 302 | I28: 258 | J28: 桜森 | K28: - | L28: - | M28: - | N28: - | O28: - | P28: - | Q28: - | R28: - | S28: 恵み野北5丁目 | T28: 332 | U28: 158 | V28: 174 | W28: 144 | X28: 332 | Y28: 157 | Z28: 175 | AA28: 145
A29: 黄金北3丁目 | B29: 817 | C29: 394 | D29: 423 | E29: 376 | F29: 797 | G29: 393 | H29: 404 | I29: 364 | J29: 中島町1丁目 | K29: 623 | L29: 309 | M29: 314 | N29: 273 | O29: 631 | P29: 318 | Q29: 313 | R29: 278 | S29: 恵み野北6丁目 | T29: 662 | U29: 321 | V29: 341 | W29: 259 | X29: 646 | Y29: 310 | Z29: 336 | AA29: 254
A30: 黄金北4丁目 | B30: 712 | C30: 334 | D30: 378 | E30: 310 | F30: 711 | G30: 340 | H30: 371 | I30: 314 | J30: 中島町2丁目 | K30: 490 | L30: 232 | M30: 258 | N30: 222 | O30: 486 | P30: 225 | Q30: 261 | R30: 223 | S30: 恵み野北7丁目 | T30: 877 | U30: 414 | V30: 463 | W30: 294 | X30: 831 | Y30: 392 | Z30: 439 | AA30: 289
A31: 黄金中央１丁目 | B31: 466 | C31: 220 | D31: 246 | E31: 232 | F31: 468 | G31: 210 | H31: 258 | I31: 245 | J31: 中島町3丁目 | K31: 212 | L31: 103 | M31: 109 | N31: 80 | O31: 216 | P31: 106 | Q31: 110 | R31: 84 | S31: 恵み野里美1丁目 | T31: 5 | U31: 2 | V31: 3 | W31: 3 | X31: 50 | Y31: 21 | Z31: 29 | AA31: 35
A32: 黄金中央２丁目 | B32: 311 | C32: 134 | D32: 177 | E32: 168 | F32: 311 | G32: 131 | H32: 180 | I32: 172 | J32: 中島町4丁目 | K32: 1012 | L32: 496 | M32: 516 | N32: 463 | O32: 998 | P32: 483 | Q32: 515 | R32: 462 | S32: 恵み野里美2丁目 | T32: 153 | U32: 74 | V32: 79 | W32: 50 | X32: 379 | Y32: 191 | Z32: 188 | AA32: 125
A33: 黄金中央３丁目 | B33: 585 | C33: 296 | D33: 289 | E33: 288 | F33: 602 | G33: 302 | H33: 300 | I33: 299 | J33: 中島町5丁目 | K33: 459 | L33: 230 | M33: 229 | N33: 239 | O33: 489 | P33: 245 | Q33: 244 | R33: 263 | S33: 島松寿町1丁目 | T33: 630 | U33: 306 | V33: 324 | W33: 341 | X33: 629 | Y33: 294 | Z33: 335 | AA33: 347
A34: 黄金中央４丁目 | B34: 385 | C34: 180 | D34: 205 | E34: 195 | F34: 394 | G34: 188 | H34: 206 | I34: 204 | J34: 中島町6丁目 | K34: 698 | L34: 332 | M34: 366 | N34: 357 | O34: 688 | P34: 325 | Q34: 363 | R34: 369 | S34: 島松寿町2丁目 | T34: 1024 | U34: 468 | V34: 556 | W34: 495 | X34: 1023 | Y34: 479 | Z34: 544 | AA34: 499
A35: 黄金中央５丁目 | B35: - | C35: - | D35: - | E35: - | F35: - | G35: - | H35: - | I35: - | J35: 恵央町 | K35: 710 | L35: 298 | M35: 412 | N35: 381 | O35: 719 | P35: 299 | Q35: 420 | R35: 383 | S35: 島松仲町1丁目 | T35: 275 | U35: 136 | V35: 139 | W35: 143 | X35: 267 | Y35: 129 | Z35: 138 | AA35: 143
A36: 黄金南１丁目 | B36: 915 | C36: 446 | D36: 469 | E36: 345 | F36: 928 | G36: 450 | H36: 478 | I36: 350 | J36: 幸町1丁目 | K36: 237 | L36: 114 | M36: 123 | N36: 103 | O36: 246 | P36: 118 | Q36: 128 | R36: 106 | S36: 島松仲町2丁目 | T36: 222 | U36: 104 | V36: 118 | W36: 118 | X36: 219 | Y36: 101 | Z36: 118 | AA36: 115
A37: 黄金南２丁目 | B37: 675 | C37: 321 | D37: 354 | E37: 269 | F37: 682 | G37: 330 | H37: 352 | I37: 275 | J37: 幸町2丁目 | K37: 385 | L37: 177 | M37: 208 | N37: 178 | O37: 382 | P37: 173 | Q37: 209 | R37: 177 | S37: 島松仲町3丁目 | T37: 169 | U37: 78 | V37: 91 | W37: 81 | X37: 160 | Y37: 72 | Z37: 88 | AA37: 77
A38: 黄金南３丁目 | B38: 820 | C38: 397 | D38: 423 | E38: 282 | F38: 877 | G38: 417 | H38: 460 | I38: 303 | J38: 幸町3丁目 | K38: 429 | L38: 205 | M38: 224 | N38: 188 | O38: 417 | P38: 201 | Q38: 216 | R38: 186 | S38: 島松東町1丁目 | T38: 286 | U38: 137 | V38: 149 | W38: 120 | X38: 287 | Y38: 135 | Z38: 152 | AA38: 121
A39: 黄金南４丁目 | B39: 886 | C39: 461 | D39: 425 | E39: 301 | F39: 896 | G39: 459 | H39: 437 | I39: 306 | J39: 幸町4丁目 | K39: 5 | L39: 2 | M39: 3 | N39: 2 | O39: 5 | P39: 2 | Q39: 3 | R39: 2 | S39: 島松東町2丁目 | T39: 356 | U39: 162 | V39: 194 | W39: 168 | X39: 356 | Y39: 162 | Z39: 194 | AA39: 170
A40: 黄金南５丁目 | B40: 227 | C40: 113 | D40: 114 | E40: 76 | F40: 255 | G40: 128 | H40: 127 | I40: 86 | J40: 柏陽町1丁目 | K40: 750 | L40: 355 | M40: 395 | N40: 366 | O40: 743 | P40: 358 | Q40: 385 | R40: 365 | S40: 島松東町3丁目 | T40: 365 | U40: 186 | V40: 179 | W40: 165 | X40: 338 | Y40: 173 | Z40: 165 | AA40: 159
A41: 黄金南６丁目 | B41: 312 | C41: 159 | D41: 153 | E41: 103 | F41: 308 | G41: 152 | H41: 156 | I41: 103 | J41: 柏陽町3丁目 | K41: 1617 | L41: 804 | M41: 813 | N41: 670 | O41: 1606 | P41: 795 | Q41: 811 | R41: 674 | S41: 島松東町4丁目 | T41: 215 | U41: 108 | V41: 107 | W41: 92 | X41: 209 | Y41: 101 | Z41: 108 | AA41: 93
A42: 黄金南７丁目 | B42: 816 | C42: 401 | D42: 415 | E42: 285 | F42: 818 | G42: 400 | H42: 418 | I42: 287 | J42: 柏陽町4丁目 | K42: 606 | L42: 278 | M42: 328 | N42: 337 | O42: 577 | P42: 263 | Q42: 314 | R42: 324 | S42: 島松本町1丁目 | T42: 510 | U42: 241 | V42: 269 | W42: 214 | X42: 496 | Y42: 233 | Z42: 263 | AA42: 213
A43: 相生町 | B43: 1815 | C43: 886 | D43: 929 | E43: 959 | F43: 1820 | G43: 888 | H43: 932 | I43: 968 | J43: 柏木町 | K43: 2625 | L43: 1372 | M43: 1253 | N43: 1327 | O43: 1271 | P43: 697 | Q43: 574 | R43: 697 | S43: 島松本町2丁目 | T43: 606 | U43: 294 | V43: 312 | W43: 268 | X43: 601 | Y43: 292 | Z43: 309 | AA43: 267
A44: 緑町1丁目 | B44: 164 | C44: 82 | D44: 82 | E44: 100 | F44: 158 | G44: 73 | H44: 85 | I44: 93 | J44: 柏木町1丁目 | K44: ･･･ | L44: ･･･ | M44: ･･･ | N44: ･･･ | O44: 421 | P44: 220 | Q44: 201 | R44: 198 | S44: 島松本町3丁目 | T44: 749 | U44: 356 | V44: 393 | W44: 331 | X44: 726 | Y44: 339 | Z44: 387 | AA44: 323
A45: 緑町2丁目 | B45: 715 | C45: 313 | D45: 402 | E45: 339 | F45: 672 | G45: 294 | H45: 378 | I45: 323 | J45: 柏木町2丁目 | K45: ･･･ | L45: ･･･ | M45: ･･･ | N45: ･･･ | O45: 266 | P45: 133 | Q45: 133 | R45: 121 | S45: 島松本町4丁目 | T45: 520 | U45: 254 | V45: 266 | W45: 222 | X45: 515 | Y45: 249 | Z45: 266 | AA45: 218
A46: 住吉町1丁目 | B46: 252 | C46: 126 | D46: 126 | E46: 120 | F46: 243 | G46: 125 | H46: 118 | I46: 117 | J46: 柏木町3丁目 | K46: ･･･ | L46: ･･･ | M46: ･･･ | N46: ･･･ | O46: 589 | P46: 287 | Q46: 302 | R46: 287 | S46: 島松旭町1丁目 | T46: 307 | U46: 146 | V46: 161 | W46: 124 | X46: 318 | Y46: 149 | Z46: 169 | AA46: 132
A47: 住吉町2丁目 | B47: 528 | C47: 245 | D47: 283 | E47: 280 | F47: 508 | G47: 239 | H47: 269 | I47: 272 | J47: 北柏木町1丁目 | K47: 796 | L47: 386 | M47: 410 | N47: 334 | O47: 796 | P47: 384 | Q47: 412 | R47: 328 | S47: 島松旭町2丁目 | T47: 318 | U47: 153 | V47: 165 | W47: 132 | X47: 339 | Y47: 166 | Z47: 173 | AA47: 139
A48: 住吉町3丁目 | B48: 563 | C48: 277 | D48: 286 | E48: 256 | F48: 554 | G48: 276 | H48: 278 | I48: 261 | J48: 北柏木町2丁目 | K48: 573 | L48: 283 | M48: 290 | N48: 259 | O48: 561 | P48: 278 | Q48: 283 | R48: 256 | S48: 島松旭町3丁目 | T48: 329 | U48: 162 | V48: 167 | W48: 104 | X48: 331 | Y48: 163 | Z48: 168 | AA48: 109
A49: 住吉町4丁目 | B49: 402 | C49: 176 | D49: 226 | E49: 177 | F49: 406 | G49: 175 | H49: 231 | I49: 185 | J49: 北柏木町3丁目 | K49: 27 | L49: 15 | M49: 12 | N49: 13 | O49: 26 | P49: 14 | Q49: 12 | R49: 12 | S49: 島松旭町4丁目 | T49: 412 | U49: 188 | V49: 224 | W49: 170 | X49: 392 | Y49: 178 | Z49: 214 | AA49: 168
A50: 末広町 | B50: 601 | C50: 285 | D50: 316 | E50: 294 | F50: 625 | G50: 296 | H50: 329 | I50: 304 | J50: 北柏木町4丁目 | K50: 8 | L50: 4 | M50: 4 | N50: 3 | O50: 8 | P50: 4 | Q50: 4 | R50: 3 | S50: 西島松 | T50: 701 | U50: 431 | V50: 270 | W50: 481 | X50: 677 | Y50: 411 | Z50: 266 | AA50: 466
A51: 栄恵町 | B51: 184 | C51: 97 | D51: 87 | E51: 116 | F51: 183 | G51: 102 | H51: 81 | I51: 124 | J51: 北柏木町5丁目 | K51: 3 | L51: 2 | M51: 1 | N51: 2 | O51: 3 | P51: 2 | Q51: 1 | R51: 2 | S51: 南島松 | T51: 247 | U51: 104 | V51: 143 | W51: 133 | X51: 237 | Y51: 101 | Z51: 136 | AA51: 130
A52: 泉 町 | B52: 599 | C52: 315 | D52: 284 | E52: 340 | F52: 609 | G52: 325 | H52: 284 | I52: 367 | J52: 島松沢 | K52: 13 | L52: 8 | M52: 5 | N52: 8 | O52: 14 | P52: 8 | Q52: 6 | R52: 8 | S52: 中島松 | T52: 165 | U52: 78 | V52: 87 | W52: 61 | X52: 160 | Y52: 75 | Z52: 85 | AA52: 62
A53: 桜町1丁目 | B53: 272 | C53: 152 | D53: 120 | E53: 137 | F53: 260 | G53: 143 | H53: 117 | I53: 132 | J53: 美咲野1丁目 | K53: 601 | L53: 286 | M53: 315 | N53: 199 | O53: 605 | P53: 289 | Q53: 316 | R53: 201 | S53: 下島松 | T53: 308 | U53: 155 | V53: 153 | W53: 156 | X53: 305 | Y53: 155 | Z53: 150 | AA53: 159
A54: 桜町2丁目 | B54: 798 | C54: 365 | D54: 433 | E54: 380 | F54: 788 | G54: 360 | H54: 428 | I54: 377 | J54: 美咲野2丁目 | K54: 386 | L54: 189 | M54: 197 | N54: 127 | O54: 373 | P54: 185 | Q54: 188 | R54: 126 | S54: 穂栄 | T54: 103 | U54: 51 | V54: 52 | W54: 52 | X54: 102 | Y54: 50 | Z54: 52 | AA54: 51
A55: 桜町3丁目 | B55: 342 | C55: 170 | D55: 172 | E55: 134 | F55: 320 | G55: 160 | H55: 160 | I55: 135 | J55: 美咲野3丁目 | K55: 391 | L55: 206 | M55: 185 | N55: 136 | O55: 376 | P55: 199 | Q55: 177 | R55: 135 | S55: 北島 | T55: 94 | U55: 50 | V55: 44 | W55: 41 | X55: 93 | Y55: 49 | Z55: 44 | AA55: 40
A56: 桜町4丁目 | B56: 1 | C56: 1 | D56: - | E56: 1 | F56: 1 | G56: 1 | H56: - | I56: 1 | J56: 美咲野4丁目 | K56: 306 | L56: 154 | M56: 152 | N56: 103 | O56: 294 | P56: 149 | Q56: 145 | R56: 103 | S56: 合計 | T56: =SUM(T4:T56)+SUM(K4:K56)+SUM(B4:B56) -> 68950 | U56: =SUM(U4:U56)+SUM(L4:L56)+SUM(C4:C56) -> 33610 | V56: 35340 | W56: 31338 | X56: 68974 | Y56: 33589 | Z56: 35385 | AA56: 31688
A57: 〈資料〉生活環境部市民課
A58: 注）住民基本台帳法が改正され、平成24年7月より外国人住民が適用対象となった。

Sheet 年齢別人口（５歳階級）
A1: ３）年齢別人口(5歳階級)
Q2: （各年9月末日）
A3: 年 齢 | B3: 23年 | E3: 24年 | H3: 25年 | K3: 26年 | N3: 27年 | Q3: 年 齢
B4: 男 | C4: 女 | D4: 計 | E4: 男 | F4: 女 | G4: 計 | H4: 男 | I4: 女 | J4: 計 | K4: 男 | L4: 女 | M4: 計 | N4: 男 | O4: 女 | P4: 計
A5: 総数 | B5: =B8+B15+B29 -> 33833 | C5: 35105 | D5: 68938 | E5: 33806 | F5: 35320 | G5: 69126 | H5: 33806 | I5: 35320 | J5: =SUM(H5:I5) -> 69126 | K5: 33648 | L5: 35228 | M5: 68876 | N5: 33589 | O5: 35385 | P5: =SUM(N5:O5) -> 68974 | Q5: 総数
D6: (100%) | G6: (100%) | J6: (100%) | M6: (100%) | P6: (100%)
A7: 年少人口 | Q7: 年少人口
A8: 0歳～14歳 | B8: 4939 | C8: 4802 | D8: 9741 | E8: 4846 | F8: 4685 | G8: 9531 | H8: 4759 | I8: 4549 | J8: 9308 | K8: 4713 | L8: 4590 | M8: =SUM(M10:M12) -> 9303 | N8: =SUM(N10:N12) -> 4640 | O8: =SUM(O10:O12) -> 4591 | P8: =SUM(P10:P12) -> 9231 | Q8: 0歳～14歳
D9: (14.1%) | F9: (13.8%) | G9: (13.8%) | J9: (13.5%) | M9: ="("&ROUND(M8/(M$15+M$8+M$29)*100,1)&"%)" -> (13.5%) | P9: ="("&ROUND(P8/(P$15+P$8+P$29)*100,1)&"%)" -> (13.4%)
A10: 0歳～4歳 | B10: 1496 | C10: 1469 | D10: 2965 | E10: 1466 | F10: 1383 | G10: 2849 | H10: 1392 | I10: 1323 | J10: 2715 | K10: 1374 | L10: 1350 | M10: =K10+L10 -> 2724 | N10: 1332 | O10: 1355 | P10: =SUM(N10:O10) -> 2687 | Q10: 0歳～4歳
A11: 5～9 | B11: 1628 | C11: 1582 | D11: 3210 | E11: 1592 | F11: 1594 | G11: 3186 | H11: 1612 | I11: 1549 | J11: 3161 | K11: 1615 | L11: 1540 | M11: =K11+L11 -> 3155 | N11: 1598 | O11: 1541 | P11: =SUM(N11:O11) -> 3139 | Q11: 5～9
A12: 10～14 | B12: 1815 | C12: 1751 | D12: 3566 | E12: 1788 | F12: 1708 | G12: 3496 | H12: 1755 | I12: 1677 | J12: 3432 | K12: 1724 | L12: 1700 | M12: =K12+L12 -> 3424 | N12: 1710 | O12: 1695 | P12: =SUM(N12:O12) -> 3405 | Q12: 10～14
A14: 生産年齢人口 | Q14: 生産年齢人口
A15: 15歳～64歳 | B15: 22405 | C15: 22245 | D15: 44650 | E15: 22245 | F15: 22251 | G15: 44496 | H15: 21883 | I15: 21879 | J15: 43762 | K15: 21538 | L15: 21504 | M15: =SUM(M17:M26) -> 43042 | N15: =SUM(N17:N26) -> 21314 | O15: =SUM(O17:O26) -> 21191 | P15: =SUM(P17:P26) -> 42505 | Q15: 15歳～64歳
D16: (64.8%) | G16: (64.4%) | J16: (63.5%) | M16: ="("&ROUND(M15/(M$15+M$8+M$29)*100,1)&"%)" -> (62.4%) | P16: ="("&ROUND(P15/(P$15+P$8+P$29)*100,1)&"%)" -> (61.6%)
A17: 15歳～19歳 | B17: 1928 | C17: 1801 | D17: 3729 | E17: 1924 | F17: 1856 | G17: 3780 | H17: 1886 | I17: 1889 | J17: 3775 | K17: 1905 | L17: 1834 | M17: =SUM(K17:L17) -> 3739 | N17: 1885 | O17: 1812 | P17: =SUM(N17:O17) -> 3697 | Q17: 15歳～19歳
A18: 20～24 | B18: 1957 | C18: 1768 | D18: 3725 | E18: 1955 | F18: 1812 | G18: 3767 | H18: 1900 | I18: 1771 | J18: 3671 | K18: 1857 | L18: 1737 | M18: 3594 | N18: 1850 | O18: 1706 | P18: =SUM(N18:O18) -> 3556 | Q18: 20～24
A19: 25～29 | B19: 1888 | C19: 1869 | D19: 3757 | E19: 1808 | F19: 1804 | G19: 3612 | H19: 1723 | I19: 1724 | J19: 3447 | K19: 1693 | L19: 1675 | M19: 3368 | N19: 1702 | O19: 1562 | P19: 3264 | Q19: 25～29
A20: 30～34 | B20: 2254 | C20: 2175 | D20: 4429 | E20: 2091 | F20: 2089 | G20: 4180 | H20: 2040 | I20: 1968 | J20: 4008 | K20: 1913 | L20: 1943 | M20: 3856 | N20: 1870 | O20: 1935 | P20: 3805 | Q20: 30～34
A21: 35～39 | B21: 2596 | C21: 2576 | D21: 5172 | E21: 2640 | F21: 2600 | G21: 5240 | H21: 2548 | I21: 2469 | J21: 5017 | K21: 2465 | L21: 2358 | M21: 4823 | N21: 2358 | O21: 2286 | P21: 4644 | Q21: 35～39
A22: 40～44 | B22: 2480 | C22: 2402 | D22: 4882 | E22: 2501 | F22: 2423 | G22: 4924 | H22: 2542 | I22: 2532 | J22: 5074 | K22: 2591 | L22: 2567 | M22: 5158 | N22: 2597 | O22: 2618 | P22: 5215 | Q22: 40～44
A23: 45～49 | B23: 2122 | C23: 2208 | D23: 4330 | E23: 2176 | F23: 2258 | G23: 4434 | H23: 2239 | I23: 2296 | J23: 4535 | K23: 2324 | L23: 2357 | M23: 4681 | N23: 2372 | O23: 2353 | P23: 4725 | Q23: 45～49
A24: 50～54 | B24: 2095 | C24: 2081 | D24: 4176 | E24: 2120 | F24: 2113 | G24: 4233 | H24: 2115 | I24: 2169 | J24: 4284 | K24: 2134 | L24: 2204 | M24: 4338 | N24: 2175 | O24: 2245 | P24: 4420 | Q24: 50～54
A25: 55～59 | B25: 2348 | C25: 2490 | D25: 4838 | E25: 2225 | F25: 2372 | G25: 4597 | H25: 2142 | I25: 2209 | J25: 4351 | K25: 2105 | L25: 2126 | M25: 4231 | N25: 2074 | O25: 2103 | P25: 4177 | Q25: 55～59
A26: 60～64 | B26: 2737 | C26: 2875 | D26: 5612 | E26: 2805 | F26: 2924 | G26: 5729 | H26: 2748 | I26: 2852 | J26: 5600 | K26: 2551 | L26: 2703 | M26: 5254 | N26: 2431 | O26: 2571 | P26: 5002 | Q26: 60～64
A28: 老年人口 | Q28: 老年人口
A29: 65歳以上 | B29: 6489 | C29: 8058 | D29: 14547 | E29: 6715 | F29: 8384 | G29: 15099 | H29: 7006 | I29: 8800 | J29: 15806 | K29: 7359 | L29: 9246 | M29: =SUM(M31:M37) -> 16605 | N29: =SUM(N31:N37) -> 7635 | O29: =SUM(O31:O37) -> 9603 | P29: =SUM(P31:P37) -> 17238 | Q29: 65歳以上
D30: (21.1%) | G30: (21.8%) | J30: (23.0%) | M30: (24.1%) | P30: ="("&ROUND(P29/(P$15+P$8+P$29)*100,1)&"%)" -> (25%)
A31: 65歳～69歳 | B31: 1880 | C31: 2133 | D31: 4013 | E31: 1930 | F31: 2155 | G31: 4085 | H31: 2114 | I31: 2338 | J31: 4452 | K31: 2332 | L31: 2530 | M31: =SUM(K31:L31) -> 4862 | N31: 2524 | O31: 2716 | P31: =SUM(N31:O31) -> 5240 | Q31: 65歳～69歳
A32: 70～74 | B32: 1658 | C32: 1995 | D32: 3653 | E32: 1676 | F32: 2075 | G32: 3751 | H32: 1676 | I32: 2086 | J32: 3762 | K32: 1721 | L32: 2136 | M32: 3857 | N32: 1736 | O32: 2116 | P32: 3852 | Q32: 70～74
A33: 75～79 | B33: 1444 | C33: 1667 | D33: 3111 | E33: 1484 | F33: 1758 | G33: 3242 | H33: 1494 | I33: 1815 | J33: 3309 | K33: 1493 | L33: 1870 | M33: 3363 | N33: 1461 | O33: 1853 | P33: =SUM(N33:O33) -> 3314 | Q33: 75～79
A34: 80～84 | B34: 992 | C34: 1159 | D34: 2151 | E34: 1026 | F34: 1191 | G34: 2217 | H34: 1065 | I34: 1272 | J34: 2337 | K34: 1066 | L34: 1338 | M34: 2404 | N34: 1124 | O34: 1435 | P34: 2559 | Q34: 80～84
A35: 85～89 | B35: 364 | C35: 698 | D35: 1062 | E35: 428 | F35: 755 | G35: 1183 | H35: 499 | I35: 783 | J35: 1282 | K35: 576 | L35: 840 | M35: 1416 | N35: 609 | O35: 907 | P35: 1516 | Q35: 85～89
A36: 90～94 | B36: 116 | C36: 306 | D36: 422 | E36: 131 | F36: 344 | G36: 475 | H36: 122 | I36: 387 | J36: 509 | K36: 133 | L36: 406 | M36: 539 | N36: 150 | O36: 438 | P36: 588 | Q36: 90～94
A37: 95歳以上 | B37: 35 | C37: 100 | D37: 135 | E37: 40 | F37: 106 | G37: 146 | H37: 36 | I37: 119 | J37: 155 | K37: 38 | L37: 126 | M37: 164 | N37: 31 | O37: 138 | P37: 169 | Q37: 95歳以上
A38: 〈資料〉生活環境部市民課、住民基本台帳

Sheet 町内別年齢別人口①
A1: ４）町内別年齢別人口(５歳階級)
X2: 平成27年9月末現在
A3: 町 名 | B3: 総数 | C3: 0歳～ 4歳 | D3: 5歳～ 9歳 | E3: 10歳～ 14歳 | F3: 15歳～ 19歳 | G3: 20歳～ 24歳 | H3: 25歳～ 29歳 | I3: 30歳～ 34歳 | J3: 35歳～ 39歳 | K3: 40歳～ 44歳 | L3: 45歳～ 49歳 | M3: 50歳～ 54歳 | N3: 55歳～59歳 | O3: 60歳～64歳 | P3: 65歳～69歳 | Q3: 70歳～74歳 | R3: 75歳～79歳 | S3: 80歳～84歳 | T3: 85歳～89歳 | U3: 90歳～94歳 | V3: 95歳～99歳 | W3: 100歳以上 | X3: 町 名
A4: 漁太 | B4: 153 | C4: 5 | D4: 1 | E4: 2 | F4: 2 | G4: 3 | H4: 4 | I4: 3 | J4: 10 | K4: 7 | L4: 13 | M4: 8 | N4: 17 | O4: 16 | P4: 6 | Q4: 22 | R4: 18 | S4: 10 | T4: 2 | U4: 3 | V4: 1 | W4: - | X4: 漁太
A5: 林田 | B5: 39 | C5: - | D5: 1 | E5: - | F5: - | G5: - | H5: 1 | I5: - | J5: 2 | K5: 2 | L5: 1 | M5: 1 | N5: 4 | O5: 5 | P5: 5 | Q5: 6 | R5: 2 | S5: 6 | T5: 1 | U5: 2 | V5: - | W5: - | X5: 林田
A6: 春日 | B6: 130 | C6: 2 | D6: 5 | E6: - | F6: 2 | G6: 6 | H6: 3 | I6: 7 | J6: 4 | K6: 4 | L6: 8 | M6: 10 | N6: 9 | O6: 10 | P6: 16 | Q6: 11 | R6: 10 | S6: 11 | T6: 8 | U6: 3 | V6: 1 | W6: - | X6: 春日
A7: 中央 | B7: 226 | C7: 12 | D7: 12 | E7: 7 | F7: 5 | G7: 3 | H7: 9 | I7: 21 | J7: 7 | K7: 11 | L7: 14 | M7: 12 | N7: 19 | O7: 25 | P7: 17 | Q7: 10 | R7: 14 | S7: 13 | T7: 11 | U7: 3 | V7: 1 | W7: - | X7: 中央
A8: 上山口 | B8: 203 | C8: 7 | D8: 4 | E8: 5 | F8: 6 | G8: 6 | H8: 6 | I8: 9 | J8: 12 | K8: 8 | L8: 16 | M8: 7 | N8: 19 | O8: 17 | P8: 23 | Q8: 15 | R8: 15 | S8: 11 | T8: 10 | U8: 2 | V8: 5 | W8: - | X8: 上山口
A9: 戸磯 | B9: 156 | C9: 7 | D9: 2 | E9: 3 | F9: 1 | G9: 9 | H9: 9 | I9: 8 | J9: 13 | K9: 1 | L9: 10 | M9: 13 | N9: 12 | O9: 19 | P9: 18 | Q9: 4 | R9: 6 | S9: 10 | T9: 4 | U9: 6 | V9: 1 | W9: - | X9: 戸磯
A10: 恵南 | B10: 784 | C10: 12 | D10: 23 | E10: 15 | F10: 66 | G10: 120 | H10: 65 | I10: 42 | J10: 50 | K10: 50 | L10: 39 | M10: 46 | N10: 50 | O10: 53 | P10: 53 | Q10: 42 | R10: 30 | S10: 14 | T10: 10 | U10: 3 | V10: 1 | W10: - | X10: 恵南
A11: 和光町１ 丁目 | B11: 458 | C11: 21 | D11: 21 | E11: 19 | F11: 18 | G11: 26 | H11: 17 | I11: 21 | J11: 36 | K11: 41 | L11: 25 | M11: 28 | N11: 21 | O11: 30 | P11: 43 | Q11: 33 | R11: 29 | S11: 20 | T11: 9 | U11: - | V11: - | W11: - | X11: 和光町１ 丁目
A12: 和光町２ 丁目 | B12: 575 | C12: 21 | D12: 28 | E12: 52 | F12: 37 | G12: 22 | H12: 15 | I12: 34 | J12: 39 | K12: 61 | L12: 52 | M12: 48 | N12: 27 | O12: 32 | P12: 40 | Q12: 27 | R12: 14 | S12: 16 | T12: 7 | U12: 3 | V12: - | W12: - | X12: 和光町２ 丁目
A13: 和光町３ 丁目 | B13: 575 | C13: 25 | D13: 42 | E13: 30 | F13: 35 | G13: 28 | H13: 42 | I13: 32 | J13: 47 | K13: 45 | L13: 39 | M13: 21 | N13: 26 | O13: 38 | P13: 26 | Q13: 42 | R13: 22 | S13: 18 | T13: 12 | U13: 5 | V13: - | W13: - | X13: 和光町３ 丁目
A14: 和光町４ 丁目 | B14: 453 | C14: 19 | D14: 21 | E14: 25 | F14: 26 | G14: 28 | H14: 24 | I14: 18 | J14: 33 | K14: 38 | L14: 42 | M14: 26 | N14: 18 | O14: 31 | P14: 33 | Q14: 33 | R14: 15 | S14: 12 | T14: 6 | U14: 4 | V14: 1 | W14: - | X14: 和光町４ 丁目
A15: 和光町５ 丁目 | B15: 860 | C15: 51 | D15: 55 | E15: 48 | F15: 74 | G15: 70 | H15: 57 | I15: 58 | J15: 76 | K15: 78 | L15: 57 | M15: 48 | N15: 35 | O15: 29 | P15: 37 | Q15: 27 | R15: 19 | S15: 25 | T15: 13 | U15: 3 | V15: - | W15: - | X15: 和光町５ 丁目
A16: 駒場町１ 丁目 | B16: 665 | C16: 31 | D16: 19 | E16: 22 | F16: 32 | G16: 42 | H16: 34 | I16: 39 | J16: 48 | K16: 53 | L16: 62 | M16: 56 | N16: 44 | O16: 39 | P16: 40 | Q16: 32 | R16: 30 | S16: 24 | T16: 13 | U16: 5 | V16: - | W16: - | X16: 駒場町１ 丁目
A17: 駒場町２ 丁目 | B17: 388 | C17: 29 | D17: 28 | E17: 16 | F17: 15 | G17: 11 | H17: 16 | I17: 35 | J17: 32 | K17: 29 | L17: 22 | M17: 19 | N17: 15 | O17: 27 | P17: 19 | Q17: 31 | R17: 21 | S17: 11 | T17: 8 | U17: 2 | V17: 2 | W17: - | X17: 駒場町２ 丁目
A18: 駒場町３ 丁目 | B18: 295 | C18: 15 | D18: 6 | E18: 6 | F18: 11 | G18: 20 | H18: 14 | I18: 15 | J18: 17 | K18: 21 | L18: 21 | M18: 27 | N18: 24 | O18: 28 | P18: 15 | Q18: 13 | R18: 25 | S18: 11 | T18: 5 | U18: 1 | V18: - | W18: - | X18: 駒場町３ 丁目
A19: 駒場町４ 丁目 | B19: 363 | C19: 12 | D19: 12 | E19: 12 | F19: 19 | G19: 16 | H19: 22 | I19: 13 | J19: 14 | K19: 32 | L19: 20 | M19: 17 | N19: 30 | O19: 35 | P19: 33 | Q19: 33 | R19: 22 | S19: 10 | T19: 7 | U19: 4 | V19: - | W19: - | X19: 駒場町４ 丁目
A20: 駒場町５ 丁目 | B20: 221 | C20: 9 | D20: 10 | E20: 10 | F20: 13 | G20: 5 | H20: 8 | I20: 14 | J20: 10 | K20: 16 | L20: 9 | M20: 16 | N20: 10 | O20: 19 | P20: 23 | Q20: 20 | R20: 10 | S20: 9 | T20: 6 | U20: 3 | V20: 1 | W20: - | X20: 駒場町５ 丁目
A21: 駒場町６ 丁目 | B21: 288 | C21: 10 | D21: 17 | E21: 9 | F21: 17 | G21: 10 | H21: 17 | I21: 14 | J21: 23 | K21: 25 | L21: 26 | M21: 12 | N21: 15 | O21: 12 | P21: 17 | Q21: 28 | R21: 17 | S21: 7 | T21: 6 | U21: 4 | V21: 1 | W21: 1 | X21: 駒場町６ 丁目
A22: 白樺町１ 丁目 | B22: 375 | C22: 11 | D22: 15 | E22: 19 | F22: 25 | G22: 24 | H22: 13 | I22: 29 | J22: 25 | K22: 31 | L22: 29 | M22: 39 | N22: 35 | O22: 21 | P22: 15 | Q22: 12 | R22: 16 | S22: 6 | T22: 5 | U22: 4 | V22: 1 | W22: - | X22: 白樺町１ 丁目
A23: 白樺町２ 丁目 | B23: 341 | C23: 9 | D23: 4 | E23: 11 | F23: 26 | G23: 20 | H23: 10 | I23: 9 | J23: 25 | K23: 21 | L23: 24 | M23: 18 | N23: 30 | O23: 31 | P23: 38 | Q23: 27 | R23: 16 | S23: 13 | T23: 7 | U23: 2 | V23: - | W23: - | X23: 白樺町２ 丁目
A24: 白樺町３ 丁目 | B24: 668 | C24: 12 | D24: 33 | E24: 48 | F24: 66 | G24: 37 | H24: 24 | I24: 19 | J24: 44 | K24: 51 | L24: 57 | M24: 87 | N24: 50 | O24: 45 | P24: 33 | Q24: 23 | R24: 25 | S24: 11 | T24: 2 | U24: 1 | V24: - | W24: - | X24: 白樺町３ 丁目
A25: 白樺町４ 丁目 | B25: 30 | C25: 1 | D25: - | E25: 5 | F25: 4 | G25: - | H25: 2 | I25: 1 | J25: 3 | K25: 3 | L25: 2 | M25: 7 | N25: 2 | O25: - | P25: - | Q25: - | R25: - | S25: - | T25: - | U25: - | V25: - | W25: - | X25: 白樺町４ 丁目
A26: 黄金北１丁目 | B26: 593 | C26: 35 | D26: 33 | E26: 28 | F26: 33 | G26: 37 | H26: 41 | I26: 39 | J26: 49 | K26: 45 | L26: 41 | M26: 39 | N26: 46 | O26: 34 | P26: 31 | Q26: 26 | R26: 17 | S26: 11 | T26: 4 | U26: 3 | V26: 1 | W26: - | X26: 黄金北１丁目
A27: 黄金北２丁目 | B27: 564 | C27: 21 | D27: 24 | E27: 29 | F27: 44 | G27: 33 | H27: 29 | I27: 24 | J27: 36 | K27: 50 | L27: 38 | M27: 37 | N27: 32 | O27: 33 | P27: 34 | Q27: 31 | R27: 24 | S27: 20 | T27: 18 | U27: 7 | V27: - | W27: - | X27: 黄金北２丁目
A28: 黄金北３丁目 | B28: 797 | C28: 24 | D28: 29 | E28: 34 | F28: 56 | G28: 55 | H28: 41 | I28: 41 | J28: 47 | K28: 59 | L28: 53 | M28: 48 | N28: 60 | O28: 63 | P28: 63 | Q28: 52 | R28: 33 | S28: 20 | T28: 14 | U28: 4 | V28: 1 | W28: - | X28: 黄金北３丁目
A29: 黄金北４丁目 | B29: 711 | C29: 25 | D29: 31 | E29: 31 | F29: 53 | G29: 59 | H29: 35 | I29: 41 | J29: 55 | K29: 53 | L29: 40 | M29: 67 | N29: 58 | O29: 63 | P29: 34 | Q29: 26 | R29: 14 | S29: 13 | T29: 9 | U29: 3 | V29: 1 | W29: - | X29: 黄金北４丁目
A30: 黄金中央１ 丁目 | B30: 468 | C30: 28 | D30: 25 | E30: 18 | F30: 21 | G30: 32 | H30: 38 | I30: 48 | J30: 35 | K30: 40 | L30: 38 | M30: 12 | N30: 16 | O30: 18 | P30: 22 | Q30: 16 | R30: 19 | S30: 24 | T30: 13 | U30: 3 | V30: 2 | W30: - | X30: 黄金中央１ 丁目
A31: 黄金中央２ 丁目 | B31: 311 | C31: 7 | D31: 14 | E31: 9 | F31: 21 | G31: 46 | H31: 27 | I31: 18 | J31: 21 | K31: 19 | L31: 19 | M31: 17 | N31: 14 | O31: 20 | P31: 11 | Q31: 16 | R31: 15 | S31: 9 | T31: 5 | U31: 3 | V31: - | W31: - | X31: 黄金中央２ 丁目
A32: 黄金中央３ 丁目 | B32: 602 | C32: 33 | D32: 34 | E32: 42 | F32: 49 | G32: 55 | H32: 40 | I32: 52 | J32: 63 | K32: 55 | L32: 49 | M32: 19 | N32: 11 | O32: 24 | P32: 32 | Q32: 17 | R32: 12 | S32: 8 | T32: 5 | U32: 2 | V32: - | W32: - | X32: 黄金中央３ 丁目
A33: 黄金中央４ 丁目 | B33: 394 | C33: 6 | D33: 16 | E33: 14 | F33: 33 | G33: 34 | H33: 28 | I33: 22 | J33: 29 | K33: 29 | L33: 22 | M33: 31 | N33: 30 | O33: 46 | P33: 23 | Q33: 10 | R33: 5 | S33: 8 | T33: 3 | U33: 5 | V33: - | W33: - | X33: 黄金中央４ 丁目
A34: 黄金中央５ 丁目 | B34: - | C34: - | D34: - | E34: - | F34: - | G34: - | H34: - | I34: - | J34: - | K34: - | L34: - | M34: - | N34: - | O34: - | P34: - | Q34: - | R34: - | S34: - | T34: - | U34: - | V34: - | W34: - | X34: 黄金中央５ 丁目
A35: 黄金南１丁目 | B35: 928 | C35: 70 | D35: 105 | E35: 71 | F35: 31 | G35: 22 | H35: 27 | I35: 70 | J35: 125 | K35: 124 | L35: 58 | M35: 43 | N35: 37 | O35: 33 | P35: 41 | Q35: 25 | R35: 21 | S35: 16 | T35: 8 | U35: 1 | V35: - | W35: - | X35: 黄金南１丁目
A36: 黄金南２丁目 | B36: 682 | C36: 41 | D36: 37 | E36: 58 | F36: 39 | G36: 23 | H36: 14 | I36: 33 | J36: 61 | K36: 72 | L36: 43 | M36: 44 | N36: 26 | O36: 46 | P36: 45 | Q36: 27 | R36: 23 | S36: 20 | T36: 18 | U36: 9 | V36: 3 | W36: - | X36: 黄金南２丁目
A37: 黄金南３丁目 | B37: 877 | C37: 50 | D37: 84 | E37: 94 | F37: 76 | G37: 35 | H37: 28 | I37: 42 | J37: 95 | K37: 111 | L37: 92 | M37: 62 | N37: 30 | O37: 22 | P37: 13 | Q37: 15 | R37: 11 | S37: 11 | T37: 6 | U37: - | V37: - | W37: - | X37: 黄金南３丁目
A38: 黄金南４丁目 | B38: 896 | C38: 45 | D38: 92 | E38: 114 | F38: 66 | G38: 29 | H38: 14 | I38: 41 | J38: 93 | K38: 143 | L38: 80 | M38: 50 | N38: 20 | O38: 24 | P38: 28 | Q38: 17 | R38: 20 | S38: 9 | T38: 5 | U38: 5 | V38: 1 | W38: - | X38: 黄金南４丁目
A39: 黄金南５丁目 | B39: 255 | C39: 24 | D39: 40 | E39: 24 | F39: 6 | G39: 8 | H39: 8 | I39: 18 | J39: 40 | K39: 31 | L39: 15 | M39: 9 | N39: 5 | O39: 4 | P39: 14 | Q39: 6 | R39: 2 | S39: - | T39: 1 | U39: - | V39: - | W39: - | X39: 黄金南５丁目
A40: 黄金南６丁目 | B40: 308 | C40: 14 | D40: 33 | E40: 43 | F40: 23 | G40: 7 | H40: 9 | I40: 9 | J40: 42 | K40: 52 | L40: 32 | M40: 14 | N40: 1 | O40: 6 | P40: 6 | Q40: 12 | R40: 4 | S40: 1 | T40: - | U40: - | V40: - | W40: - | X40: 黄金南６丁目
A41: 黄金南７丁目 | B41: 818 | C41: 51 | D41: 94 | E41: 109 | F41: 47 | G41: 21 | H41: 20 | I41: 57 | J41: 103 | K41: 109 | L41: 88 | M41: 35 | N41: 18 | O41: 25 | P41: 21 | Q41: 14 | R41: 2 | S41: 2 | T41: 1 | U41: 1 | V41: - | W41: - | X41: 黄金南７丁目
A42: 相生町 | B42: 1820 | C42: 73 | D42: 50 | E42: 65 | F42: 77 | G42: 133 | H42: 141 | I42: 127 | J42: 125 | K42: 123 | L42: 141 | M42: 144 | N42: 111 | O42: 117 | P42: 111 | Q42: 94 | R42: 83 | S42: 59 | T42: 29 | U42: 12 | V42: 5 | W42: - | X42: 相生町
A43: 緑町1丁目 | B43: 158 | C43: 8 | D43: 5 | E43: 6 | F43: 6 | G43: 9 | H43: 12 | I43: 16 | J43: 13 | K43: 14 | L43: 10 | M43: 9 | N43: 6 | O43: 6 | P43: 7 | Q43: 9 | R43: 11 | S43: 5 | T43: 2 | U43: 3 | V43: 1 | W43: - | X43: 緑町1丁目
A44: 緑町2丁目 | B44: 672 | C44: 22 | D44: 28 | E44: 34 | F44: 35 | G44: 45 | H44: 27 | I44: 33 | J44: 36 | K44: 55 | L44: 41 | M44: 40 | N44: 37 | O44: 42 | P44: 59 | Q44: 46 | R44: 48 | S44: 30 | T44: 9 | U44: 4 | V44: 1 | W44: - | X44: 緑町2丁目
A45: 住吉町１ 丁目 | B45: 243 | C45: 10 | D45: 6 | E45: 6 | F45: 16 | G45: 11 | H45: 22 | I45: 10 | J45: 13 | K45: 9 | L45: 18 | M45: 18 | N45: 15 | O45: 19 | P45: 13 | Q45: 14 | R45: 17 | S45: 20 | T45: 4 | U45: 1 | V45: 1 | W45: - | X45: 住吉町１ 丁目
A46: 住吉町２ 丁目 | B46: 508 | C46: 23 | D46: 25 | E46: 18 | F46: 16 | G46: 25 | H46: 40 | I46: 35 | J46: 43 | K46: 37 | L46: 34 | M46: 34 | N46: 25 | O46: 33 | P46: 39 | Q46: 22 | R46: 27 | S46: 23 | T46: 5 | U46: 4 | V46: - | W46: - | X46: 住吉町２ 丁目
A47: 住吉町３ 丁目 | B47: 554 | C47: 39 | D47: 30 | E47: 21 | F47: 27 | G47: 18 | H47: 23 | I47: 49 | J47: 64 | K47: 54 | L47: 37 | M47: 28 | N47: 28 | O47: 38 | P47: 39 | Q47: 16 | R47: 20 | S47: 12 | T47: 8 | U47: 2 | V47: 1 | W47: - | X47: 住吉町３ 丁目
A48: 住吉町４ 丁目 | B48: 406 | C48: 16 | D48: 26 | E48: 16 | F48: 22 | G48: 21 | H48: 30 | I48: 32 | J48: 34 | K48: 25 | L48: 16 | M48: 14 | N48: 29 | O48: 34 | P48: 22 | Q48: 29 | R48: 21 | S48: 10 | T48: 9 | U48: - | V48: - | W48: - | X48: 住吉町４ 丁目
A49: 末広町 | B49: 625 | C49: 34 | D49: 32 | E49: 31 | F49: 18 | G49: 30 | H49: 44 | I49: 54 | J49: 59 | K49: 36 | L49: 40 | M49: 41 | N49: 35 | O49: 26 | P49: 36 | Q49: 23 | R49: 33 | S49: 29 | T49: 21 | U49: 1 | V49: 2 | W49: - | X49: 末広町
A50: 栄恵町 | B50: 183 | C50: 4 | D50: 3 | E50: 1 | F50: 4 | G50: 11 | H50: 18 | I50: 4 | J50: 6 | K50: 12 | L50: 16 | M50: 11 | N50: 19 | O50: 16 | P50: 16 | Q50: 11 | R50: 13 | S50: 14 | T50: 2 | U50: 1 | V50: 1 | W50: - | X50: 栄恵町
A51: 泉町 | B51: 609 | C51: 16 | D51: 12 | E51: 13 | F51: 27 | G51: 43 | H51: 58 | I51: 43 | J51: 38 | K51: 52 | L51: 50 | M51: 41 | N51: 36 | O51: 34 | P51: 49 | Q51: 31 | R51: 28 | S51: 23 | T51: 7 | U51: 8 | V51: - | W51: - | X51: 泉町
A52: 桜町１ 丁目 | B52: 260 | C52: 12 | D52: 20 | E52: 10 | F52: 4 | G52: 9 | H52: 16 | I52: 21 | J52: 22 | K52: 23 | L52: 20 | M52: 21 | N52: 14 | O52: 15 | P52: 17 | Q52: 7 | R52: 14 | S52: 10 | T52: 4 | U52: 1 | V52: - | W52: - | X52: 桜町１ 丁目
A53: 桜町２ 丁目 | B53: 788 | C53: 30 | D53: 32 | E53: 59 | F53: 48 | G53: 36 | H53: 42 | I53: 40 | J53: 61 | K53: 58 | L53: 38 | M53: 45 | N53: 41 | O53: 47 | P53: 49 | Q53: 50 | R53: 49 | S53: 38 | T53: 19 | U53: 6 | V53: - | W53: - | X53: 桜町２ 丁目
A54: 桜町３ 丁目 | B54: 320 | C54: 21 | D54: 15 | E54: 11 | F54: 13 | G54: 9 | H54: 13 | I54: 26 | J54: 24 | K54: 28 | L54: 22 | M54: 20 | N54: 11 | O54: 12 | P54: 18 | Q54: 26 | R54: 35 | S54: 11 | T54: 4 | U54: 1 | V54: - | W54: - | X54: 桜町３ 丁目
A55: 桜町４ 丁目 | B55: 1 | C55: - | D55: - | E55: - | F55: - | G55: - | H55: - | I55: - | J55: - | K55: - | L55: - | M55: - | N55: 1 | O55: - | P55: - | Q55: - | R55: - | S55: - | T55: - | U55: - | V55: - | W55: - | X55: 桜町４ 丁目
A56: 〈資料〉生活環境部市民課

Sheet 町内別年齢別人口②
X1: 平成27年9月末現在
A2: 町 名 | B2: 総数 | C2: 0歳～ 4歳 | D2: 5歳～ 9歳 | E2: 10歳～ 14歳 | F2: 15歳～ 19歳 | G2: 20歳～ 24歳 | H2: 25歳～ 29歳 | I2: 30歳～ 34歳 | J2: 35歳～ 39歳 | K2: 40歳～ 44歳 | L2: 45歳～ 49歳 | M2: 50歳～ 54歳 | N2: 55歳～59歳 | O2: 60歳～64歳 | P2: 65歳～69歳 | Q2: 70歳～74歳 | R2: 75歳～79歳 | S2: 80歳～84歳 | T2: 85歳～89歳 | U2: 90歳～94歳 | V2: 95歳～99歳 | W2: 100歳以上 | X2: 町 名
A3: 京町 | B3: 164 | C3: 9 | D3: 5 | E3: 3 | F3: 7 | G3: 6 | H3: 19 | I3: 7 | J3: 18 | K3: 23 | L3: 10 | M3: 7 | N3: 10 | O3: 7 | P3: 11 | Q3: 10 | R3: 4 | S3: 5 | T3: 3 | U3: - | V3: - | W3: - | X3: 京町
A4: 漁町 | B4: 1093 | C4: 58 | D4: 58 | E4: 25 | F4: 29 | G4: 57 | H4: 70 | I4: 98 | J4: 102 | K4: 90 | L4: 70 | M4: 43 | N4: 47 | O4: 64 | P4: 84 | Q4: 70 | R4: 57 | S4: 40 | T4: 20 | U4: 9 | V4: 2 | W4: - | X4: 漁町
A5: 福住町１ 丁目 | B5: 746 | C5: 52 | D5: 37 | E5: 32 | F5: 27 | G5: 25 | H5: 36 | I5: 59 | J5: 65 | K5: 60 | L5: 36 | M5: 32 | N5: 32 | O5: 43 | P5: 44 | Q5: 37 | R5: 53 | S5: 49 | T5: 21 | U5: 5 | V5: 1 | W5: - | X5: 福住町１ 丁目
A6: 福住町２ 丁目 | B6: 368 | C6: 12 | D6: 23 | E6: 21 | F6: 12 | G6: 9 | H6: 25 | I6: 22 | J6: 26 | K6: 29 | L6: 20 | M6: 29 | N6: 20 | O6: 13 | P6: 24 | Q6: 23 | R6: 17 | S6: 30 | T6: 10 | U6: 1 | V6: 2 | W6: - | X6: 福住町２ 丁目
A7: 福住町３ 丁目 | B7: 572 | C7: 25 | D7: 34 | E7: 15 | F7: 27 | G7: 23 | H7: 39 | I7: 32 | J7: 33 | K7: 38 | L7: 46 | M7: 29 | N7: 37 | O7: 28 | P7: 37 | Q7: 32 | R7: 39 | S7: 34 | T7: 13 | U7: 7 | V7: 4 | W7: - | X7: 福住町３ 丁目
A8: 新町 | B8: 77 | C8: 2 | D8: 5 | E8: 1 | F8: 7 | G8: 3 | H8: 3 | I8: 3 | J8: 6 | K8: 4 | L8: 8 | M8: 4 | N8: 6 | O8: 6 | P8: 8 | Q8: 1 | R8: 3 | S8: 2 | T8: 2 | U8: 2 | V8: 1 | W8: - | X8: 新町
A9: 本町 | B9: 493 | C9: 16 | D9: 16 | E9: 27 | F9: 25 | G9: 25 | H9: 17 | I9: 19 | J9: 40 | K9: 36 | L9: 36 | M9: 36 | N9: 33 | O9: 33 | P9: 41 | Q9: 28 | R9: 30 | S9: 19 | T9: 12 | U9: 2 | V9: 1 | W9: 1 | X9: 本町
A10: 有明町１丁目 | B10: 422 | C10: 11 | D10: 14 | E10: 14 | F10: 12 | G10: 19 | H10: 20 | I10: 20 | J10: 27 | K10: 29 | L10: 36 | M10: 38 | N10: 29 | O10: 26 | P10: 32 | Q10: 21 | R10: 37 | S10: 27 | T10: 7 | U10: 1 | V10: 2 | W10: - | X10: 有明町１丁目
A11: 有明町２ 丁目 | B11: 508 | C11: 20 | D11: 25 | E11: 24 | F11: 30 | G11: 20 | H11: 18 | I11: 22 | J11: 36 | K11: 38 | L11: 37 | M11: 36 | N11: 20 | O11: 43 | P11: 37 | Q11: 35 | R11: 37 | S11: 12 | T11: 12 | U11: 4 | V11: 2 | W11: - | X11: 有明町２ 丁目
A12: 有明町３ 丁目 | B12: 279 | C12: 6 | D12: 12 | E12: 12 | F12: 9 | G12: 5 | H12: 11 | I12: 8 | J12: 11 | K12: 22 | L12: 21 | M12: 6 | N12: 13 | O12: 28 | P12: 26 | Q12: 33 | R12: 33 | S12: 11 | T12: 8 | U12: 4 | V12: - | W12: - | X12: 有明町３ 丁目
A13: 有明町４ 丁目 | B13: 295 | C13: 13 | D13: 17 | E13: 13 | F13: 9 | G13: 8 | H13: 14 | I13: 19 | J13: 17 | K13: 24 | L13: 23 | M13: 14 | N13: 14 | O13: 23 | P13: 25 | Q13: 26 | R13: 16 | S13: 13 | T13: 3 | U13: 2 | V13: 2 | W13: - | X13: 有明町４ 丁目
A14: 有明町５ 丁目 | B14: 287 | C14: 19 | D14: 20 | E14: 19 | F14: 11 | G14: 12 | H14: 13 | I14: 19 | J14: 32 | K14: 17 | L14: 22 | M14: 14 | N14: 9 | O14: 19 | P14: 15 | Q14: 17 | R14: 13 | S14: 11 | T14: 3 | U14: 2 | V14: - | W14: - | X14: 有明町５ 丁目
A15: 有明町６ 丁目 | B15: 403 | C15: 11 | D15: 13 | E15: 9 | F15: 15 | G15: 13 | H15: 25 | I15: 26 | J15: 22 | K15: 31 | L15: 27 | M15: 28 | N15: 30 | O15: 28 | P15: 29 | Q15: 29 | R15: 29 | S15: 29 | T15: 6 | U15: 3 | V15: - | W15: - | X15: 有明町６ 丁目
A16: 大町１ 丁目 | B16: 206 | C16: 9 | D16: 9 | E16: 18 | F16: 8 | G16: 9 | H16: 8 | I16: 12 | J16: 16 | K16: 19 | L16: 6 | M16: 8 | N16: 8 | O16: 15 | P16: 19 | Q16: 20 | R16: 12 | S16: 7 | T16: 2 | U16: - | V16: 1 | W16: - | X16: 大町１ 丁目
A17: 大町２ 丁目 | B17: 166 | C17: 3 | D17: 10 | E17: 7 | F17: 7 | G17: 2 | H17: 7 | I17: 8 | J17: 7 | K17: 14 | L17: 10 | M17: 13 | N17: 10 | O17: 9 | P17: 8 | Q17: 15 | R17: 17 | S17: 11 | T17: 8 | U17: - | V17: - | W17: - | X17: 大町２ 丁目
A18: 大町３ 丁目 | B18: 244 | C18: 14 | D18: 11 | E18: 7 | F18: 12 | G18: 16 | H18: 5 | I18: 14 | J18: 20 | K18: 21 | L18: 17 | M18: 11 | N18: 18 | O18: 13 | P18: 19 | Q18: 17 | R18: 12 | S18: 7 | T18: 7 | U18: 3 | V18: - | W18: - | X18: 大町３ 丁目
A19: 大町４ 丁目 | B19: 173 | C19: 5 | D19: 3 | E19: 5 | F19: 9 | G19: 4 | H19: 10 | I19: 10 | J19: 8 | K19: 12 | L19: 9 | M19: 17 | N19: 11 | O19: 15 | P19: 13 | Q19: 10 | R19: 9 | S19: 8 | T19: 9 | U19: 5 | V19: 1 | W19: - | X19: 大町４ 丁目
A20: 文京町１ 丁目 | B20: 579 | C20: 23 | D20: 26 | E20: 34 | F20: 32 | G20: 27 | H20: 23 | I20: 23 | J20: 35 | K20: 38 | L20: 38 | M20: 40 | N20: 27 | O20: 52 | P20: 43 | Q20: 36 | R20: 35 | S20: 22 | T20: 13 | U20: 10 | V20: 2 | W20: - | X20: 文京町１ 丁目
A21: 文京町２ 丁目 | B21: 493 | C21: 23 | D21: 26 | E21: 37 | F21: 36 | G21: 21 | H21: 26 | I21: 20 | J21: 30 | K21: 45 | L21: 45 | M21: 43 | N21: 23 | O21: 21 | P21: 39 | Q21: 19 | R21: 20 | S21: 12 | T21: 5 | U21: 2 | V21: - | W21: - | X21: 文京町２ 丁目
A22: 文京町３ 丁目 | B22: 157 | C22: 8 | D22: 8 | E22: 20 | F22: 8 | G22: 5 | H22: 5 | I22: 10 | J22: 18 | K22: 10 | L22: 17 | M22: 9 | N22: 4 | O22: 7 | P22: 8 | Q22: 10 | R22: 4 | S22: 2 | T22: 3 | U22: 1 | V22: - | W22: - | X22: 文京町３ 丁目
A23: 文京町４ 丁目 | B23: 660 | C23: 23 | D23: 29 | E23: 39 | F23: 52 | G23: 29 | H23: 22 | I23: 37 | J23: 39 | K23: 51 | L23: 48 | M23: 53 | N23: 38 | O23: 49 | P23: 50 | Q23: 27 | R23: 30 | S23: 20 | T23: 18 | U23: 4 | V23: 2 | W23: - | X23: 文京町４ 丁目
A24: 牧場 | B24: 305 | C24: 11 | D24: 6 | E24: 9 | F24: 11 | G24: 12 | H24: 12 | I24: 7 | J24: 24 | K24: 16 | L24: 29 | M24: 23 | N24: 10 | O24: 34 | P24: 26 | Q24: 18 | R24: 23 | S24: 16 | T24: 10 | U24: 7 | V24: 1 | W24: - | X24: 牧場
A25: 盤尻 | B25: 15 | C25: - | D25: 1 | E25: 1 | F25: - | G25: - | H25: - | I25: - | J25: - | K25: 2 | L25: 1 | M25: - | N25: 1 | O25: 2 | P25: 2 | Q25: 1 | R25: 4 | S25: - | T25: - | U25: - | V25: - | W25: - | X25: 盤尻
A26: 桜森 | B26: - | C26: - | D26: - | E26: - | F26: - | G26: - | H26: - | I26: - | J26: - | K26: - | L26: - | M26: - | N26: - | O26: - | P26: - | Q26: - | R26: - | S26: - | T26: - | U26: - | V26: - | W26: - | X26: 桜森
A27: 中島町１ 丁目 | B27: 631 | C27: 31 | D27: 25 | E27: 37 | F27: 47 | G27: 34 | H27: 37 | I27: 48 | J27: 51 | K27: 58 | L27: 40 | M27: 48 | N27: 30 | O27: 31 | P27: 38 | Q27: 34 | R27: 18 | S27: 12 | T27: 9 | U27: 2 | V27: 1 | W27: - | X27: 中島町１ 丁目
A28: 中島町２ 丁目 | B28: 486 | C28: 11 | D28: 18 | E28: 17 | F28: 29 | G28: 30 | H28: 27 | I28: 36 | J28: 19 | K28: 18 | L28: 28 | M28: 34 | N28: 44 | O28: 54 | P28: 50 | Q28: 26 | R28: 14 | S28: 11 | T28: 16 | U28: 3 | V28: 1 | W28: - | X28: 中島町２ 丁目
A29: 中島町３ 丁目 | B29: 216 | C29: 9 | D29: 16 | E29: 6 | F29: 9 | G29: 17 | H29: 10 | I29: 16 | J29: 14 | K29: 19 | L29: 17 | M29: 15 | N29: 17 | O29: 18 | P29: 13 | Q29: 10 | R29: 5 | S29: 2 | T29: 3 | U29: - | V29: - | W29: - | X29: 中島町３ 丁目
A30: 中島町４ 丁目 | B30: 998 | C30: 27 | D30: 47 | E30: 46 | F30: 45 | G30: 78 | H30: 59 | I30: 59 | J30: 68 | K30: 61 | L30: 67 | M30: 58 | N30: 101 | O30: 106 | P30: 82 | Q30: 36 | R30: 22 | S30: 17 | T30: 13 | U30: 6 | V30: - | W30: - | X30: 中島町４ 丁目
A31: 中島町５ 丁目 | B31: 489 | C31: 22 | D31: 34 | E31: 27 | F31: 29 | G31: 61 | H31: 42 | I31: 36 | J31: 41 | K31: 35 | L31: 31 | M31: 22 | N31: 24 | O31: 23 | P31: 17 | Q31: 22 | R31: 10 | S31: 9 | T31: 2 | U31: 1 | V31: 1 | W31: - | X31: 中島町５ 丁目
A32: 中島町６ 丁目 | B32: 688 | C32: 32 | D32: 18 | E32: 18 | F32: 35 | G32: 42 | H32: 61 | I32: 49 | J32: 53 | K32: 37 | L32: 35 | M32: 32 | N32: 43 | O32: 59 | P32: 64 | Q32: 28 | R32: 18 | S32: 28 | T32: 22 | U32: 14 | V32: - | W32: - | X32: 中島町６ 丁目
A33: 恵央町 | B33: 719 | C33: 36 | D33: 38 | E33: 24 | F33: 20 | G33: 27 | H33: 31 | I33: 43 | J33: 37 | K33: 46 | L33: 36 | M33: 42 | N33: 35 | O33: 48 | P33: 60 | Q33: 65 | R33: 51 | S33: 41 | T33: 30 | U33: 8 | V33: 1 | W33: - | X33: 恵央町
A34: 幸町1丁目 | B34: 246 | C34: 10 | D34: 14 | E34: 8 | F34: 10 | G34: 14 | H34: 6 | I34: 5 | J34: 16 | K34: 17 | L34: 15 | M34: 21 | N34: 12 | O34: 6 | P34: 19 | Q34: 26 | R34: 24 | S34: 12 | T34: 8 | U34: 2 | V34: 1 | W34: - | X34: 幸町1丁目
A35: 幸町2丁目 | B35: 382 | C35: 9 | D35: 10 | E35: 14 | F35: 21 | G35: 20 | H35: 13 | I35: 17 | J35: 17 | K35: 30 | L35: 34 | M35: 29 | N35: 22 | O35: 28 | P35: 25 | Q35: 23 | R35: 34 | S35: 23 | T35: 9 | U35: 4 | V35: - | W35: - | X35: 幸町2丁目
A36: 幸町3丁目 | B36: 417 | C36: 8 | D36: 9 | E36: 13 | F36: 24 | G36: 24 | H36: 26 | I36: 19 | J36: 17 | K36: 18 | L36: 27 | M36: 31 | N36: 33 | O36: 43 | P36: 34 | Q36: 27 | R36: 32 | S36: 20 | T36: 9 | U36: 3 | V36: - | W36: - | X36: 幸町3丁目
A37: 幸町4丁目 | B37: 5 | C37: - | D37: - | E37: - | F37: - | G37: - | H37: - | I37: - | J37: - | K37: 1 | L37: - | M37: - | N37: - | O37: - | P37: 3 | Q37: 1 | R37: - | S37: - | T37: - | U37: - | V37: - | W37: - | X37: 幸町4丁目
A38: 柏陽町１ 丁目 | B38: 743 | C38: 26 | D38: 15 | E38: 32 | F38: 24 | G38: 24 | H38: 16 | I38: 26 | J38: 38 | K38: 44 | L38: 42 | M38: 34 | N38: 25 | O38: 65 | P38: 107 | Q38: 66 | R38: 69 | S38: 40 | T38: 32 | U38: 14 | V38: 4 | W38: - | X38: 柏陽町１ 丁目
A39: 柏陽町３ 丁目 | B39: 1606 | C39: 137 | D39: 148 | E39: 70 | F39: 50 | G39: 51 | H39: 63 | I39: 175 | J39: 161 | K39: 132 | L39: 82 | M39: 75 | N39: 80 | O39: 119 | P39: 118 | Q39: 53 | R39: 45 | S39: 27 | T39: 10 | U39: 8 | V39: 2 | W39: - | X39: 柏陽町３ 丁目
A40: 柏陽町４ 丁目 | B40: 577 | C40: 4 | D40: 9 | E40: 15 | F40: 26 | G40: 25 | H40: 13 | I40: 11 | J40: 27 | K40: 24 | L40: 36 | M40: 25 | N40: 25 | O40: 56 | P40: 78 | Q40: 71 | R40: 58 | S40: 45 | T40: 17 | U40: 10 | V40: 2 | W40: - | X40: 柏陽町４ 丁目
A41: 柏木町 | B41: 1271 | C41: 48 | D41: 48 | E41: 42 | F41: 59 | G41: 107 | H41: 111 | I41: 74 | J41: 73 | K41: 100 | L41: 82 | M41: 56 | N41: 62 | O41: 79 | P41: 93 | Q41: 62 | R41: 52 | S41: 53 | T41: 28 | U41: 28 | V41: 13 | W41: 1 | X41: 柏木町
A42: 柏木町１ 丁目 | B42: 421 | C42: 12 | D42: 14 | E42: 10 | F42: 16 | G42: 21 | H42: 14 | I42: 30 | J42: 26 | K42: 36 | L42: 30 | M42: 36 | N42: 30 | O42: 26 | P42: 34 | Q42: 31 | R42: 22 | S42: 16 | T42: 11 | U42: 6 | V42: - | W42: - | X42: 柏木町１ 丁目
A43: 柏木町２ 丁目 | B43: 266 | C43: 22 | D43: 12 | E43: 14 | F43: 14 | G43: 15 | H43: 17 | I43: 16 | J43: 16 | K43: 19 | L43: 21 | M43: 13 | N43: 14 | O43: 17 | P43: 14 | Q43: 17 | R43: 13 | S43: 7 | T43: 5 | U43: - | V43: - | W43: - | X43: 柏木町２ 丁目
A44: 柏木町３ 丁目 | B44: 589 | C44: 20 | D44: 32 | E44: 19 | F44: 22 | G44: 21 | H44: 32 | I44: 35 | J44: 45 | K44: 54 | L44: 47 | M44: 35 | N44: 44 | O44: 48 | P44: 32 | Q44: 30 | R44: 35 | S44: 19 | T44: 13 | U44: 5 | V44: 1 | W44: - | X44: 柏木町３ 丁目
A45: 北柏木町１ 丁目 | B45: 796 | C45: 44 | D45: 26 | E45: 28 | F45: 47 | G45: 63 | H45: 27 | I45: 43 | J45: 49 | K45: 56 | L45: 48 | M45: 58 | N45: 72 | O45: 78 | P45: 45 | Q45: 33 | R45: 33 | S45: 15 | T45: 24 | U45: 4 | V45: 3 | W45: - | X45: 北柏木町１ 丁目
A46: 北柏木町２ 丁目 | B46: 561 | C46: 13 | D46: 15 | E46: 19 | F46: 29 | G46: 36 | H46: 20 | I46: 21 | J46: 36 | K46: 35 | L46: 46 | M46: 30 | N46: 27 | O46: 57 | P46: 76 | Q46: 38 | R46: 26 | S46: 18 | T46: 10 | U46: 6 | V46: 3 | W46: - | X46: 北柏木町２ 丁目
A47: 北柏木町３ 丁目 | B47: 26 | C47: - | D47: 2 | E47: - | F47: - | G47: - | H47: - | I47: - | J47: 2 | K47: 2 | L47: - | M47: 1 | N47: 2 | O47: 3 | P47: 2 | Q47: 6 | R47: 2 | S47: 2 | T47: 2 | U47: - | V47: - | W47: - | X47: 北柏木町３ 丁目
A48: 北柏木町４ 丁目 | B48: 8 | C48: 1 | D48: 2 | E48: - | F48: - | G48: - | H48: - | I48: - | J48: 1 | K48: 2 | L48: - | M48: - | N48: - | O48: - | P48: 1 | Q48: 1 | R48: - | S48: - | T48: - | U48: - | V48: - | W48: - | X48: 北柏木町４ 丁目
A49: 北柏木町５ 丁目 | B49: 3 | C49: - | D49: - | E49: - | F49: - | G49: - | H49: - | I49: - | J49: - | K49: - | L49: - | M49: - | N49: - | O49: - | P49: - | Q49: 1 | R49: 1 | S49: - | T49: - | U49: - | V49: - | W49: 1 | X49: 北柏木町５ 丁目
A50: 島松沢 | B50: 14 | C50: - | D50: - | E50: - | F50: - | G50: 1 | H50: - | I50: - | J50: 1 | K50: - | L50: - | M50: 1 | N50: 3 | O50: 1 | P50: 2 | Q50: 1 | R50: 2 | S50: 1 | T50: 1 | U50: - | V50: - | W50: - | X50: 島松沢
A51: 美咲野１ 丁目 | B51: 605 | C51: 15 | D51: 22 | E51: 41 | F51: 85 | G51: 46 | H51: 31 | I51: 10 | J51: 23 | K51: 58 | L51: 98 | M51: 78 | N51: 40 | O51: 14 | P51: 17 | Q51: 11 | R51: 6 | S51: 7 | T51: 2 | U51: - | V51: 1 | W51: - | X51: 美咲野１ 丁目
A52: 美咲野２ 丁目 | B52: 373 | C52: 5 | D52: 15 | E52: 48 | F52: 55 | G52: 22 | H52: 4 | I52: 7 | J52: 20 | K52: 50 | L52: 66 | M52: 30 | N52: 12 | O52: 10 | P52: 10 | Q52: 6 | R52: 4 | S52: 4 | T52: 4 | U52: - | V52: 1 | W52: - | X52: 美咲野２ 丁目
A53: 美咲野３ 丁目 | B53: 376 | C53: 7 | D53: 13 | E53: 28 | F53: 50 | G53: 24 | H53: 14 | I53: 18 | J53: 24 | K53: 33 | L53: 55 | M53: 56 | N53: 20 | O53: 11 | P53: 5 | Q53: 2 | R53: 10 | S53: 4 | T53: 1 | U53: 1 | V53: - | W53: - | X53: 美咲野３ 丁目
A54: 美咲野４ 丁目 | B54: 294 | C54: 4 | D54: 19 | E54: 32 | F54: 43 | G54: 15 | H54: 4 | I54: 6 | J54: 10 | K54: 47 | L54: 41 | M54: 26 | N54: 15 | O54: 4 | P54: 7 | Q54: 3 | R54: 4 | S54: 8 | T54: 4 | U54: 2 | V54: - | W54: - | X54: 美咲野４ 丁目
A55: 〈資料〉生活環境部市民課

Sheet 町内別年齢別人口③
X2: 平成27年9月末現在
A3: 町 名 | B3: 総数 | C3: 0歳～ 4歳 | D3: 5歳～ 9歳 | E3: 10歳～ 14歳 | F3: 15歳～ 19歳 | G3: 20歳～ 24歳 | H3: 25歳～ 29歳 | I3: 30歳～ 34歳 | J3: 35歳～ 39歳 | K3: 40歳～ 44歳 | L3: 45歳～ 49歳 | M3: 50歳～ 54歳 | N3: 55歳～59歳 | O3: 60歳～64歳 | P3: 65歳～69歳 | Q3: 70歳～74歳 | R3: 75歳～79歳 | S3: 80歳～84歳 | T3: 85歳～89歳 | U3: 90歳～94歳 | V3: 95歳～99歳 | W3: 100歳以上 | X3: 町 名
A4: 美咲野５ 丁目 | B4: 246 | C4: 6 | D4: 13 | E4: 28 | F4: 21 | G4: 4 | H4: 4 | I4: 4 | J4: 16 | K4: 23 | L4: 23 | M4: 14 | N4: 17 | O4: 19 | P4: 9 | Q4: 11 | R4: 16 | S4: 12 | T4: 4 | U4: 1 | V4: 1 | W4: - | X4: 美咲野５ 丁目
A5: 美咲野６ 丁目 | B5: 391 | C5: 15 | D5: 35 | E5: 49 | F5: 26 | G5: 12 | H5: 4 | I5: 7 | J5: 28 | K5: 60 | L5: 47 | M5: 20 | N5: 23 | O5: 6 | P5: 15 | Q5: 20 | R5: 10 | S5: 7 | T5: 1 | U5: 5 | V5: 1 | W5: - | X5: 美咲野６ 丁目
A6: 恵み野東１ 丁目 | B6: 303 | C6: 7 | D6: 17 | E6: 11 | F6: 13 | G6: 6 | H6: 10 | I6: 17 | J6: 10 | K6: 11 | L6: 10 | M6: 16 | N6: 29 | O6: 44 | P6: 46 | Q6: 15 | R6: 14 | S6: 15 | T6: 7 | U6: 5 | V6: - | W6: - | X6: 恵み野東１ 丁目
A7: 恵み野東２ 丁目 | B7: 537 | C7: 12 | D7: 20 | E7: 24 | F7: 27 | G7: 29 | H7: 17 | I7: 20 | J7: 27 | K7: 36 | L7: 24 | M7: 33 | N7: 57 | O7: 74 | P7: 56 | Q7: 27 | R7: 17 | S7: 17 | T7: 13 | U7: 7 | V7: - | W7: - | X7: 恵み野東２ 丁目
A8: 恵み野東３ 丁目 | B8: 395 | C8: 12 | D8: 13 | E8: 18 | F8: 21 | G8: 10 | H8: 17 | I8: 17 | J8: 19 | K8: 23 | L8: 26 | M8: 23 | N8: 28 | O8: 56 | P8: 44 | Q8: 18 | R8: 22 | S8: 16 | T8: 7 | U8: 5 | V8: - | W8: - | X8: 恵み野東３ 丁目
A9: 恵み野東４ 丁目 | B9: 720 | C9: 101 | D9: 50 | E9: 35 | F9: 17 | G9: 16 | H9: 48 | I9: 92 | J9: 78 | K9: 40 | L9: 20 | M9: 36 | N9: 45 | O9: 62 | P9: 25 | Q9: 15 | R9: 16 | S9: 12 | T9: 7 | U9: 5 | V9: - | W9: - | X9: 恵み野東４ 丁目
A10: 恵み野東５ 丁目 | B10: 571 | C10: 19 | D10: 25 | E10: 27 | F10: 25 | G10: 22 | H10: 19 | I10: 25 | J10: 35 | K10: 35 | L10: 34 | M10: 41 | N10: 66 | O10: 68 | P10: 50 | Q10: 27 | R10: 19 | S10: 21 | T10: 9 | U10: 2 | V10: 2 | W10: - | X10: 恵み野東５ 丁目
A11: 恵み野東６ 丁目 | B11: 472 | C11: 11 | D11: 15 | E11: 22 | F11: 16 | G11: 24 | H11: 23 | I11: 24 | J11: 23 | K11: 19 | L11: 28 | M11: 34 | N11: 53 | O11: 61 | P11: 45 | Q11: 27 | R11: 16 | S11: 20 | T11: 6 | U11: 3 | V11: 1 | W11: 1 | X11: 恵み野東６ 丁目
A12: 恵み野東７ 丁目 | B12: 548 | C12: 15 | D12: 17 | E12: 20 | F12: 48 | G12: 49 | H12: 24 | I12: 19 | J12: 22 | K12: 32 | L12: 40 | M12: 70 | N12: 58 | O12: 53 | P12: 25 | Q12: 17 | R12: 19 | S12: 8 | T12: 6 | U12: 3 | V12: 3 | W12: - | X12: 恵み野東７ 丁目
A13: 恵み野西１ 丁目 | B13: 706 | C13: 11 | D13: 35 | E13: 25 | F13: 25 | G13: 26 | H13: 22 | I13: 27 | J13: 37 | K13: 40 | L13: 42 | M13: 33 | N13: 37 | O13: 62 | P13: 94 | Q13: 52 | R13: 43 | S13: 49 | T13: 31 | U13: 13 | V13: 1 | W13: 1 | X13: 恵み野西１ 丁目
A14: 恵み野西２ 丁目 | B14: 223 | C14: 5 | D14: 4 | E14: 4 | F14: 16 | G14: 9 | H14: 7 | I14: 13 | J14: 11 | K14: 15 | L14: 15 | M14: 13 | N14: 14 | O14: 20 | P14: 25 | Q14: 15 | R14: 13 | S14: 12 | T14: 8 | U14: 3 | V14: 1 | W14: - | X14: 恵み野西２ 丁目
A15: 恵み野西３ 丁目 | B15: 342 | C15: 4 | D15: 4 | E15: 13 | F15: 7 | G15: 6 | H15: 14 | I15: 13 | J15: 9 | K15: 15 | L15: 18 | M15: 15 | N15: 21 | O15: 40 | P15: 51 | Q15: 32 | R15: 24 | S15: 19 | T15: 25 | U15: 9 | V15: 2 | W15: 1 | X15: 恵み野西３ 丁目
A16: 恵み野西４ 丁目 | B16: 481 | C16: 8 | D16: 16 | E16: 20 | F16: 16 | G16: 12 | H16: 14 | I16: 12 | J16: 27 | K16: 23 | L16: 25 | M16: 17 | N16: 30 | O16: 52 | P16: 95 | Q16: 46 | R16: 31 | S16: 19 | T16: 14 | U16: 3 | V16: 1 | W16: - | X16: 恵み野西４ 丁目
A17: 恵み野西５ 丁目 | B17: 276 | C17: 4 | D17: 5 | E17: 15 | F17: 8 | G17: 4 | H17: 6 | I17: 9 | J17: 10 | K17: 5 | L17: 14 | M17: 10 | N17: 19 | O17: 40 | P17: 32 | Q17: 21 | R17: 14 | S17: 19 | T17: 17 | U17: 22 | V17: 2 | W17: - | X17: 恵み野西５ 丁目
A18: 恵み野西６ 丁目 | B18: 860 | C18: 14 | D18: 18 | E18: 33 | F18: 48 | G18: 35 | H18: 39 | I18: 35 | J18: 27 | K18: 35 | L18: 40 | M18: 48 | N18: 80 | O18: 96 | P18: 105 | Q18: 64 | R18: 51 | S18: 49 | T18: 29 | U18: 8 | V18: 5 | W18: 1 | X18: 恵み野西６ 丁目
A19: 恵み野南１ 丁目 | B19: 282 | C19: 5 | D19: 15 | E19: 21 | F19: 22 | G19: 7 | H19: 11 | I19: 9 | J19: 15 | K19: 27 | L19: 23 | M19: 23 | N19: 6 | O19: 11 | P19: 24 | Q19: 29 | R19: 18 | S19: 12 | T19: 3 | U19: 1 | V19: - | W19: - | X19: 恵み野南１ 丁目
A20: 恵み野南２ 丁目 | B20: 538 | C20: 6 | D20: 16 | E20: 21 | F20: 28 | G20: 20 | H20: 12 | I20: 21 | J20: 34 | K20: 31 | L20: 25 | M20: 21 | N20: 27 | O20: 48 | P20: 82 | Q20: 84 | R20: 30 | S20: 16 | T20: 12 | U20: 2 | V20: 2 | W20: - | X20: 恵み野南２ 丁目
A21: 恵み野南３ 丁目 | B21: 626 | C21: 10 | D21: 12 | E21: 29 | F21: 24 | G21: 18 | H21: 12 | I21: 16 | J21: 41 | K21: 45 | L21: 31 | M21: 21 | N21: 34 | O21: 85 | P21: 92 | Q21: 61 | R21: 40 | S21: 24 | T21: 18 | U21: 9 | V21: 3 | W21: 1 | X21: 恵み野南３ 丁目
A22: 恵み野南４ 丁目 | B22: 733 | C22: 10 | D22: 21 | E22: 45 | F22: 28 | G22: 16 | H22: 19 | I22: 25 | J22: 39 | K22: 38 | L22: 36 | M22: 42 | N22: 45 | O22: 87 | P22: 111 | Q22: 57 | R22: 36 | S22: 34 | T22: 32 | U22: 9 | V22: 3 | W22: - | X22: 恵み野南４ 丁目
A23: 恵み野北１ 丁目 | B23: 483 | C23: 4 | D23: 9 | E23: 15 | F23: 21 | G23: 18 | H23: 16 | I23: 17 | J23: 17 | K23: 19 | L23: 16 | M23: 33 | N23: 62 | O23: 62 | P23: 63 | Q23: 32 | R23: 29 | S23: 25 | T23: 18 | U23: 5 | V23: 2 | W23: - | X23: 恵み野北１ 丁目
A24: 恵み野北２ 丁目 | B24: 506 | C24: 11 | D24: 15 | E24: 15 | F24: 17 | G24: 18 | H24: 22 | I24: 25 | J24: 21 | K24: 15 | L24: 26 | M24: 35 | N24: 55 | O24: 63 | P24: 52 | Q24: 33 | R24: 25 | S24: 31 | T24: 20 | U24: 5 | V24: 2 | W24: - | X24: 恵み野北２ 丁目
A25: 恵み野北３ 丁目 | B25: 286 | C25: 5 | D25: 7 | E25: 12 | F25: 23 | G25: 16 | H25: 11 | I25: 7 | J25: 17 | K25: 12 | L25: 13 | M25: 9 | N25: 19 | O25: 43 | P25: 39 | Q25: 18 | R25: 11 | S25: 12 | T25: 9 | U25: 2 | V25: 1 | W25: - | X25: 恵み野北３ 丁目
A26: 恵み野北４ 丁目 | B26: 323 | C26: 8 | D26: 16 | E26: 16 | F26: 14 | G26: 19 | H26: 17 | I26: 16 | J26: 12 | K26: 21 | L26: 16 | M26: 18 | N26: 32 | O26: 33 | P26: 40 | Q26: 18 | R26: 14 | S26: 5 | T26: 6 | U26: 1 | V26: 1 | W26: - | X26: 恵み野北４ 丁目
A27: 恵み野北５ 丁目 | B27: 332 | C27: 10 | D27: 14 | E27: 12 | F27: 14 | G27: 18 | H27: 7 | I27: 17 | J27: 12 | K27: 19 | L27: 14 | M27: 18 | N27: 32 | O27: 34 | P27: 45 | Q27: 27 | R27: 13 | S27: 13 | T27: 8 | U27: 2 | V27: 2 | W27: 1 | X27: 恵み野北５ 丁目
A28: 恵み野北６ 丁目 | B28: 646 | C28: 17 | D28: 29 | E28: 35 | F28: 66 | G28: 58 | H28: 33 | I28: 22 | J28: 28 | K28: 49 | L28: 60 | M28: 67 | N28: 55 | O28: 43 | P28: 28 | Q28: 16 | R28: 19 | S28: 12 | T28: 5 | U28: 4 | V28: - | W28: - | X28: 恵み野北６ 丁目
A29: 恵み野北７ 丁目 | B29: 831 | C29: 10 | D29: 29 | E29: 73 | F29: 81 | G29: 74 | H29: 26 | I29: 18 | J29: 29 | K29: 54 | L29: 95 | M29: 119 | N29: 87 | O29: 45 | P29: 37 | Q29: 23 | R29: 7 | S29: 12 | T29: 8 | U29: 3 | V29: 1 | W29: - | X29: 恵み野北７ 丁目
A30: 恵み野里美１丁目 | B30: 50 | C30: - | D30: - | E30: - | F30: - | G30: - | H30: - | I30: - | J30: - | K30: - | L30: - | M30: - | N30: 3 | O30: 1 | P30: 3 | Q30: 8 | R30: 7 | S30: 11 | T30: 13 | U30: 3 | V30: 1 | W30: - | X30: 恵み野里美１丁目
A31: 恵み野里美２丁目 | B31: 379 | C31: 95 | D31: 30 | E31: 12 | F31: 5 | G31: 3 | H31: 42 | I31: 76 | J31: 39 | K31: 35 | L31: 14 | M31: 7 | N31: 5 | O31: 6 | P31: 7 | Q31: - | R31: - | S31: 1 | T31: 2 | U31: - | V31: - | W31: - | X31: 恵み野里美２丁目
A32: 島松寿町１ 丁目 | B32: 629 | C32: 11 | D32: 18 | E32: 17 | F32: 24 | G32: 21 | H32: 27 | I32: 22 | J32: 37 | K32: 35 | L32: 52 | M32: 32 | N32: 38 | O32: 44 | P32: 65 | Q32: 38 | R32: 58 | S32: 47 | T32: 34 | U32: 6 | V32: 2 | W32: 1 | X32: 島松寿町１ 丁目
A33: 島松寿町２ 丁目 | B33: 1023 | C33: 27 | D33: 22 | E33: 44 | F33: 51 | G33: 35 | H33: 33 | I33: 43 | J33: 52 | K33: 77 | L33: 58 | M33: 76 | N33: 64 | O33: 67 | P33: 93 | Q33: 95 | R33: 85 | S33: 63 | T33: 25 | U33: 12 | V33: - | W33: 1 | X33: 島松寿町２ 丁目
A34: 島松仲町１ 丁目 | B34: 267 | C34: 6 | D34: 4 | E34: 10 | F34: 14 | G34: 11 | H34: 13 | I34: 14 | J34: 14 | K34: 17 | L34: 12 | M34: 16 | N34: 21 | O34: 27 | P34: 25 | Q34: 11 | R34: 17 | S34: 17 | T34: 16 | U34: 2 | V34: - | W34: - | X34: 島松仲町１ 丁目
A35: 島松仲町２ 丁目 | B35: 219 | C35: 9 | D35: 2 | E35: 3 | F35: 7 | G35: 8 | H35: 8 | I35: 8 | J35: 2 | K35: 11 | L35: 13 | M35: 25 | N35: 10 | O35: 15 | P35: 17 | Q35: 19 | R35: 18 | S35: 28 | T35: 12 | U35: 1 | V35: 3 | W35: - | X35: 島松仲町２ 丁目
A36: 島松仲町３ 丁目 | B36: 160 | C36: 3 | D36: 5 | E36: 5 | F36: 4 | G36: 11 | H36: 2 | I36: 7 | J36: 4 | K36: 12 | L36: 11 | M36: 11 | N36: 13 | O36: 9 | P36: 14 | Q36: 11 | R36: 17 | S36: 13 | T36: 6 | U36: 2 | V36: - | W36: - | X36: 島松仲町３ 丁目
A37: 島松東町１ 丁目 | B37: 287 | C37: 10 | D37: 9 | E37: 11 | F37: 11 | G37: 14 | H37: 13 | I37: 11 | J37: 17 | K37: 16 | L37: 25 | M37: 13 | N37: 17 | O37: 21 | P37: 20 | Q37: 21 | R37: 21 | S37: 21 | T37: 10 | U37: 4 | V37: 1 | W37: 1 | X37: 島松東町１ 丁目
A38: 島松東町２ 丁目 | B38: 356 | C38: 9 | D38: 9 | E38: 10 | F38: 13 | G38: 15 | H38: 14 | I38: 14 | J38: 13 | K38: 19 | L38: 24 | M38: 21 | N38: 28 | O38: 38 | P38: 34 | Q38: 34 | R38: 26 | S38: 20 | T38: 10 | U38: 3 | V38: 2 | W38: - | X38: 島松東町２ 丁目
A39: 島松東町３ 丁目 | B39: 338 | C39: 9 | D39: 10 | E39: 20 | F39: 13 | G39: 21 | H39: 8 | I39: 5 | J39: 14 | K39: 29 | L39: 23 | M39: 29 | N39: 22 | O39: 18 | P39: 27 | Q39: 22 | R39: 33 | S39: 19 | T39: 16 | U39: - | V39: - | W39: - | X39: 島松東町３ 丁目
A40: 島松東町４ 丁目 | B40: 209 | C40: 1 | D40: 14 | E40: 8 | F40: 10 | G40: 8 | H40: 5 | I40: 11 | J40: 9 | K40: 16 | L40: 14 | M40: 10 | N40: 12 | O40: 22 | P40: 24 | Q40: 18 | R40: 14 | S40: 8 | T40: 5 | U40: - | V40: - | W40: - | X40: 島松東町４ 丁目
A41: 島松本町１ 丁目 | B41: 496 | C41: 12 | D41: 12 | E41: 26 | F41: 32 | G41: 28 | H41: 24 | I41: 20 | J41: 21 | K41: 31 | L41: 27 | M41: 50 | N41: 45 | O41: 30 | P41: 36 | Q41: 29 | R41: 21 | S41: 26 | T41: 20 | U41: 5 | V41: 1 | W41: - | X41: 島松本町１ 丁目
A42: 島松本町２ 丁目 | B42: 601 | C42: 25 | D42: 19 | E42: 32 | F42: 29 | G42: 32 | H42: 35 | I42: 33 | J42: 34 | K42: 35 | L42: 38 | M42: 45 | N42: 34 | O42: 45 | P42: 31 | Q42: 28 | R42: 36 | S42: 41 | T42: 22 | U42: 7 | V42: - | W42: - | X42: 島松本町２ 丁目
A43: 島松本町３ 丁目 | B43: 726 | C43: 26 | D43: 31 | E43: 29 | F43: 29 | G43: 35 | H43: 32 | I43: 54 | J43: 43 | K43: 57 | L43: 48 | M43: 45 | N43: 42 | O43: 48 | P43: 67 | Q43: 47 | R43: 42 | S43: 27 | T43: 15 | U43: 7 | V43: 2 | W43: - | X43: 島松本町３ 丁目
A44: 島松本町４ 丁目 | B44: 515 | C44: 14 | D44: 16 | E44: 36 | F44: 23 | G44: 12 | H44: 11 | I44: 20 | J44: 35 | K44: 38 | L44: 34 | M44: 31 | N44: 29 | O44: 33 | P44: 61 | Q44: 47 | R44: 34 | S44: 20 | T44: 18 | U44: 2 | V44: 1 | W44: - | X44: 島松本町４ 丁目
A45: 島松旭町１ 丁目 | B45: 318 | C45: 8 | D45: 12 | E45: 9 | F45: 18 | G45: 19 | H45: 10 | I45: 18 | J45: 15 | K45: 12 | L45: 17 | M45: 35 | N45: 27 | O45: 28 | P45: 34 | Q45: 19 | R45: 14 | S45: 14 | T45: 5 | U45: 4 | V45: - | W45: - | X45: 島松旭町１ 丁目
A46: 島松旭町２ 丁目 | B46: 339 | C46: 10 | D46: 17 | E46: 21 | F46: 21 | G46: 10 | H46: 12 | I46: 15 | J46: 16 | K46: 26 | L46: 27 | M46: 17 | N46: 20 | O46: 39 | P46: 30 | Q46: 14 | R46: 15 | S46: 16 | T46: 10 | U46: 2 | V46: 1 | W46: - | X46: 島松旭町２ 丁目
A47: 島松旭町３ 丁目 | B47: 331 | C47: 7 | D47: 22 | E47: 43 | F47: 42 | G47: 15 | H47: 5 | I47: 13 | J47: 23 | K47: 47 | L47: 36 | M47: 31 | N47: 12 | O47: 13 | P47: 13 | Q47: 3 | R47: 3 | S47: 2 | T47: 1 | U47: - | V47: - | W47: - | X47: 島松旭町３ 丁目
A48: 島松旭町４ 丁目 | B48: 392 | C48: 6 | D48: 11 | E48: 17 | F48: 20 | G48: 17 | H48: 10 | I48: 28 | J48: 18 | K48: 24 | L48: 15 | M48: 28 | N48: 22 | O48: 28 | P48: 46 | Q48: 36 | R48: 37 | S48: 14 | T48: 10 | U48: 4 | V48: 1 | W48: - | X48: 島松旭町４ 丁目
A49: 西島松 | B49: 677 | C49: 17 | D49: 18 | E49: 16 | F49: 38 | G49: 94 | H49: 78 | I49: 58 | J49: 37 | K49: 48 | L49: 29 | M49: 29 | N49: 19 | O49: 26 | P49: 44 | Q49: 43 | R49: 34 | S49: 23 | T49: 17 | U49: 6 | V49: 1 | W49: 2 | X49: 西島松
A50: 南島松 | B50: 237 | C50: 2 | D50: 3 | E50: 4 | F50: 6 | G50: 5 | H50: 6 | I50: 9 | J50: 10 | K50: 9 | L50: 5 | M50: 11 | N50: 21 | O50: 29 | P50: 21 | Q50: 9 | R50: 13 | S50: 23 | T50: 33 | U50: 15 | V50: 3 | W50: - | X50: 南島松
A51: 中島松 | B51: 160 | C51: 4 | D51: 3 | E51: 4 | F51: 6 | G51: 7 | H51: 8 | I51: 4 | J51: 8 | K51: 6 | L51: 4 | M51: 13 | N51: 8 | O51: 20 | P51: 22 | Q51: 11 | R51: 8 | S51: 12 | T51: 9 | U51: 3 | V51: - | W51: - | X51: 中島松
A52: 下 島 松 | B52: 305 | C52: 3 | D52: 8 | E52: 9 | F52: 9 | G52: 14 | H52: 6 | I52: 10 | J52: 10 | K52: 15 | L52: 14 | M52: 25 | N52: 20 | O52: 27 | P52: 34 | Q52: 22 | R52: 27 | S52: 33 | T52: 15 | U52: 4 | V52: - | W52: - | X52: 下 島 松
A53: 穂 栄 | B53: 102 | C53: 4 | D53: 5 | E53: - | F53: - | G53: 3 | H53: 2 | I53: 3 | J53: 4 | K53: 7 | L53: 7 | M53: 3 | N53: 2 | O53: 9 | P53: 7 | Q53: 15 | R53: 17 | S53: 7 | T53: 3 | U53: 2 | V53: 2 | W53: - | X53: 穂 栄
A54: 北 島 | B54: 93 | C54: - | D54: 6 | E54: 8 | F54: 5 | G54: 2 | H54: 3 | I54: 1 | J54: 6 | K54: 4 | L54: 2 | M54: 10 | N54: 6 | O54: 8 | P54: 6 | Q54: 3 | R54: 9 | S54: 10 | T54: 1 | U54: 3 | V54: - | W54: - | X54: 北 島
A55: 合計 | B55: 68974 | C55: 2687 | D55: 3139 | E55: 3405 | F55: 3697 | G55: 3556 | H55: 3264 | I55: 3805 | J55: 4644 | K55: 5215 | L55: 4725 | M55: 4420 | N55: 4177 | O55: 5002 | P55: 5240 | Q55: 3852 | R55: 3314 | S55: 2559 | T55: 1516 | U55: 588 | V55: 154 | W55: 15 | X55: 合 計
A56: 〈資料〉生活環境部市民課

Sheet 人口動態、外国人登録人口
A1: ５）人口動態(届出数)
K2: (各年･月中)
A3: 年 月 | B3: 増 減 | C3: 自 然 動 態 | F3: 社 会 動 態 | I3: 職権による | L3: 婚 姻 | M3: 離 婚
B4: 人 口 | C4: 出 生 | D4: 死 亡 | E4: 増 減 | F4: 転 入 | G4: 転 出 | H4: 増 減 | I4: 増 加 | J4: 減 少 | K4: 増 減
A5: 17年 | B5: 415 | C5: 578 | D5: 438 | E5: 140 | F5: 3604 | G5: 3471 | H5: 291 | I5: 30 | J5: 46 | K5: △ 16 | L5: 673 | M5: 183
A6: 18年 | B6: 396 | C6: 568 | D6: 434 | E6: 134 | F6: 3718 | G6: 3463 | H6: 247 | I6: 29 | J6: 14 | K6: 15 | L6: 777 | M6: 226
A7: 19年 | B7: 473 | C7: 618 | D7: 490 | E7: 128 | F7: 3575 | G7: 3257 | H7: 318 | I7: 35 | J7: 8 | K7: 27 | L7: 740 | M7: 225
A8: 20年 | B8: 167 | C8: 576 | D8: 496 | E8: 80 | F8: 3481 | G8: 3417 | H8: 64 | I8: 32 | J8: 9 | K8: 23 | L8: 813 | M8: 230
A9: 21年 | B9: △ 31 | C9: 552 | D9: 501 | E9: 51 | F9: 3178 | G9: 3278 | H9: △ 100 | I9: 28 | J9: 10 | K9: 18 | L9: 773 | M9: 227
A10: 22年 | B10: 143 | C10: 551 | D10: 499 | E10: 52 | F10: 3046 | G10: 2976 | H10: 70 | I10: 23 | J10: 2 | K10: 21 | L10: 843 | M10: 245
A11: 23年 | B11: 64 | C11: 523 | D11: 500 | E11: 23 | F11: 3012 | G11: 2996 | H11: 16 | I11: 29 | J11: 4 | K11: 25 | L11: 744 | M11: 213
A12: 24年 | B12: 242 | C12: 508 | D12: 590 | E12: -82 | F12: 2945 | G12: 2871 | H12: 74 | I12: 264 | J12: 14 | K12: 250 | L12: 775 | M12: 224
A13: 25年 | B13: -294 | C13: 510 | D13: 583 | E13: -73 | F13: 2956 | G13: 3159 | H13: -203 | I13: 17 | J13: 35 | K13: -18 | L13: 744 | M13: 203
A14: 26年 | B14: 63 | C14: 498 | D14: 607 | E14: -109 | F14: 3194 | G14: 3014 | H14: 180 | I14: 19 | J14: 27 | K14: -8 | L14: 698 | M14: 205
A15: 27年 | B15: 117 | C15: 495 | D15: 667 | E15: -172 | F15: 3286 | G15: 2990 | H15: 296 | I15: 26 | J15: 33 | K15: -7 | L15: 698 | M15: 203
A16: 1月 | B16: 2 | C16: 41 | D16: 56 | E16: -15 | F16: 141 | G16: 120 | H16: 21 | I16: 3 | J16: 7 | K16: -4 | L16: 44 | M16: 16
A17: 2月 | B17: -3 | C17: 39 | D17: 52 | E17: -13 | F17: 172 | G17: 160 | H17: 12 | I17: - | J17: 2 | K17: -2 | L17: 51 | M17: 21
A18: 3月 | B18: -57 | C18: 39 | D18: 56 | E18: -17 | F18: 727 | G18: 763 | H18: -36 | I18: 2 | J18: 6 | K18: -4 | L18: 80 | M18: 31
A19: 4月 | B19: 35 | C19: 44 | D19: 42 | E19: 2 | F19: 462 | G19: 433 | H19: 29 | I19: 6 | J19: 2 | K19: 4 | L19: 51 | M19: 17
A20: 5月 | B20: 6 | C20: 42 | D20: 49 | E20: -7 | F20: 191 | G20: 179 | H20: 12 | I20: 1 | J20: - | K20: 1 | L20: 66 | M20: 11
A21: 6月 | B21: 49 | C21: 42 | D21: 50 | E21: -8 | F21: 214 | G21: 156 | H21: 58 | I21: 1 | J21: 2 | K21: -1 | L21: 66 | M21: 11
A22: 7月 | B22: 79 | C22: 45 | D22: 60 | E22: -15 | F22: 283 | G22: 184 | H22: 99 | I22: 1 | J22: 6 | K22: -5 | L22: 65 | M22: 14
A23: 8月 | B23: -40 | C23: 42 | D23: 66 | E23: -24 | F23: 256 | G23: 271 | H23: -15 | I23: 3 | J23: 4 | K23: -1 | L23: 56 | M23: 20
A24: 9月 | B24: -53 | C24: 38 | D24: 58 | E24: -20 | F24: 237 | G24: 270 | H24: -33 | I24: 2 | J24: 2 | K24: - | L24: 51 | M24: 17
A25: 10月 | B25: 61 | C25: 41 | D25: 64 | E25: -23 | F25: 230 | G25: 150 | H25: 80 | I25: 5 | J25: 1 | K25: 4 | L25: 48 | M25: 12
A26: 11月 | B26: -21 | C26: 33 | D26: 67 | E26: -34 | F26: 165 | G26: 152 | H26: 13 | I26: 1 | J26: 1 | K26: - | L26: 62 | M26: 12
A27: 12月 | B27: 59 | C27: 49 | D27: 47 | E27: 2 | F27: 208 | G27: 152 | H27: 56 | I27: 1 | J27: - | K27: 1 | L27: 58 | M27: 21
A28: 〈資料〉生活環境部市民課
A29: 注) 婚姻､離婚の件数は､恵庭市で受理した分と他市町村で受理して恵庭市に送付された分との 合算である。
A33: ６）外国人住民の人口
I34: (各年度３月)
A35: 区 分 | C35: 平成22年度 | F35: 平成23年度 | I35: 平成24年度
C36: 計 | D36: 男 | E36: 女 | F36: 計 | G36: 男 | H36: 女 | I36: 計 | J36: 男 | K36: 女
A37: 韓国、朝鮮 | C37: 67 | D37: 32 | E37: 35 | F37: 55 | G37: 27 | H37: 28 | I37: 52 | J37: 27 | K37: 25
A38: 中国 | C38: 106 | D38: 37 | E38: 69 | F38: 139 | G38: 43 | H38: 96 | I38: 120 | J38: 41 | K38: 79
A39: フィリピン | C39: 15 | D39: 3 | E39: 12 | F39: 13 | G39: 3 | H39: 10 | I39: 11 | J39: 2 | K39: 9
A40: アメリカ | C40: 10 | D40: 9 | E40: 1 | F40: 9 | G40: 8 | H40: 1 | I40: 5 | J40: 4 | K40: 1
A41: ロシア | C41: 7 | D41: 3 | E41: 4 | F41: 4 | G41: 3 | H41: 1 | I41: 3 | J41: 2 | K41: 1
A42: その他 | C42: 26 | D42: 11 | E42: 15 | F42: 29 | G42: 12 | H42: 17 | I42: 29 | J42: 12 | K42: 17
A43: 合計 | C43: =SUM(C37:C42) -> 231 | D43: 95 | E43: 136 | F43: 249 | G43: 96 | H43: 153 | I43: =SUM(J37:K42) -> 220 | J43: =SUM(J37:J42) -> 88 | K43: =SUM(K37:K42) -> 132
A45: 区 分 | C45: 平成25年度 | F45: 平成26年度 | I45: 平成27年度
C46: 計 | D46: 男 | E46: 女 | F46: 計 | G46: 男 | H46: 女 | I46: 計 | J46: 男 | K46: 女
A47: 韓国、朝鮮 | C47: 47 | D47: 24 | E47: 23 | F47: 47 | G47: 24 | H47: 23 | I47: 50 | J47: 27 | K47: 23
A48: 中国 | C48: 135 | D48: 48 | E48: 87 | F48: 101 | G48: 41 | H48: 60 | I48: 102 | J48: 37 | K48: 65
A49: フィリピン | C49: 13 | D49: 2 | E49: 11 | F49: 14 | G49: 3 | H49: 11 | I49: 30 | J49: 7 | K49: 23
A50: アメリカ | C50: 4 | D50: 3 | E50: 1 | F50: 6 | G50: 6 | H50: - | I50: 6 | J50: 6 | K50: -
A51: ロシア | C51: 1 | D51: - | E51: 1 | F51: 1 | G51: - | H51: 1 | I51: 1 | J51: - | K51: 1
A52: その他 | C52: 35 | D52: 15 | E52: 20 | F52: 38 | G52: 21 | H52: 17 | I52: 54 | J52: 33 | K52: 21
A53: 合計 | C53: =SUM(C47:C52) -> 235 | D53: 92 | E53: 143 | F53: 207 | G53: 95 | H53: 112 | I53: =SUM(I47:I52) -> 243 | J53: =SUM(J47:J52) -> 110 | K53: =SUM(K47:K52) -> 133
A54: 〈資料〉生活環境部市民課
A55: 注）平成２４年７月９日から外国人の方も住民基本台帳法の対象となり、 平成２４年７月末からの「町名別人口調べ」が外国人住民を含む集計となりました。
B57: ＊年度末集計に変更

Sheet 社会動態（道内）
A1: ７）社会動態（道内）
L2: （各年中）
A3: 区 分 | C3: 23 年 | E3: 24 年 | G3: 25 年 | I3: 26年 | K3: 27年
C4: 転 入 | D4: 転 出 | E4: 転 入 | F4: 転 出 | G4: 転 入 | H4: 転 出 | I4: 転 入 | J4: 転 出 | K4: 転 入 | L4: 転 出
A5: 全道計 | C5: 2404 | D5: 2276 | E5: 2235 | F5: 2083 | G5: 2242 | H5: 2308 | I5: 2536 | J5: 2186 | K5: 2516 | L5: 2138
A7: 市部計 | C7: 1976 | D7: 2003 | E7: 1886 | F7: 1798 | G7: 1900 | H7: 2057 | I7: 2137 | J7: 1897 | K7: 2107 | L7: 1894
A9: 札幌 | C9: 754 | D9: 831 | E9: 656 | F9: 856 | G9: 694 | H9: 988 | I9: 804 | J9: 906 | K9: 763 | L9: 908
B10: 中央区 | C10: 100 | D10: 99 | E10: 87 | F10: 102 | G10: 88 | H10: 148 | I10: 79 | J10: 118 | K10: 67 | L10: 147
B11: 北区 | C11: 59 | D11: 63 | E11: 64 | F11: 71 | G11: 60 | H11: 100 | I11: 76 | J11: 89 | K11: 77 | L11: 90
B12: 東区 | C12: 79 | D12: 110 | E12: 66 | F12: 97 | G12: 69 | H12: 114 | I12: 78 | J12: 97 | K12: 73 | L12: 120
B13: 白石区 | C13: 115 | D13: 124 | E13: 88 | F13: 145 | G13: 104 | H13: 144 | I13: 106 | J13: 121 | K13: 115 | L13: 123
B14: 豊平区 | C14: 114 | D14: 114 | E14: 94 | F14: 122 | G14: 96 | H14: 130 | I14: 86 | J14: 116 | K14: 90 | L14: 129
B15: 南区 | C15: 73 | D15: 73 | E15: 64 | F15: 74 | G15: 82 | H15: 77 | I15: 175 | J15: 96 | K15: 108 | L15: 92
B16: 西区 | C16: 62 | D16: 83 | E16: 48 | F16: 46 | G16: 57 | H16: 67 | I16: 45 | J16: 62 | K16: 60 | L16: 45
B17: 厚別区 | C17: 67 | D17: 72 | E17: 47 | F17: 85 | G17: 67 | H17: 92 | I17: 68 | J17: 96 | K17: 81 | L17: 87
B18: 手稲区 | C18: 39 | D18: 37 | E18: 28 | F18: 37 | G18: 18 | H18: 40 | I18: 23 | J18: 43 | K18: 42 | L18: 29
B19: 清田区 | C19: 46 | D19: 56 | E19: 70 | F19: 77 | G19: 53 | H19: 76 | I19: 68 | J19: 68 | K19: 50 | L19: 46
A20: 函館 | C20: 46 | D20: 46 | E20: 43 | F20: 39 | G20: 64 | H20: 62 | I20: 55 | J20: 40 | K20: 57 | L20: 56
A21: 小樽 | C21: 33 | D21: 18 | E21: 23 | F21: 17 | G21: 31 | H21: 25 | I21: 26 | J21: 16 | K21: 30 | L21: 13
A22: 旭川 | C22: 85 | D22: 87 | E22: 88 | F22: 66 | G22: 58 | H22: 62 | I22: 97 | J22: 67 | K22: 107 | L22: 75
A23: 室蘭 | C23: 28 | D23: 27 | E23: 29 | F23: 20 | G23: 28 | H23: 28 | I23: 34 | J23: 19 | K23: 24 | L23: 24
A24: 釧路 | C24: 44 | D24: 22 | E24: 29 | F24: 17 | G24: 46 | H24: 27 | I24: 43 | J24: 21 | K24: 41 | L24: 17
A25: 帯広 | C25: 52 | D25: 33 | E25: 59 | F25: 53 | G25: 55 | H25: 38 | I25: 40 | J25: 41 | K25: 80 | L25: 53
A26: 北見 | C26: 18 | D26: 14 | E26: 27 | F26: 13 | G26: 22 | H26: 29 | I26: 27 | J26: 23 | K26: 20 | L26: 19
A27: 夕張 | C27: 4 | D27: 4 | E27: 11 | F27: 3 | G27: 10 | H27: 0 | I27: 5 | J27: 5 | K27: 17 | L27: -
A28: 岩見沢 | C28: 32 | D28: 33 | E28: 27 | F28: 36 | G28: 48 | H28: 26 | I28: 43 | J28: 34 | K28: 38 | L28: 22
A29: 網走 | C29: 11 | D29: 13 | E29: 8 | F29: 10 | G29: 5 | H29: 4 | I29: 19 | J29: 6 | K29: 17 | L29: 6
A30: 留萌 | C30: 9 | D30: 6 | E30: 7 | F30: 10 | G30: 11 | H30: 6 | I30: 26 | J30: 7 | K30: 16 | L30: 5
A31: 苫小牧 | C31: 96 | D31: 108 | E31: 98 | F31: 97 | G31: 94 | H31: 109 | I31: 121 | J31: 87 | K31: 104 | L31: 93
A32: 稚内 | C32: 9 | D32: 8 | E32: 18 | F32: 6 | G32: 15 | H32: 6 | I32: 8 | J32: 8 | K32: 14 | L32: 6
A33: 美唄 | C33: 7 | D33: 12 | E33: 10 | F33: 8 | G33: 14 | H33: 12 | I33: 17 | J33: 12 | K33: 13 | L33: 7
A34: 芦別 | C34: 0 | D34: 0 | E34: 3 | F34: 1 | G34: 6 | H34: 1 | I34: 2 | J34: 0 | K34: 6 | L34: 1
A35: 江別 | C35: 70 | D35: 54 | E35: 63 | F35: 52 | G35: 54 | H35: 28 | I35: 43 | J35: 50 | K35: 57 | L35: 57
A36: 赤平 | C36: 6 | D36: 1 | E36: 2 | F36: 1 | G36: 2 | H36: 0 | I36: 4 | J36: 1 | K36: 3 | L36: 3
A37: 紋別 | C37: 6 | D37: 3 | E37: 7 | F37: 2 | G37: 2 | H37: 3 | I37: 8 | J37: 5 | K37: 10 | L37: 1
A38: 士別 | C38: 5 | D38: 4 | E38: 3 | F38: 5 | G38: 5 | H38: 2 | I38: 8 | J38: 2 | K38: 5 | L38: 3
A39: 名寄 | C39: 21 | D39: 19 | E39: 26 | F39: 30 | G39: 30 | H39: 20 | I39: 31 | J39: 30 | K39: 23 | L39: 14
A40: 三笠 | C40: 4 | D40: 3 | E40: 3 | F40: 3 | G40: 3 | H40: 4 | I40: 1 | J40: 1 | K40: 5 | L40: 3
A41: 根室 | C41: 7 | D41: 4 | E41: 9 | F41: 2 | G41: 3 | H41: 5 | I41: 11 | J41: 4 | K41: 8 | L41: 2
A42: 千歳 | C42: 407 | D42: 445 | E42: 444 | F42: 286 | G42: 419 | H42: 409 | I42: 486 | J42: 362 | K42: 440 | L42: 318
A43: 滝川 | C43: 12 | D43: 16 | E43: 23 | F43: 13 | G43: 10 | H43: 9 | I43: 20 | J43: 12 | K43: 21 | L43: 10
A44: 砂川 | C44: 10 | D44: 6 | E44: 3 | F44: 3 | G44: 5 | H44: 5 | I44: 5 | J44: 2 | K44: 6 | L44: 1
A45: 歌志内 | C45: 0 | D45: 3 | E45: 2 | F45: 1 | G45: 0 | H45: 0 | I45: 1 | J45: 0 | K45: - | L45: 1
A46: 深川 | C46: 8 | D46: 2 | E46: 3 | F46: 1 | G46: 3 | H46: 4 | I46: 5 | J46: 4 | K46: 4 | L46: 7
A47: 富良野 | C47: 11 | D47: 9 | E47: 7 | F47: 7 | G47: 15 | H47: 4 | I47: 2 | J47: 4 | K47: 15 | L47: 15
A48: 登別 | C48: 48 | D48: 32 | E48: 30 | F48: 19 | G48: 32 | H48: 25 | I48: 33 | J48: 24 | K48: 17 | L48: 33
A49: 伊達 | C49: 8 | D49: 10 | E49: 11 | F49: 9 | G49: 14 | H49: 16 | I49: 8 | J49: 12 | K49: 13 | L49: 4
A50: 北広島 | C50: 82 | D50: 110 | E50: 88 | F50: 85 | G50: 74 | H50: 82 | I50: 90 | J50: 75 | K50: 106 | L50: 85
A51: 石狩 | C51: 22 | D51: 11 | E51: 14 | F51: 23 | G51: 15 | H51: 10 | I51: 11 | J51: 8 | K51: 19 | L51: 22
A52: 北斗 | C52: 20 | D52: 8 | E52: 12 | F52: 4 | G52: 13 | H52: 8 | I52: 3 | J52: 9 | K52: 7 | L52: 9
A54: 郡部計 | C54: 443 | D54: 307 | E54: 428 | F54: 273 | G54: 342 | H54: 251 | I54: 399 | J54: 289 | K54: 409 | L54: 244
A55: 〈資料〉北海道統計 | K55: （単位：人）
A56: 注）北海道による住民基本台帳移動報告については「外国人住民」を含めていない。

Sheet 社会動態（道外）
A1: ８）社会動態（道外）
J2: （各年中）
A3: 区 分 | B3: 23 年 | D3: 24 年 | F3: 25 年 | H3: 26 年 | J3: 27 年
B4: 転 入 | C4: 転 出 | D4: 転 入 | E4: 転 出 | F4: 転 入 | G4: 転 出 | H4: 転 入 | I4: 転 出 | J4: 転 入 | K4: 転 出
A5: 総数 | B5: 3011 | C5: 2975 | D5: 2920 | E5: 2803 | F5: =SUM(F7:F9) -> 2872 | G5: =SUM(G7:G9) -> 3095 | H5: 3121 | I5: 2946 | J5: 3189 | K5: 2941
A7: 道内 | B7: 2404 | C7: 2276 | D7: 2235 | E7: 2083 | F7: 2242 | G7: 2308 | H7: 2536 | I7: 2186 | J7: 2516 | K7: 2138
A8: 道外 | B8: 572 | C8: 649 | D8: 641 | E8: 694 | F8: 579 | G8: 731 | H8: 536 | I8: 701 | J8: 609 | K8: 740
A9: 国外 | B9: 35 | C9: 50 | D9: 44 | E9: 26 | F9: 51 | G9: 56 | H9: 49 | I9: 59 | J9: 64 | K9: 63
A11: 東北 | B11: 99 | C11: 70 | D11: 80 | E11: 86 | F11: 81 | G11: 104 | H11: 90 | I11: 97 | J11: 94 | K11: 79
A12: 関東 | B12: 264 | C12: 385 | D12: 346 | E12: 358 | F12: 260 | G12: 391 | H12: 257 | I12: 346 | J12: 278 | K12: 404
A13: （うち東京都） | B13: (71) | C13: (125) | D13: -103 | E13: -155 | F13: -76 | G13: -132 | H13: -93 | I13: -106 | J13: -90 | K13: -149
A14: （うち神奈川県） | B14: (71) | C14: (90) | D14: -67 | E14: -79 | F14: -58 | G14: -101 | H14: -71 | I14: -100 | J14: -55 | K14: -84
A15: 北陸 | B15: 16 | C15: 11 | D15: 8 | E15: 12 | F15: 13 | G15: 16 | H15: 9 | I15: 8 | J15: 20 | K15: 10
A16: 中部 | B16: 79 | C16: 44 | D16: 77 | E16: 73 | F16: 69 | G16: 73 | H16: 91 | I16: 106 | J16: 81 | K16: 94
A17: 近畿 | B17: 42 | C17: 63 | D17: 71 | E17: 82 | F17: 71 | G17: 73 | H17: 42 | I17: 63 | J17: 66 | K17: 65
A18: 中国 | B18: 10 | C18: 18 | D18: 13 | E18: 10 | F18: 16 | G18: 14 | H18: 9 | I18: 18 | J18: 17 | K18: 30
A19: 四国 | B19: 7 | C19: 4 | D19: 3 | E19: 7 | F19: 9 | G19: 5 | H19: 6 | I19: 8 | J19: 11 | K19: 11
A20: 九州 | B20: 44 | C20: 46 | D20: 34 | E20: 54 | F20: 45 | G20: 45 | H20: 24 | I20: 39 | J20: 41 | K20: 42
A21: 沖縄 | B21: 11 | C21: 8 | D21: 9 | E21: 12 | F21: 15 | G21: 10 | H21: 8 | I21: 16 | J21: 1 | K21: 5
A22: 〈資料〉北海道統計 | J22: （単位：人）
A23: 注）住所設定（従前の住所無）により転入したものを除く。
A24: 注）北陸は新潟･富山･石川･福井の４県、中部は山梨･長野･岐阜･静岡･愛知の５県、近畿は滋賀・京都・ 大阪･兵庫･奈良･和歌山･三重の２府５県として集計した｡
A26: 注）北海道による住民基本台帳移動報告については「外国人住民」を含めていない。

Sheet 全道各市の人口
A1: ９）全道各市の人口（人口順）
J3: （各年1月1日）
A4: 順 位 | B4: 区 分 | C4: 平 成 2 7 年 | G4: 区 分 | H4: 平 成 2 8 年 | L4: 総数比較
C5: 人 口 | F5: 世帯数 | H5: 人 口 | K5: 世帯数
C6: 総 数 | D6: 男 | E6: 女 | H6: 総 数 | I6: 男 | J6: 女
B7: 全道 | C7: 5408756 | D7: 2558545 | E7: 2850211 | F7: 2718933 | G7: 全道 | H7: 5376211 | I7: 2542092 | J7: 2834119 | K7: 2730079 | L7: ↘
B8: 市部 | C8: 4397982 | D8: 2072526 | E8: 2325456 | F8: 2247111 | G8: 市部 | H8: 4381279 | I8: 2063315 | J8: 2317964 | K8: 2259905
B9: 郡部 | C9: 1010774 | D9: 486019 | E9: 524755 | F9: 471822 | G9: 郡部 | H9: 994932 | I9: 478777 | J9: 516155 | K9: 470174
A11: 1 | B11: 札幌市 | C11: 1926287 | D11: 902802 | E11: 1023485 | F11: 1008265 | G11: 札幌市 | H11: 1931518 | I11: 904474 | J11: 1027044 | K11: 1018860 | L11: ↗
B12: 中央区 | C12: 224928 | D12: 101791 | E12: 123137 | F12: 132090 | G12: 中央区 | H12: 228172 | I12: 103213 | J12: 124959 | K12: 134787
B13: 北区 | C13: 280033 | D13: 132988 | E13: 147045 | F13: 144211 | G13: 北区 | H13: 280894 | I13: 133200 | J13: 147694 | K13: 145653
B14: 東区 | C14: 257110 | D14: 122337 | E14: 134773 | F14: 135739 | G14: 東区 | H14: 258469 | I14: 122936 | J14: 135533 | K14: 137444
B15: 白石区 | C15: 209324 | D15: 99898 | E15: 109426 | F15: 115818 | G15: 白石区 | H15: 209774 | I15: 100020 | J15: 109754 | K15: 116935
B16: 豊平区 | C16: 216931 | D16: 101034 | E16: 115897 | F16: 119538 | G16: 豊平区 | H16: 217810 | I16: 101330 | J16: 116480 | K16: 120788
B17: 南区 | C17: 141262 | D17: 65819 | E17: 75443 | F17: 71463 | G17: 南区 | H17: 140312 | I17: 65275 | J17: 75037 | K17: 71713
B18: 西区 | C18: 211711 | D18: 98133 | E18: 113578 | F18: 108703 | G18: 西区 | H18: 211912 | I18: 98084 | J18: 113828 | K18: 109471
B19: 厚別区 | C19: 129058 | D19: 59469 | E19: 69589 | F19: 62898 | G19: 厚別区 | H19: 128665 | I19: 59247 | J19: 69418 | K19: 63346
B20: 手稲区 | C20: 141009 | D20: 66696 | E20: 74313 | F20: 66580 | G20: 手稲区 | H20: 140896 | I20: 66644 | J20: 74252 | K20: 67055
B21: 清田区 | C21: 114921 | D21: 54637 | E21: 60284 | F21: 51225 | G21: 清田区 | H21: 114614 | I21: 54525 | J21: 60089 | K21: 51668
A22: 2 | B22: 旭川市 | C22: 346507 | D22: 161096 | E22: 185411 | F22: 175912 | G22: 旭川市 | H22: 344500 | I22: 160054 | J22: 184446 | K22: 177265 | L22: ↘
A23: 3 | B23: 函館市 | C23: 270674 | D23: 123546 | E23: 147128 | F23: 142997 | G23: 函館市 | H23: 267751 | I23: 122063 | J23: 145688 | K23: 143003 | L23: ↘
A24: 4 | B24: 釧路市 | C24: 177921 | D24: 83955 | E24: 93966 | F24: 94188 | G24: 釧路市 | H24: 176039 | I24: 83032 | J24: 93007 | K24: 94312 | L24: ↘
A25: 5 | B25: 苫小牧市 | C25: 173632 | D25: 84740 | E25: 88892 | F25: 86018 | G25: 苫小牧市 | H25: 173317 | I25: 84614 | J25: 88703 | K25: 86489 | L25: ↘
A26: 6 | B26: 帯広市 | C26: 168255 | D26: 80341 | E26: 87914 | F26: 84657 | G26: 帯広市 | H26: 167994 | I26: 80116 | J26: 87878 | K26: 85522 | L26: ↘
A27: 7 | B27: 小樽市 | C27: 124553 | D27: 56249 | E27: 68304 | F27: 65433 | G27: 小樽市 | H27: 122438 | I27: 55280 | J27: 67158 | K27: 64924 | L27: ↘
A28: 8 | B28: 北見市 | C28: 121866 | D28: 57917 | E28: 63949 | F28: 61017 | G28: 北見市 | H28: 120727 | I28: 57348 | J28: 63379 | K28: 61118 | L28: ↘
A29: 9 | B29: 江別市 | C29: 119822 | D29: 56999 | E29: 62823 | F29: 54944 | G29: 江別市 | H29: 119092 | I29: 56604 | J29: 62488 | K29: 55249 | L29: ↘
A30: 10 | B30: 千歳市 | C30: 95112 | D30: 48381 | E30: 46731 | F30: 46282 | G30: 千歳市 | H30: 95442 | I30: 48528 | J30: 46914 | K30: 46896 | L30: ↗
A31: 11 | B31: 室蘭市 | C31: 89512 | D31: 42897 | E31: 46615 | F31: 46986 | G31: 室蘭市 | H31: 88302 | I31: 42346 | J31: 45956 | K31: 46651 | L31: ↘
A32: 12 | B32: 岩見沢市 | C32: 85936 | D32: 40331 | E32: 45605 | F32: 42138 | G32: 岩見沢市 | H32: 84691 | I32: 39644 | J32: 45047 | K32: 41901 | L32: ↘
A33: 13 | B33: 恵庭市 | C33: 68731 | D33: 33485 | E33: 35246 | F33: 31165 | G33: 恵庭市 | H33: 68834 | I33: 33513 | J33: 35321 | K33: 31599 | L33: ↗
A34: 14 | B34: 北広島市 | C34: 59485 | D34: 28627 | E34: 30858 | F34: 26604 | G34: 北広島市 | H34: 59194 | I34: 28494 | J34: 30700 | K34: 26791 | L34: ↘
A35: 15 | B35: 石狩市 | C35: 59218 | D35: 28675 | E35: 30543 | F35: 26867 | G35: 石狩市 | H35: 58929 | I35: 28512 | J35: 30417 | K35: 26959 | L35: ↘
A36: 16 | B36: 登別市 | C36: 50462 | D36: 24073 | E36: 26389 | F36: 24938 | G36: 登別市 | H36: 49983 | I36: 23804 | J36: 26179 | K36: 24932 | L36: ↘
A37: 17 | B37: 北斗市 | C37: 47867 | D37: 22601 | E37: 25266 | F37: 21741 | G37: 北斗市 | H37: 47490 | I37: 22378 | J37: 25112 | K37: 21829 | L37: ↘
A38: 18 | B38: 滝川市 | C38: 41844 | D38: 19729 | E38: 22115 | F38: 21340 | G38: 滝川市 | H38: 41487 | I38: 19584 | J38: 21903 | K38: 21388 | L38: ↘
A39: 19 | B39: 網走市 | C39: 37553 | D39: 18478 | E39: 19075 | F39: 18329 | G39: 網走市 | H39: 37165 | I39: 18302 | J39: 18863 | K39: 18338 | L39: ↘
A40: 20 | B40: 稚内市 | C40: 36500 | D40: 17915 | E40: 18585 | F40: 18375 | G40: 稚内市 | H40: 35866 | I40: 17635 | J40: 18231 | K40: 18168 | L40: ↘
A41: 21 | B41: 伊達市 | C41: 35712 | D41: 16702 | E41: 19010 | F41: 17814 | G41: 伊達市 | H41: 35441 | I41: 16547 | J41: 18894 | K41: 17841 | L41: ↘
A42: 22 | B42: 名寄市 | C42: 29031 | D42: 14133 | E42: 14898 | F42: 14317 | G42: 名寄市 | H42: 28568 | I42: 13932 | J42: 14636 | K42: 14246 | L42: ↘
A43: 23 | B43: 根室市 | C43: 27793 | D43: 13364 | E43: 14429 | F43: 12780 | G43: 根室市 | H43: 27350 | I43: 13167 | J43: 14183 | K43: 12689 | L43: ↘
A44: 24 | B44: 美唄市 | C44: 23935 | D44: 11319 | E44: 12616 | F44: 12258 | G44: 美唄市 | H44: 23343 | I44: 11038 | J44: 12305 | K44: 12141 | L44: ↘
A45: 25 | B45: 紋別市 | C45: 23355 | D45: 11065 | E45: 12290 | F45: 11916 | G45: 紋別市 | H45: 22964 | I45: 10904 | J45: 12060 | K45: 11835 | L45: ↘
A46: 26 | B46: 富良野市 | C46: 23177 | D46: 10949 | E46: 12228 | F46: 10903 | G46: 富良野市 | H46: 22834 | I46: 10801 | J46: 12033 | K46: 10872 | L46: ↘
A47: 27 | B47: 留萌市 | C47: 22867 | D47: 10944 | E47: 11923 | F47: 11844 | G47: 留萌市 | H47: 22412 | I47: 10701 | J47: 11711 | K47: 11748 | L47: ↘
A48: 28 | B48: 深川市 | C48: 22225 | D48: 10371 | E48: 11854 | F48: 11102 | G48: 深川市 | H48: 21847 | I48: 10182 | J48: 11665 | K48: 11025 | L48: ↘
A49: 29 | B49: 士別市 | C49: 20637 | D49: 9751 | E49: 10886 | F49: 9720 | G49: 士別市 | H49: 20166 | I49: 9517 | J49: 10649 | K49: 9638 | L49: ↘
A50: 30 | B50: 砂川市 | C50: 18082 | D50: 8407 | E50: 9675 | F50: 9025 | G50: 砂川市 | H50: 17769 | I50: 8235 | J50: 9534 | K50: 8992 | L50: ↘
A51: 31 | B51: 芦別市 | C51: 15362 | D51: 7029 | E51: 8333 | F51: 8217 | G51: 芦別市 | H51: 14940 | I51: 6837 | J51: 8103 | K51: 8076 | L51: ↘
A52: 32 | B52: 赤平市 | C52: 11332 | D52: 5180 | E52: 6152 | F52: 6284 | G52: 赤平市 | H52: 10973 | I52: 5029 | J52: 5944 | K52: 6177 | L52: ↘
A53: 33 | B53: 三笠市 | C53: 9505 | D53: 4290 | E53: 5215 | F53: 5314 | G53: 三笠市 | H53: 9229 | I53: 4164 | J53: 5065 | K53: 5210 | L53: ↘
A54: 34 | B54: 夕張市 | C54: 9409 | D54: 4418 | E54: 4991 | F54: 5288 | G54: 夕張市 | H54: 9024 | I54: 4230 | J54: 4794 | K54: 5151 | L54: ↘
A55: 35 | B55: 歌志内市 | C55: 3823 | D55: 1767 | E55: 2056 | F55: 2133 | G55: 歌志内市 | H55: 3660 | I55: 1706 | J55: 1954 | K55: 2070 | L55: ↘
A56: 〈資料〉北海道統計 | J56: （単位：人）
A57: 注）北海道による住民基本台帳移動報告については「外国人住民」を含めていない。

Sheet 国調人口推移
A1: ２．国勢調査人口
A3: １) 人口の推移（年次別）
F4: （各年10月1日）
A5: 年 | C5: 世帯数 | D5: 人 口 | G5: 前回比
D6: 男 | E6: 女 | F6: 総 数
A7: 大正 | B7: 9年 | C7: 1227 | D7: 3522 | E7: 3443 | F7: 6965 | G7: -
A8: 大正 | B8: 14年 | C8: 1269 | D8: 3711 | E8: 3645 | F8: 7356 | G8: 5.6
A9: 昭和 | B9: 5年 | C9: 1391 | D9: 4203 | E9: 4005 | F9: 8208 | G9: 11.6
B10: 10年 | C10: 1467 | D10: 4329 | E10: 4250 | F10: 8579 | G10: 4.5
B11: 15年 | C11: 1590 | D11: 4806 | E11: 4623 | F11: 9429 | G11: 9.9
B12: 22年 | C12: 2321 | D12: 6717 | E12: 6305 | F12: 13022 | G12: 38.1
B13: 2年 | C13: 2311 | D13: 7923 | E13: 6533 | F13: 14456 | G13: 11
B14: 30年 | C14: 3765 | D14: 13850 | E14: 9530 | F14: 23380 | G14: 61.7
B15: 35年 | C15: 5085 | D15: 15244 | E15: 11398 | F15: 26642 | G15: 14
B16: 40年 | C16: 6863 | D16: 16459 | E16: 13850 | F16: 30309 | G16: 13.8
B17: 45年 | C17: 8710 | D17: 18139 | E17: 16310 | F17: 34449 | G17: 13.7
B18: 50年 | C18: 10806 | D18: 20836 | E18: 19048 | F18: 39884 | G18: 15.8
B19: 55年 | C19: 12321 | D19: 22072 | E19: 20839 | F19: 42911 | G19: 7.6
B20: 60年 | C20: 14220 | D20: 24474 | E20: 23831 | F20: 48305 | G20: 12.6
A21: 平成 | B21: 2年 | C21: 17528 | D21: 27980 | E21: 27635 | F21: 55615 | G21: 15.1
B22: 7年 | C22: 21383 | D22: 31376 | E22: 30975 | F22: 62351 | G22: 12.1
B23: 12年 | C23: 23660 | D23: =32503 -> 32503 | E23: 32736 | F23: =D23+E23 -> 65239 | G23: 4.6
B24: 17年 | C24: 25662 | D24: 33317 | E24: 34297 | F24: =SUM(D24:E24) -> 67614 | G24: 3.6
B25: 22年 | C25: 27634 | D25: 33945 | E25: 35439 | F25: 69384 | G25: 2.6
A26: 〈資料〉総務省 国勢調査 | F26: （単位：人）

Sheet 地域の人口①
A1: ２）地域の人口
J2: （各年10月1日）
A3: 町名 | B3: 平成17年国勢調査 | F3: 平成22年国勢調査 | J3: 比較
B4: 世帯数 | C4: 男 | D4: 女 | E4: 計 | F4: 世帯数 | G4: 男 | H4: 女 | I4: 計 | J4: 世帯数 | K4: 人口
A5: 合計 | B5: 25662 | C5: 33317 | D5: 34297 | E5: 67614 | F5: 27634 | G5: 33945 | H5: 35439 | I5: 69384 | J5: =$F5-$B5 -> 1972 | K5: =$I5-$E5 -> 1770
A6: 漁太 | B6: 57 | C6: 92 | D6: 93 | E6: 185 | F6: 54 | G6: 79 | H6: 80 | I6: 159 | J6: =$F6-$B6 -> -3 | K6: -26
A7: 林田 | B7: 17 | C7: 28 | D7: 31 | E7: 59 | F7: 16 | G7: 25 | H7: 21 | I7: 46 | J7: -1 | K7: -13
A8: 春日 | B8: 60 | C8: 88 | D8: 87 | E8: 175 | F8: 52 | G8: 79 | H8: 69 | I8: 148 | J8: -8 | K8: -27
A9: 中央 | B9: 64 | C9: 98 | D9: 96 | E9: 194 | F9: 60 | G9: 91 | H9: 86 | I9: 177 | J9: -4 | K9: -17
A10: 上山口 | B10: 72 | C10: 120 | D10: 128 | E10: 248 | F10: 67 | G10: 92 | H10: 106 | I10: 198 | J10: -5 | K10: -50
A11: 戸磯 | B11: 1128 | C11: 1533 | D11: 1501 | E11: 3034 | F11: 52 | G11: 58 | H11: 81 | I11: 139 | J11: -1076 | K11: -2895
A12: 恵南 | B12: 232 | C12: 530 | D12: 312 | E12: 842 | F12: 229 | G12: 422 | H12: 296 | I12: 718 | J12: -3 | K12: -124
A13: 和光町１丁目 | B13: 170 | C13: 211 | D13: 221 | E13: 432 | F13: 173 | G13: 200 | H13: 210 | I13: 410 | J13: 3 | K13: -22
A14: 和光町２丁目 | B14: 210 | C14: 297 | D14: 278 | E14: 575 | F14: 209 | G14: 303 | H14: 275 | I14: 578 | J14: -1 | K14: 3
A15: 和光町３丁目 | B15: 199 | C15: 245 | D15: 284 | E15: 529 | F15: 192 | G15: 229 | H15: 249 | I15: 478 | J15: -7 | K15: -51
A16: 和光町４丁目 | B16: 164 | C16: 208 | D16: 226 | E16: 434 | F16: 204 | G16: 231 | H16: 246 | I16: 477 | J16: =F16-B16 -> 40 | K16: =I16-E16 -> 43
A17: 和光町５丁目 | B17: - | C17: - | D17: - | E17: - | F17: 321 | G17: 367 | H17: 342 | I17: 709 | J17: - | K17: -
A18: 駒場町１丁目 | B18: 258 | C18: 315 | D18: 317 | E18: 632 | F18: 284 | G18: 315 | H18: 314 | I18: 629 | J18: =$F18-$B18 -> 26 | K18: =$I18-$E18 -> -3
A19: 駒場町２丁目 | B19: 128 | C19: 147 | D19: 170 | E19: 317 | F19: 140 | G19: 183 | H19: 189 | I19: 372 | J19: =$F19-$B19 -> 12 | K19: =$I19-$E19 -> 55
A20: 駒場町３丁目 | B20: 91 | C20: 119 | D20: 139 | E20: 258 | F20: 94 | G20: 117 | H20: 126 | I20: 243 | J20: 3 | K20: -15
A21: 駒場町４丁目 | B21: 122 | C21: 167 | D21: 182 | E21: 349 | F21: 134 | G21: 178 | H21: 173 | I21: 351 | J21: 12 | K21: 2
A22: 駒場町５丁目 | B22: 95 | C22: 117 | D22: 106 | E22: 223 | F22: 94 | G22: 110 | H22: 104 | I22: 214 | J22: -1 | K22: -9
A23: 駒場町６丁目 | B23: 110 | C23: 143 | D23: 140 | E23: 283 | F23: 112 | G23: 147 | H23: 148 | I23: 295 | J23: 2 | K23: 12
A24: 白樺町１丁目 | B24: 138 | C24: 178 | D24: 181 | E24: 359 | F24: 152 | G24: 191 | H24: 198 | I24: 389 | J24: 14 | K24: 30
A25: 白樺町２丁目 | B25: 154 | C25: 208 | D25: 161 | E25: 369 | F25: 143 | G25: 178 | H25: 152 | I25: 330 | J25: -11 | K25: -39
A26: 白樺町３丁目 | B26: 216 | C26: 344 | D26: 348 | E26: 692 | F26: 220 | G26: 311 | H26: 338 | I26: 649 | J26: 4 | K26: -43
A27: 白樺町４丁目 | B27: 15 | C27: 63 | D27: 26 | E27: 89 | F27: 16 | G27: 40 | H27: 35 | I27: 75 | J27: 1 | K27: -14
A28: 黄金南１丁目 | B28: 962 | C28: 1125 | D28: 1168 | E28: 2293 | F28: 290 | G28: 404 | H28: 427 | I28: 831 | J28: 1512 | K28: 3943
A29: 黄金南２丁目 | F29: 241 | G29: 308 | H29: 318 | I29: 626
A30: 黄金南３丁目 | F30: 256 | G30: 353 | H30: 373 | I30: 726
A31: 黄金南４丁目 | F31: 263 | G31: 428 | H31: 400 | I31: 828
A32: 黄金南５丁目 | F32: 85 | G32: 104 | H32: 120 | I32: 224
A33: 黄金南６丁目 | F33: 91 | G33: 148 | H33: 142 | I33: 290
A34: 黄金南７丁目 | F34: 266 | G34: 373 | H34: 390 | I34: 763
A35: 黄金中央１丁目 | F35: 207 | G35: 216 | H35: 207 | I35: 423
A36: 黄金中央２丁目 | F36: 224 | G36: 181 | H36: 203 | I36: 384
A37: 黄金中央３丁目 | F37: 333 | G37: 304 | H37: 310 | I37: 614
A38: 黄金中央４丁目 | F38: 218 | G38: 277 | H38: 250 | I38: 527
A39: 黄金中央５丁目 | F39: - | G39: - | H39: - | I39: -
A40: 黄金北１丁目 | B40: 234 | C40: 277 | D40: 254 | E40: 531 | F40: 284 | G40: 313 | H40: 303 | I40: 616 | J40: =F40-B40 -> 50 | K40: =$I40-$E40 -> 85
A41: 黄金北２丁目 | B41: - | C41: - | D41: - | E41: - | F41: 226 | G41: 251 | H41: 285 | I41: 536 | J41: - | K41: -
A42: 黄金北３丁目 | B42: 327 | C42: 407 | D42: 411 | E42: 818 | F42: 320 | G42: 383 | H42: 419 | I42: 802 | J42: =$F42-$B42 -> -7 | K42: =$I42-$E42 -> -16
A43: 黄金北４丁目 | B43: 318 | C43: 371 | D43: 396 | E43: 767 | F43: 345 | G43: 368 | H43: 403 | I43: 771 | J43: =$F43-$B43 -> 27 | K43: =$I43-$E43 -> 4
A44: 相生町 | B44: 805 | C44: 809 | D44: 832 | E44: 1641 | F44: 940 | G44: 895 | H44: 906 | I44: 1801 | J44: =$F44-$B44 -> 135 | K44: =$I44-$E44 -> 160
A45: 緑町１丁目 | B45: 391 | C45: 429 | D45: 488 | E45: 917 | F45: 98 | G45: 96 | H45: 78 | I45: 174 | J45: =(F45+F46)-B45 -> 26 | K45: =(I45+I46)-E45 -> -12
A46: 緑町２丁目 | F46: 319 | G46: 333 | H46: 398 | I46: 731
A47: 住吉町１丁目 | B47: 95 | C47: 123 | D47: 119 | E47: 242 | F47: 104 | G47: 118 | H47: 129 | I47: 247 | J47: =$F47-$B47 -> 9 | K47: =$I47-$E47 -> 5
A48: 住吉町２丁目 | B48: 227 | C48: 303 | D48: 316 | E48: 619 | F48: 268 | G48: 320 | H48: 336 | I48: 656 | J48: =$F48-$B48 -> 41 | K48: =$I48-$E48 -> 37
A49: 住吉町３丁目 | B49: 200 | C49: 234 | D49: 221 | E49: 455 | F49: 232 | G49: 259 | H49: 277 | I49: 536 | J49: 32 | K49: 81
A50: 住吉町４丁目 | B50: 148 | C50: 188 | D50: 211 | E50: 399 | F50: 154 | G50: 182 | H50: 219 | I50: 401 | J50: 6 | K50: 2
A51: 末広町 | B51: 251 | C51: 251 | D51: 265 | E51: 516 | F51: 273 | G51: 269 | H51: 308 | I51: 577 | J51: 22 | K51: 61
A52: 栄恵町 | B52: 91 | C52: 88 | D52: 98 | E52: 186 | F52: 95 | G52: 84 | H52: 85 | I52: 169 | J52: 4 | K52: -17
A53: 泉町 | B53: 289 | C53: 280 | D53: 277 | E53: 557 | F53: 340 | G53: 331 | H53: 290 | I53: 621 | J53: 51 | K53: 64
A54: 桜町１丁目 | B54: 197 | C54: 245 | D54: 210 | E54: 455 | F54: 161 | G54: 200 | H54: 156 | I54: 356 | J54: -36 | K54: -99
A55: 桜町２丁目 | B55: 362 | C55: 406 | D55: 457 | E55: 863 | F55: 374 | G55: 375 | H55: 468 | I55: 843 | J55: 12 | K55: -20
A56: 〈資料〉総務省 国勢調査 | J56: （単位：人）
A57: 注）和光町5丁目は戸磯から、黄金北2丁目･黄金中央1～5丁目･黄金南1～7丁目は黄金町及び戸磯の一部から分割
A58: した新住居表示である。

Sheet 地域の人口②
J1: （各年10月1日）
A2: 町名 | B2: 平成17年国勢調査 | F2: 平成22年国勢調査 | J2: 比較
B3: 世帯数 | C3: 男 | D3: 女 | E3: 計 | F3: 世帯数 | G3: 男 | H3: 女 | I3: 計 | J3: 世帯数 | K3: 人口
A4: 桜町３丁目 | B4: 123 | C4: 173 | D4: 155 | E4: 328 | F4: 147 | G4: 202 | H4: 178 | I4: 380 | J4: =$F4-$B4 -> 24 | K4: =$I4-$E4 -> 52
A5: 桜町４丁目 | B5: 2 | C5: - | D5: 2 | E5: 2 | F5: - | G5: - | H5: - | I5: - | J5: △ 2 | K5: △ 2
A6: 京町 | B6: 36 | C6: 40 | D6: 49 | E6: 89 | F6: 59 | G6: 56 | H6: 59 | I6: 115 | J6: 23 | K6: 26
A7: 漁町 | B7: 491 | C7: 526 | D7: 525 | E7: 1051 | F7: 523 | G7: 519 | H7: 522 | I7: 1041 | J7: 32 | K7: -10
A8: 福住町１丁目 | B8: 330 | C8: 414 | D8: 456 | E8: 870 | F8: 327 | G8: 398 | H8: 433 | I8: 831 | J8: -3 | K8: -39
A9: 福住町２丁目 | B9: 171 | C9: 187 | D9: 203 | E9: 390 | F9: 162 | G9: 165 | H9: 200 | I9: 365 | J9: -9 | K9: -25
A10: 福住町３丁目 | B10: 239 | C10: 279 | D10: 285 | E10: 564 | F10: 220 | G10: 239 | H10: 274 | I10: 513 | J10: -19 | K10: -51
A11: 新町 | B11: 57 | C11: 70 | D11: 33 | E11: 103 | F11: 55 | G11: 63 | H11: 38 | I11: 101 | J11: =$F11-$B11 -> -2 | K11: =$I11-$E11 -> -2
A12: 本町 | B12: 207 | C12: 252 | D12: 251 | E12: 503 | F12: 216 | G12: 257 | H12: 257 | I12: 514 | J12: 9 | K12: 11
A13: 有明町１丁目 | B13: 242 | C13: 263 | D13: 278 | E13: 541 | F13: 230 | G13: 234 | H13: 251 | I13: 485 | J13: -12 | K13: -56
A14: 有明町２丁目 | B14: 200 | C14: 252 | D14: 245 | E14: 497 | F14: 210 | G14: 251 | H14: 271 | I14: 522 | J14: 10 | K14: 25
A15: 有明町３丁目 | B15: 125 | C15: 152 | D15: 178 | E15: 330 | F15: 121 | G15: 129 | H15: 156 | I15: 285 | J15: -4 | K15: -45
A16: 有明町４丁目 | B16: 124 | C16: 162 | D16: 161 | E16: 323 | F16: 123 | G16: 147 | H16: 171 | I16: 318 | J16: -1 | K16: -5
A17: 有明町５丁目 | B17: 108 | C17: 130 | D17: 119 | E17: 249 | F17: 115 | G17: 133 | H17: 132 | I17: 265 | J17: 7 | K17: 16
A18: 有明町６丁目 | B18: 177 | C18: 205 | D18: 209 | E18: 414 | F18: 175 | G18: 207 | H18: 201 | I18: 408 | J18: -2 | K18: -6
A19: 大町１丁目 | B19: 92 | C19: 105 | D19: 110 | E19: 215 | F19: 87 | G19: 102 | H19: 111 | I19: 213 | J19: -5 | K19: -2
A20: 大町２丁目 | B20: 78 | C20: 87 | D20: 96 | E20: 183 | F20: 81 | G20: 85 | H20: 78 | I20: 163 | J20: 3 | K20: -20
A21: 大町３丁目 | B21: 83 | C21: 104 | D21: 111 | E21: 215 | F21: 92 | G21: 121 | H21: 117 | I21: 238 | J21: 9 | K21: 23
A22: 大町４丁目 | B22: 86 | C22: 97 | D22: 106 | E22: 203 | F22: 89 | G22: 105 | H22: 111 | I22: 216 | J22: 3 | K22: 13
A23: 文京町１丁目 | B23: 204 | C23: 264 | D23: 284 | E23: 548 | F23: 217 | G23: 269 | H23: 297 | I23: 566 | J23: 13 | K23: 18
A24: 文京町２丁目 | B24: 163 | C24: 235 | D24: 247 | E24: 482 | F24: 170 | G24: 220 | H24: 255 | I24: 475 | J24: 7 | K24: -7
A25: 文京町３丁目 | B25: 50 | C25: 62 | D25: 62 | E25: 124 | F25: 74 | G25: 87 | H25: 77 | I25: 164 | J25: 24 | K25: 40
A26: 文京町４丁目 | B26: 222 | C26: 306 | D26: 323 | E26: 629 | F26: 212 | G26: 296 | H26: 303 | I26: 599 | J26: -10 | K26: -30
A27: 牧場 | B27: 100 | C27: 175 | D27: 166 | E27: 341 | F27: 100 | G27: 161 | H27: 156 | I27: 317 | J27: - | K27: -24
A28: 美咲野１丁目 | B28: 171 | C28: 278 | D28: 314 | E28: 592 | F28: 187 | G28: 296 | H28: 322 | I28: 618 | J28: 16 | K28: 26
A29: 美咲野２丁目 | B29: 115 | C29: 198 | D29: 200 | E29: 398 | F29: 116 | G29: 188 | H29: 201 | I29: 389 | J29: 1 | K29: -9
A30: 美咲野３丁目 | B30: 105 | C30: 187 | D30: 170 | E30: 357 | F30: 129 | G30: 203 | H30: 193 | I30: 396 | J30: 24 | K30: 39
A31: 美咲野４丁目 | B31: 88 | C31: 154 | D31: 139 | E31: 293 | F31: 93 | G31: 158 | H31: 156 | I31: 314 | J31: 5 | K31: 21
A32: 美咲野５丁目 | B32: 84 | C32: 116 | D32: 128 | E32: 244 | F32: 90 | G32: 116 | H32: 131 | I32: 247 | J32: 6 | K32: 3
A33: 美咲野６丁目 | B33: 89 | C33: 119 | D33: 143 | E33: 262 | F33: 120 | G33: 189 | H33: 194 | I33: 383 | J33: 31 | K33: 121
A34: 盤尻 | B34: 6 | C34: 10 | D34: 5 | E34: 15 | F34: 8 | G34: 9 | H34: 8 | I34: 17 | J34: 2 | K34: 2
A35: 桜森 | B35: - | C35: - | D35: - | E35: - | F35: - | G35: - | H35: - | I35: - | J35: - | K35: -
A36: 中島町１丁目 | B36: 260 | C36: 308 | D36: 328 | E36: 636 | F36: 268 | G36: 330 | H36: 331 | I36: 661 | J36: =$F36-$B36 -> 8 | K36: =$I36-$E36 -> 25
A37: 中島町２丁目 | B37: 179 | C37: 291 | D37: 265 | E37: 556 | F37: 203 | G37: 286 | H37: 295 | I37: 581 | J37: =$F37-$B37 -> 24 | K37: =$I37-$E37 -> 25
A38: 中島町３丁目 | B38: 52 | C38: 86 | D38: 74 | E38: 160 | F38: 70 | G38: 100 | H38: 95 | I38: 195 | J38: 18 | K38: 35
A39: 中島町４丁目 | B39: 480 | C39: 560 | D39: 569 | E39: 1129 | F39: 516 | G39: 558 | H39: 566 | I39: 1124 | J39: 36 | K39: -5
A40: 中島町５丁目 | B40: 278 | C40: 223 | D40: 208 | E40: 431 | F40: 318 | G40: 283 | H40: 238 | I40: 521 | J40: 40 | K40: 90
A41: 中島町６丁目 | B41: 314 | C41: 381 | D41: 380 | E41: 761 | F41: 355 | G41: 353 | H41: 420 | I41: 773 | J41: 41 | K41: 12
A42: 恵央町 | B42: 330 | C42: 301 | D42: 371 | E42: 672 | F42: 321 | G42: 271 | H42: 352 | I42: 623 | J42: -9 | K42: -49
A43: 幸町１丁目 | B43: 408 | C43: 542 | D43: 535 | E43: 1077 | F43: 85 | G43: 110 | H43: 108 | I43: 218 | J43: 6 | K43: 5
A44: 幸町２丁目 | F44: 152 | G44: 208 | H44: 208 | I44: 416
A45: 幸町３丁目 | F45: 177 | G45: 201 | H45: 247 | I45: 448
A46: 幸町４丁目 | F46: - | G46: - | H46: - | I46: -
A47: 柏陽町１丁目 | B47: 329 | C47: 382 | D47: 422 | E47: 804 | F47: 334 | G47: 362 | H47: 387 | I47: 749 | J47: =$F47-$B47 -> 5 | K47: =$I47-$E47 -> -55
A48: 柏陽町３丁目 | B48: 445 | C48: 563 | D48: 555 | E48: 1118 | F48: 513 | G48: 602 | H48: 591 | I48: 1193 | J48: 68 | K48: 75
A49: 柏陽町４丁目 | B49: 315 | C49: 321 | D49: 380 | E49: 701 | F49: 325 | G49: 298 | H49: 349 | I49: 647 | J49: 10 | K49: -54
A50: 柏木町 | B50: 951 | C50: 1506 | D50: 1255 | E50: 2761 | F50: 997 | G50: 1441 | H50: 1232 | I50: 2673 | J50: 46 | K50: -88
A51: 北柏木町１丁目 | B51: 482 | C51: 669 | D51: 717 | E51: 1386 | F51: 492 | G51: 646 | H51: 686 | I51: 1332 | J51: 10 | K51: -54
A52: 北柏木町３丁目 | B52: 11 | C52: 13 | D52: 11 | E52: 24 | F52: 10 | G52: 14 | H52: 12 | I52: 26 | J52: -1 | K52: 2
A53: 〈資料〉総務省 国勢調査 | I53: （単位：人）

Sheet 地域の人口③
J1: （各年10月1日）
A2: 町名 | B2: 平成17年国勢調査 | F2: 平成22年国勢調査 | J2: 比較
B3: 世帯数 | C3: 男 | D3: 女 | E3: 計 | F3: 世帯数 | G3: 男 | H3: 女 | I3: 計 | J3: 世帯数 | K3: 人口
A4: 北柏木町４丁目 | B4: 1 | C4: 2 | D4: 1 | E4: 3 | F4: - | G4: - | H4: - | I4: - | J4: △ 1 | K4: △ 3
A5: 北柏木町５丁目 | B5: 2 | C5: 2 | D5: 1 | E5: 3 | F5: - | G5: - | H5: - | I5: - | J5: △ 2 | K5: △ 3
A6: 島松沢 | B6: 13 | C6: 14 | D6: 12 | E6: 26 | F6: 11 | G6: 12 | H6: 11 | I6: 23 | J6: =$F6-$B6 -> -2 | K6: =$I6-$E6 -> -3
A7: 恵み野東１丁目 | B7: 104 | C7: 139 | D7: 169 | E7: 308 | F7: 109 | G7: 133 | H7: 159 | I7: 292 | J7: =$F7-$B7 -> 5 | K7: =$I7-$E7 -> -16
A8: 恵み野東２丁目 | B8: 191 | C8: 280 | D8: 298 | E8: 578 | F8: 205 | G8: 272 | H8: 288 | I8: 560 | J8: 14 | K8: -18
A9: 恵み野東３丁目 | B9: 136 | C9: 190 | D9: 216 | E9: 406 | F9: 145 | G9: 182 | H9: 203 | I9: 385 | J9: 9 | K9: -21
A10: 恵み野東４丁目 | B10: 128 | C10: 190 | D10: 197 | E10: 387 | F10: 128 | G10: 182 | H10: 196 | I10: 378 | J10: - | K10: -9
A11: 恵み野東５丁目 | B11: 196 | C11: 274 | D11: 296 | E11: 570 | F11: 216 | G11: 297 | H11: 286 | I11: 583 | J11: 20 | K11: 13
A12: 恵み野東６丁目 | B12: 168 | C12: 250 | D12: 251 | E12: 501 | F12: 170 | G12: 235 | H12: 231 | I12: 466 | J12: 2 | K12: -35
A13: 恵み野東７丁目 | B13: 187 | C13: 322 | D13: 311 | E13: 633 | F13: 181 | G13: 281 | H13: 287 | I13: 568 | J13: -6 | K13: -65
A14: 恵み野西１丁目 | B14: 282 | C14: 319 | D14: 401 | E14: 720 | F14: 285 | G14: 303 | H14: 388 | I14: 691 | J14: 3 | K14: -29
A15: 恵み野西２丁目 | B15: 87 | C15: 119 | D15: 178 | E15: 297 | F15: 97 | G15: 116 | H15: 172 | I15: 288 | J15: 10 | K15: -9
A16: 恵み野西３丁目 | B16: 142 | C16: 173 | D16: 201 | E16: 374 | F16: 143 | G16: 168 | H16: 182 | I16: 350 | J16: 1 | K16: -24
A17: 恵み野西４丁目 | B17: 178 | C17: 208 | D17: 255 | E17: 463 | F17: 179 | G17: 206 | H17: 242 | I17: 448 | J17: 1 | K17: -15
A18: 恵み野西５丁目 | B18: 100 | C18: 118 | D18: 146 | E18: 264 | F18: 104 | G18: 157 | H18: 194 | I18: 351 | J18: 4 | K18: 87
A19: 恵み野西６丁目 | B19: 315 | C19: 404 | D19: 485 | E19: 889 | F19: 317 | G19: 472 | H19: 467 | I19: 939 | J19: 2 | K19: 50
A20: 恵み野南１丁目 | B20: 212 | C20: 265 | D20: 287 | E20: 552 | F20: 162 | G20: 190 | H20: 212 | I20: 402 | J20: -50 | K20: -150
A21: 恵み野南２丁目 | B21: 215 | C21: 273 | D21: 304 | E21: 577 | F21: 213 | G21: 261 | H21: 304 | I21: 565 | J21: -2 | K21: -12
A22: 恵み野南３丁目 | B22: 239 | C22: 301 | D22: 342 | E22: 643 | F22: 244 | G22: 300 | H22: 328 | I22: 628 | J22: 5 | K22: -15
A23: 恵み野南４丁目 | B23: 277 | C23: 337 | D23: 399 | E23: 736 | F23: 286 | G23: 332 | H23: 418 | I23: 750 | J23: 9 | K23: 14
A24: 恵み野北１丁目 | B24: 187 | C24: 245 | D24: 275 | E24: 520 | F24: 197 | G24: 239 | H24: 276 | I24: 515 | J24: 10 | K24: -5
A25: 恵み野北２丁目 | B25: 180 | C25: 232 | D25: 270 | E25: 502 | F25: 185 | G25: 227 | H25: 268 | I25: 495 | J25: 5 | K25: -7
A26: 恵み野北３丁目 | B26: 117 | C26: 174 | D26: 201 | E26: 375 | F26: 114 | G26: 124 | H26: 216 | I26: 340 | J26: -3 | K26: -35
A27: 恵み野北４丁目 | B27: 134 | C27: 164 | D27: 165 | E27: 329 | F27: 124 | G27: 151 | H27: 163 | I27: 314 | J27: -10 | K27: -15
A28: 恵み野北５丁目 | B28: 176 | C28: 245 | D28: 284 | E28: 529 | F28: 123 | G28: 165 | H28: 174 | I28: 339 | J28: -53 | K28: -190
A29: 恵み野北６丁目 | B29: 247 | C29: 320 | D29: 327 | E29: 647 | F29: 257 | G29: 322 | H29: 328 | I29: 650 | J29: 10 | K29: 3
A30: 恵み野北７丁目 | B30: 254 | C30: 411 | D30: 456 | E30: 867 | F30: 274 | G30: 415 | H30: 471 | I30: 886 | J30: 20 | K30: 19
A31: 島松寿町１丁目 | B31: 287 | C31: 315 | D31: 351 | E31: 666 | F31: 289 | G31: 308 | H31: 335 | I31: 643 | J31: 2 | K31: -23
A32: 島松寿町２丁目 | B32: 426 | C32: 471 | D32: 563 | E32: 1034 | F32: 443 | G32: 478 | H32: 562 | I32: 1040 | J32: 17 | K32: 6
A33: 島松仲町１丁目 | B33: 137 | C33: 157 | D33: 194 | E33: 351 | F33: 119 | G33: 147 | H33: 161 | I33: 308 | J33: -18 | K33: -43
A34: 島松仲町２丁目 | B34: 115 | C34: 119 | D34: 143 | E34: 262 | F34: 109 | G34: 114 | H34: 125 | I34: 239 | J34: -6 | K34: -23
A35: 島松仲町３丁目 | B35: 65 | C35: 81 | D35: 85 | E35: 166 | F35: 71 | G35: 78 | H35: 86 | I35: 164 | J35: 6 | K35: -2
A36: 島松東町１丁目 | B36: 96 | C36: 127 | D36: 129 | E36: 256 | F36: 96 | G36: 130 | H36: 139 | I36: 269 | J36: - | K36: 13
A37: 島松東町２丁目 | B37: 155 | C37: 179 | D37: 216 | E37: 395 | F37: 145 | G37: 164 | H37: 194 | I37: 358 | J37: -10 | K37: -37
A38: 島松東町３丁目 | B38: 220 | C38: 282 | D38: 257 | E38: 539 | F38: 208 | G38: 249 | H38: 218 | I38: 467 | J38: -12 | K38: -72
A39: 島松東町４丁目 | B39: 70 | C39: 87 | D39: 100 | E39: 187 | F39: 78 | G39: 105 | H39: 108 | I39: 213 | J39: 8 | K39: 26
A40: 島松本町１丁目 | B40: 185 | C40: 252 | D40: 269 | E40: 521 | F40: 183 | G40: 233 | H40: 271 | I40: 504 | J40: -2 | K40: -17
A41: 島松本町２丁目 | B41: 248 | C41: 311 | D41: 331 | E41: 642 | F41: 255 | G41: 311 | H41: 332 | I41: 643 | J41: 7 | K41: 1
A42: 島松本町３丁目 | B42: 236 | C42: 271 | D42: 346 | E42: 617 | F42: 286 | G42: 349 | H42: 394 | I42: 743 | J42: 50 | K42: 126
A43: 島松本町４丁目 | B43: 178 | C43: 242 | D43: 241 | E43: 483 | F43: 199 | G43: 265 | H43: 268 | I43: 533 | J43: 21 | K43: 50
A44: 島松旭町１丁目 | B44: 99 | C44: 155 | D44: 159 | E44: 314 | F44: 104 | G44: 151 | H44: 159 | I44: 310 | J44: 5 | K44: -4
A45: 島松旭町２丁目 | B45: 134 | C45: 177 | D45: 192 | E45: 369 | F45: 136 | G45: 173 | H45: 198 | I45: 371 | J45: 2 | K45: 2
A46: 島松旭町３丁目 | B46: 82 | C46: 132 | D46: 133 | E46: 265 | F46: 95 | G46: 152 | H46: 164 | I46: 316 | J46: 13 | K46: 51
A47: 島松旭町４丁目 | B47: 142 | C47: 194 | D47: 204 | E47: 398 | F47: 146 | G47: 185 | H47: 206 | I47: 391 | J47: 4 | K47: -7
A48: 西島松 | B48: 205 | C48: 685 | D48: 450 | E48: 1135 | F48: 192 | G48: 561 | H48: 421 | I48: 982 | J48: -13 | K48: -153
A49: 南島松 | B49: 84 | C49: 135 | D49: 174 | E49: 309 | F49: 79 | G49: 137 | H49: 203 | I49: 340 | J49: -5 | K49: 31
A50: 中島松 | B50: 50 | C50: 90 | D50: 98 | E50: 188 | F50: 54 | G50: 92 | H50: 90 | I50: 182 | J50: 4 | K50: -6
A51: 下島松 | B51: 94 | C51: 227 | D51: 235 | E51: 462 | F51: 95 | G51: 229 | H51: 233 | I51: 462 | J51: 1 | K51: -
A52: 穂栄 | B52: 42 | C52: 50 | D52: 56 | E52: 106 | F52: 42 | G52: 48 | H52: 53 | I52: 101 | J52: - | K52: -5
A53: 北島 | B53: 45 | C53: 72 | D53: 70 | E53: 142 | F53: 32 | G53: 57 | H53: 47 | I53: 104 | J53: -13 | K53: -38
A54: 合計 | B54: 25662 | C54: 33317 | D54: 34297 | E54: 67614 | F54: 27634 | G54: 33945 | H54: 35439 | I54: 69384 | J54: =F54-B54 -> 1972 | K54: =I54-E54 -> 1770
A55: 注）幸町1～4丁目は幸町から分割した新住居表示である。 | I55: （単位：人）

Sheet 国調年齢別
A1: ３）年齢別人口（５歳階級）
H2: （各年10月1日）
A3: 年 齢 （各 歳） | D3: 平成17年 | G3: 平成22年
D4: 総 数 | E4: 男 | F4: 女 | G4: 総 数 | H4: 男 | I4: 女
A5: 総数 | D5: =SUM(D6:D23) -> 67614 | E5: =SUM(E6:E23) -> 33317 | F5: =SUM(F6:F23) -> 34297 | G5: =SUM(G6:G25) -> 69384 | H5: 33945 | I5: 35439
B6: 85 以上 | D6: =E6+F6 -> 1108 | E6: 323 | F6: 785 | G6: 1613 | H6: 491 | I6: 1122
B7: 80～84 | D7: 1298 | E7: 500 | F7: 798 | G7: 2108 | H7: 948 | I7: 1160
B8: 75～79 | D8: 2394 | E8: 1175 | F8: 1219 | G8: 3015 | H8: 1427 | I8: 1588
B9: 70～74 | D9: 3248 | E9: 1589 | F9: 1659 | G9: 3612 | H9: 1654 | I9: 1958
B10: 65～69 | D10: 3799 | E10: 1786 | F10: 2013 | G10: 4079 | H10: 1872 | I10: 2207
B11: 60～64 | D11: 4167 | E11: 1945 | F11: 2222 | G11: 5331 | H11: 2581 | I11: 2750
B12: 55～59 | D12: 5266 | E12: 2530 | F12: 2736 | G12: 4957 | H12: 2391 | I12: 2566
B13: 50～54 | D13: 4946 | E13: 2401 | F13: 2545 | G13: 4164 | H13: 2051 | I13: 2113
B14: 45～49 | D14: 4156 | E14: 2069 | F14: 2087 | G14: 4338 | H14: 2131 | I14: 2207
B15: 40～44 | D15: 4327 | E15: 2135 | F15: 2192 | G15: 4626 | H15: 2314 | I15: 2312
B16: 35～39 | D16: 4488 | E16: 2235 | F16: 2253 | G16: 5066 | H16: 2540 | I16: 2526
B17: 30～34 | D17: 4867 | E17: 2482 | F17: 2385 | G17: 4520 | H17: 2299 | I17: 2221
B18: 25～29 | D18: 4306 | E18: 2237 | F18: 2069 | G18: 3699 | H18: 1866 | I18: 1833
B19: 20～24 | D19: 4586 | E19: 2430 | F19: 2156 | G19: 4185 | H19: 2157 | I19: 2028
B20: 15～19 | D20: 4447 | E20: 2272 | F20: 2175 | G20: 4224 | H20: 2216 | I20: 2008
B21: 10～14 | D21: 3671 | E21: 1903 | F21: 1768 | G21: 3498 | H21: 1780 | I21: 1718
B22: 5～9 | D22: 3443 | E22: 1742 | F22: 1701 | G22: 3264 | H22: 1662 | I22: 1602
B23: 0～4 | D23: 3097 | E23: 1563 | F23: 1534 | G23: 2928 | H23: 1467 | I23: 1461
B25: 不詳 | D25: - | E25: - | F25: - | G25: 157 | H25: 98 | I25: 59
A27: （再 掲）
B28: 15歳未満 | D28: =E28+F28 -> 10211 | E28: =E21+E22+E23 -> 5208 | F28: =F21+F22+F23 -> 5003 | G28: 9690 | H28: 4909 | I28: 4781
B29: 15～64歳 | D29: =E29+F29 -> 45556 | E29: =SUM(E11:E20) -> 22736 | F29: =SUM(F11:F20) -> 22820 | G29: 45110 | H29: 22546 | I29: 22564
B30: 65歳以上 | D30: =E30+F30 -> 11847 | E30: =SUM(E6:E10) -> 5373 | F30: =SUM(F6:F10) -> 6474 | G30: 14427 | H30: 6392 | I30: 8035
B31: 不詳 | D31: - | E31: - | F31: - | G31: 157 | H31: 98 | I31: 59
A32: 年齢別割合(%)
B33: 15歳未満 | D33: 15.1 | E33: 15.6 | F33: 14.6 | G33: =G28/G5*100 -> 13.96575579 | H33: =H28/H5*100 -> 14.46162911 | I33: =I28/I5*100 -> 13.49078699
B34: 15～64歳 | D34: 67.4 | E34: 68.2 | F34: 66.5 | G34: =G29/G5*100 -> 65.01498905 | H34: =H29/H5*100 -> 66.41920754 | I34: =I29/I5*100 -> 63.66996811
B35: 65歳以上 | D35: 17.5 | E35: 16.1 | F35: 18.9 | G35: =G30/G5*100 -> 20.79297821 | H35: =H30/H5*100 -> 18.83046104 | I35: =I30/I5*100 -> 22.67276165
A36: 平均年齢 | C36: (歳) | D36: 41.3 | E36: 40.2 | F36: 42.4 | G36: 43.5 | H36: 42.3 | I36: 44.6
A37: 年齢中位数 | C37: (歳) | D37: 41 | E37: 39.4 | F37: 42.5 | G37: 43.3 | H37: 41.9 | I37: 45
A38: 〈資料〉総務省 国勢調査 （第1次基本集計結果 第3表） | H38: （単位：人）

Sheet 人口集中地区、昼間・夜間人口、産業別就業人口
A1: ４）人口集中地区（ＤＩＤ）人口および面積
F3: （各年10月1日）
A4: 年 次 | B4: 地区 | C4: 人 口 集 中 地 区 | F4: 面 積 | G4: 人口密度 （１㎢あたり）
C5: 総 数 | D5: 男 | E5: 女
A6: 平成７年 | C6: 52895 | D6: … | E6: … | F6: 11.8 | G6: 4478.8
B7: Ⅰ | C7: 45485 | F7: 10.4 | G7: 4390.4
B8: Ⅱ | C8: 7410 | F8: 1.4 | G8: 5145.8
A9: 平成12年 | C9: 56262 | F9: 12.23 | G9: 4600.3
B10: Ⅰ | C10: 48955 | D10: … | E10: … | F10: 10.8 | G10: 4532.9
B11: Ⅱ | C11: 7307 | F11: 1.43 | G11: 5109.8
A12: 平成17年 | C12: =C13+C14 -> 58772 | F12: =F13+F14 -> 12.78 | G12: 4598.7
B13: Ⅰ | C13: 51337 | D13: … | E13: … | F13: 11.3 | G13: 4543.1
B14: Ⅱ | C14: 7435 | F14: 1.48 | G14: 5023.6
A15: 平成22年 | C15: 62946 | D15: 30742 | E15: 32204 | F15: 13.89 | G15: 4531.7
B16: Ⅰ | C16: 55487 | D16: … | E16: … | F16: 12.38 | G16: 4482
B17: Ⅱ | C17: 7459 | F17: 1.51 | G17: 4939.7
A18: 〈資料〉総務省 国勢調査 | G18: （単位：㎢）
A19: 注）Ⅰは恵庭･恵み野地区、Ⅱは島松地区をさす。
A20: 〈人口集中地区〉
A21: 国勢調査区を基礎単位地域として用い、人口密度１平方キロメートル当り4,000人以上の調
A22: 査区が市の境域内で互いに隣接して、人口5,000人以上を有する場合、この地域を人口集中
A23: 地区とした。
A26: ５）恵庭市の昼間人口、夜間人口（詳細は30～31頁）
F27: （各年10月1日）
B28: 年次 | C28: 平成２年 | D28: 平成７年 | E28: 平成12年 | F28: 平成17年 | G28: 平成22年
A29: 区分
A30: 昼間人口 | C30: 50513 | D30: 56822 | E30: 60882 | F30: 63123 | G30: 65782
A31: 夜間人口 | C31: 55547 | D31: 62345 | E31: 65238 | F31: 67614 | G31: 69384
A32: 昼間人口率 | C32: 90.8 | D32: 90.9 | E32: 93.3 | F32: 93.4 | G32: 94.8
A33: 〈資料〉総務省 国勢調査 | F33: （単位：人）
A36: ６）産業別就業人口（詳細は32～33頁）
G37: （各年10月1日）
B38: 年次 | C38: 平成2年 | E38: 平成7年 | G38: 平成12年
A39: 産業別 | D39: 構成比 | F39: 構成比 | H39: 構成比
A40: 第１次産業 | C40: 1652 | D40: =C40/26809*100 -> 6.162109739 | E40: 1523 | F40: =E40/31101*100 -> 4.896948651 | G40: 1387 | H40: =G40/30926*100 -> 4.484899437
A41: 第２次産業 | C41: 6845 | D41: =C41/26809*100 -> 25.53247044 | E41: 8411 | F41: =E41/31101*100 -> 27.04414649 | G41: 7934 | H41: =G41/30926*100 -> 25.65478885
A42: 第３次産業 | C42: 18312 | D42: =C42/26809*100 -> 68.30541982 | E42: 21167 | F42: =E42/31101*100 -> 68.05890486 | G42: 21605 | H42: =G42/30926*100 -> 69.86031171
A43: 合 計 | C43: 26809 | D43: =C43/26809*100 -> 100 | E43: 31101 | F43: =E43/31101*100 -> 100 | G43: =SUM(G40:G42) -> 30926 | H43: =G43/30926*100 -> 100
B45: 年次 | C45: 平成17年 | E45: 平成22年
A46: 産業別 | D46: 構成比 | F46: 構成比
A47: 第１次産業 | C47: 1464 | D47: =C47/31398*100 -> 4.662717371 | E47: 1151 | F47: =E47/E50*100 -> 3.747354713
A48: 第２次産業 | C48: 7282 | D48: =C48/31398*100 -> 23.19256004 | E48: 6688 | F48: =E48/E50*100 -> 21.77437734
A49: 第３次産業 | C49: 22652 | D49: =C49/31398*100 -> 72.14472259 | E49: 22876 | F49: =E49/E50*100 -> 74.47826795
A50: 合 計 | C50: =SUM(C47:C49) -> 31398 | D50: =C50/31398*100 -> 100 | E50: =SUM(E47:E49) -> 30715 | F50: =E50/E50*100 -> 100
A51: 〈資料〉総務省 国勢調査 | E51: （単位：人）

Sheet 夜間及び昼間人口、通学者数
A1: ７）夜間人口および昼間人口（詳細）
O2: （各年10月1日）
A3: 年 次 | B3: 夜間人口 | C3: 流 出 人 口 | H3: 流 入 人 口 | M3: 昼間人口 | N3: 昼間人口率 | O3: 年 次
B4: （Ａ) | C4: 総 数 | D4: 通 勤 | E4: 通 学 | F4: 不 詳 | G4: 流出率 | H4: 総 数 | I4: 通 勤 | J4: 通 学 | K4: 不 詳 | L4: 流入率 | M4: （Ａ－Ｂ）＋（Ｃ）＝（Ｅ） | N4: （Ｅ）／（Ａ）
C5: （Ｂ） | G5: （Ｂ）／（Ａ） | H5: （Ｃ） | L5: （Ｃ）／（Ａ）
A6: 平成２年 | B6: 55547 | C6: 10020 | D6: 7972 | E6: 2048 | F6: － | G6: 18 | H6: 4986 | I6: 3912 | J6: 1071 | K6: 3 | L6: 9 | M6: 50513 | N6: 90.8 | O6: 平成２年
A7: 平成７年 | B7: 62345 | C7: 12239 | D7: 10009 | E7: 2230 | F7: － | G7: 19.6 | H7: 6716 | I7: 5309 | J7: 1407 | K7: － | L7: 10.8 | M7: 56822 | N7: 90.9 | O7: 平成７年
A8: 平成12年 | B8: 65238 | C8: 12703 | D8: 10389 | E8: 2314 | F8: － | G8: 19.5 | H8: 8347 | I8: 6557 | J8: 1790 | K8: － | L8: 12.8 | M8: 60882 | N8: 93.3 | O8: 平成12年
A9: 平成17年 | B9: 67614 | C9: 13701 | D9: 11568 | E9: 2133 | F9: － | G9: 20.3 | H9: 9210 | I9: 7157 | J9: 2053 | K9: － | L9: 13.6 | M9: 63123 | N9: 93.4 | O9: 平成17年
A10: 平成22年 | B10: 69384 | C10: 13477 | D10: 11306 | E10: … | F10: … | G10: =C10/B10*100 -> 19.42378646 | H10: 9875 | I10: 7639 | J10: =H10-I10 -> 2236 | K10: － | L10: =H10/B10*100 -> 14.23238787 | M10: =(B10-C10)+H10 -> 65782 | N10: 94.8 | O10: 平成22年
A11: 〈資料〉総務省 国勢調査 | N11: （単位：人、％）
A12: 注）平成22年国勢調査については「不詳」を含めていない。
A14: ８）恵庭市に常住する就業・通学市町村別１５歳以上就業者および通学者数
O15: （各年10月1日）
A16: 年 次 | B16: 総 数 | C16: 市内で就業・通学する者 | F16: 他の市町村で就業・通学する者 | N16: 不 詳 | O16: 年 次
C17: 小 計 | D17: 自 宅 | E17: 自 宅 外 | F17: 小 計 | G17: 札 幌 市 | H17: 千 歳 市 | I17: 江 別 市 | J17: 苫小牧市 | K17: 北広島市 | L17: その他市町村 | M17: 道 外
A18: 平成２年 | B18: 30686 | C18: 20688 | D18: 3065 | E18: 17623 | F18: 9998 | G18: 4238 | H18: 3340 | I18: 230 | J18: 297 | K18: 1516 | L18: 362 | M18: 15 | N18: － | O18: 平成２年
B19: -26809 | C19: -18837 | D19: -3065 | E19: -15772 | F19: -7972 | G19: -3244 | H19: -3056 | I19: -106 | J19: -231 | K19: -1031 | L19: -290 | M19: -14
A20: 平成７年 | B20: 35704 | C20: 23501 | D20: 2342 | E20: 21159 | F20: 12203 | G20: 4977 | H20: 4367 | I20: 251 | J20: 383 | K20: 1629 | L20: 591 | M20: 5 | N20: － | O20: 平成７年
B21: -31101 | C21: -21092 | D21: -2342 | E21: -18750 | F21: -10009 | G21: -3857 | H21: -4027 | I21: -136 | J21: -336 | K21: -1142 | L21: -506 | M21: -5
A22: 平成12年 | B22: 35736 | C22: 23051 | D22: 2422 | E22: 20629 | F22: 12685 | G22: 4940 | H22: 4762 | I22: 287 | J22: 422 | K22: 1581 | L22: 658 | M22: 35 | N22: － | O22: 平成12年
B23: -30926 | C23: -20516 | D23: -2422 | E23: -18094 | F23: -10410 | G23: -3835 | H23: -4349 | I23: -152 | J23: -343 | K23: -1139 | L23: -559 | M23: -33
A24: 平成17年 | B24: 36133 | C24: 22472 | D24: 2222 | E24: 20250 | F24: 13661 | G24: 4802 | H24: 5609 | I24: 383 | J24: 470 | K24: 1544 | L24: 762 | M24: 91 | N24: － | O24: 平成17年
B25: -31398 | C25: -19830 | D25: -2222 | E25: -17608 | F25: -11568 | G25: -3832 | H25: -5164 | I25: -207 | J25: -413 | K25: -1262 | L25: -604 | M25: -86
A26: 平成22年 | B26: 35636 | C26: 21029 | D26: 1814 | E26: 19215 | F26: 13370 | G26: 4776 | H26: 5552 | I26: 325 | J26: 555 | K26: 1408 | L26: 708 | M26: 64 | N26: － | O26: 平成22年
B27: -30715 | C27: -18458 | D27: -1814 | E27: -16644 | F27: -11248 | G27: -555 | H27: -5085 | I27: -194 | J27: -488 | K27: -1136 | L27: -580 | M27: -58
A28: 〈資料〉総務省 国勢調査 | N28: （単位：人）
A29: 注）（ ）内は就業者数。総数と就業者数の差は通学者数。
A31: ９）恵庭市に就業・通学する常住市町村別１５歳以上就業者および通学者数
M32: （各年10月1日）
A33: 年 次 | B33: 総 数 | C33: 市内に常住する者 | D33: 他 の 市 町 村 に 常 住 す る 者 | L33: 不 詳 | M33: 年 次
D34: 小 計 | E34: 札 幌 市 | F34: 千 歳 市 | G34: 江 別 市 | H34: 苫小牧市 | I34: 北広島市 | J34: その他市町村 | K34: 道 外
A35: 平成２年 | B35: 25667 | C35: 20688 | D35: 4979 | E35: 1761 | F35: 1688 | G35: 156 | H35: 96 | I35: 991 | J35: 285 | K35: 2 | L35: － | M35: 平成２年
B36: -22749 | C36: -18837 | D36: -3912 | E36: -1456 | F36: -1374 | G36: -138 | H36: -72 | I36: -627 | J36: -243 | K36: -2
A37: 平成７年 | B37: 30207 | C37: 23501 | D37: 6706 | E37: 2555 | F37: 2094 | G37: 249 | H37: 160 | I37: 1170 | J37: 465 | K37: 13 | L37: － | M37: 平成７年
B38: -26401 | C38: -21092 | D38: -5309 | E38: -2006 | F38: -1753 | G38: -209 | H38: -118 | I38: -838 | J38: -372 | K38: -13
A39: 平成12年 | B39: 31417 | C39: 23051 | D39: 8366 | E39: 3201 | F39: 2544 | G39: 359 | H39: 203 | I39: 1466 | J39: 570 | K39: 23 | L39: － | M39: 平成12年
B40: -27096 | C40: -20516 | D40: -6580 | E40: -2529 | F40: -1967 | G40: -308 | H40: -133 | I40: -1177 | J40: -443 | K40: -23
A41: 平成17年 | B41: 31673 | C41: 22472 | D41: 9201 | E41: 3520 | F41: 2520 | G41: 495 | H41: 272 | I41: 1647 | J41: 719 | K41: 28 | L41: － | M41: 平成17年
B42: -26987 | C42: -19830 | D42: -7157 | E42: -2794 | F42: -1959 | G42: -400 | H42: -157 | I42: -1328 | J42: -495 | K42: -24
A43: 平成22年 | B43: 32066 | C43: 21029 | D43: 9864 | E43: 3930 | F43: 2799 | G43: 510 | H43: 288 | I43: 1516 | J43: 750 | K43: 12 | L43: － | M43: 平成22年
B44: -27048 | C44: -18458 | D44: -7639 | E44: -3046 | F44: -2211 | G44: -396 | H44: 173 | I44: -1275 | J44: -498 | K44: -11
A45: 〈資料〉総務省 国勢調査 | L45: （単位：人）

Sheet 産業別就業人口
A1: １０）産業別就業人口（男女別１５歳以上就業者）
V2: （各年10月1日）
A3: 産 業 分 類 | D3: 平成2年 | G3: 平成7年 | J3: 平成12年 | M3: 平成17年 | P3: 平成22年 | S3: 産業別割合（％）
D4: 総 数 | E4: 男 | F4: 女 | G4: 総 数 | H4: 男 | I4: 女 | J4: 総 数 | K4: 男 | L4: 女 | M4: 総 数 | N4: 男 | O4: 女 | P4: 総 数 | Q4: 男 | R4: 女 | S4: 平成2年 | T4: 平成7年 | U4: 平成12年 | V4: 平成17年 | W4: 平成22年
A5: 総数 | D5: 26809 | E5: 17476 | F5: 9333 | G5: 31101 | H5: 19824 | I5: 11277 | J5: 30926 | K5: 19368 | L5: 11558 | M5: =M7+M13+M19+M42 -> 31398 | N5: =N7+N13+N19+N42 -> 19094 | O5: =O7+O13+O19+O42 -> 12304 | P5: 30715 | Q5: 18226 | R5: 12489 | S5: 100 | T5: 100 | U5: 100 | V5: =V7+V13+V19+V42 -> 100 | W5: =W7+W13+W19+W42 -> 100
B7: 第１次産業 | D7: 1652 | E7: 886 | F7: 766 | G7: 1523 | H7: 778 | I7: 745 | J7: 1387 | K7: 712 | L7: 675 | M7: =M9+M10+M11 -> 1464 | N7: 778 | O7: 686 | P7: 1151 | Q7: 613 | R7: 538 | S7: 6.2 | T7: 4.9 | U7: 4.5 | V7: =M7/M5*100 -> 4.662717371 | W7: =P7/P5*100 -> 3.747354713
C8: 農業・林業 | D8: =SUM(D9:D10) -> 1614 | E8: =SUM(E9:E10) -> 859 | F8: 755 | G8: 1484 | H8: 753 | I8: 731 | J8: 1341 | K8: 683 | L8: 658 | M8: 1447 | N8: 768 | O8: 679 | P8: 1144 | Q8: 609 | R8: 535 | S8: 6 | T8: 4.8 | U8: 4.3 | V8: 4.6 | W8: 3.7
C9: 農業 | D9: 1491 | E9: 759 | F9: 732 | G9: 1401 | H9: 687 | I9: 714 | J9: 1295 | K9: 646 | L9: 649 | M9: =N9+O9 -> 1413 | N9: 737 | O9: 676 | P9: 1111 | Q9: 578 | R9: 533 | S9: 5.6 | T9: 4.5 | U9: 4.2 | V9: 4.5 | W9: (3.6)
C10: 林業 | D10: 123 | E10: 100 | F10: 23 | G10: 83 | H10: 66 | I10: 17 | J10: 46 | K10: 37 | L10: 9 | M10: =N10+O10 -> 34 | N10: 31 | O10: 3 | P10: 33 | Q10: 31 | R10: 2 | S10: 0.5 | T10: 0.3 | U10: 0.1 | V10: 0.1 | W10: (0.1)
C11: 漁業 | D11: 38 | E11: 27 | F11: 11 | G11: 39 | H11: 25 | I11: 14 | J11: 46 | K11: 29 | L11: 17 | M11: =N11+O11 -> 17 | N11: 10 | O11: 7 | P11: 7 | Q11: 4 | R11: 3 | S11: 0.1 | T11: 0.1 | U11: 0.1 | V11: 0.1 | W11: =P11/31398*100 -> 0.02229441366
B13: 第２次産業 | D13: 6845 | E13: 4848 | F13: 1997 | G13: 8411 | H13: 5860 | I13: 2551 | J13: 7934 | K13: 5580 | L13: 2354 | M13: =M15+M16+M17 -> 7282 | N13: =N15+N16+N17 -> 5135 | O13: =O16+O17 -> 2147 | P13: =P14+P16+P17 -> 6688 | Q13: =Q14+Q16+Q17 -> 4756 | R13: =R14+R16+R17 -> 1932 | S13: 25.5 | T13: 27 | U13: 25.7 | V13: =M13/M5*100 -> 23.19256004 | W13: =P13/P5*100 -> 21.77437734
C14: 鉱業・採石業・砂利採取業 | P14: 6 | Q14: 5 | R14: 1 | S14: … | T14: … | U14: … | V14: … | W14: =P14/P13*W13 -> 0.01953442943
C15: 鉱業 | D15: 14 | E15: 14 | F15: － | G15: 31 | H15: 29 | I15: 2 | J15: 23 | K15: 21 | L15: 2 | M15: 12 | N15: 12 | O15: － | P15: … | Q15: … | R15: … | S15: 0.1 | T15: 0.1 | U15: 0.1 | V15: 0 | W15: …
C16: 建設業 | D16: 2759 | E16: 2310 | F16: 449 | G16: 3118 | H16: 2599 | I16: 519 | J16: 2806 | K16: 2408 | L16: 398 | M16: =N16+O16 -> 2502 | N16: 2150 | O16: 352 | P16: 2051 | Q16: 1789 | R16: 262 | S16: 10.3 | T16: 10 | U16: 9.1 | V16: 8 | W16: =P16/P13*W13 -> 6.677519127
C17: 製造業 | D17: 4072 | E17: 2524 | F17: 1548 | G17: 5262 | H17: 3232 | I17: 2030 | J17: 5105 | K17: 3151 | L17: 1954 | M17: =N17+O17 -> 4768 | N17: 2973 | O17: 1795 | P17: 4631 | Q17: 2962 | R17: 1669 | S17: 15.2 | T17: 16.9 | U17: 16.5 | V17: 15.2 | W17: =P17/P13*W13 -> 15.07732378
B19: 第３次産業 | D19: 18274 | E19: 11725 | F19: 6549 | G19: 21123 | H19: 13158 | I19: 7965 | J19: 21369 | K19: 12954 | L19: 8415 | M19: =M20+M21+M24+M25+M27+M28+M31+M36+M35+M37+M39+M40 -> 22091 | N19: =N20+N21+N24+N25+N27+N28+N31+N36+N35+N37+N39+N40 -> 12834 | O19: =O20+O21+O24+O25+O27+O28+O31+O36+O35+O37+O39+O40 -> 9257 | P19: =P20+P21+P22+P25+P28+P29+P32+P33+P34+P35+P36+P37+P40+P39 -> 21548 | Q19: 12085 | R19: 9463 | S19: 68.3 | T19: 67.9 | U19: 69.1 | V19: =M19/M5*100 -> 70.35798459 | W19: =P19/P5*100 -> 70.15464757
C20: 電気･ガス・熱供給・水道業 | D20: 106 | E20: 95 | F20: 11 | G20: 137 | H20: 122 | I20: 15 | J20: 140 | K20: 126 | L20: 14 | M20: =N20+O20 -> 134 | N20: 119 | O20: 15 | P20: 155 | Q20: 135 | R20: 20 | S20: 0.4 | T20: 0.4 | U20: 0.5 | V20: 0.4 | W20: =P20/P19*W19 -> 0.504639427
C21: 情報通信業 | D21: … | E21: … | F21: … | G21: … | H21: … | I21: … | J21: … | K21: … | L21: … | M21: =N21+O21 -> 384 | N21: 310 | O21: 74 | P21: 341 | Q21: 239 | R21: 102 | S21: … | T21: … | U21: … | V21: 1.2 | W21: =P21/P19*W19 -> 1.110206739
C22: 運輸業･郵便業 | D22: … | E22: … | F22: … | G22: … | H22: … | I22: … | J22: … | K22: … | L22: … | M22: … | N22: … | O22: … | P22: 1913 | Q22: 1579 | R22: 334 | S22: … | T22: … | U22: … | V22: … | W22: =P22/P19*W19 -> 6.228227251
C23: 運輸･通信業 | D23: 1599 | E23: 1397 | F23: 202 | G23: 1875 | H23: 1563 | I23: 312 | J23: 1963 | K23: 1559 | L23: 404 | M23: … | N23: … | O23: … | P23: … | Q23: … | R23: … | S23: 6 | T23: 6 | U23: 6.3 | V23: … | W23: …
C24: 運輸業 | D24: … | E24: … | F24: … | G24: … | H24: … | I24: … | J24: … | K24: … | L24: … | M24: =N24+O24 -> 1773 | N24: 1467 | O24: 306 | P24: … | Q24: … | R24: … | S24: … | T24: … | U24: … | V24: 5.6 | W24: …
C25: 卸売･小売業 | D25: … | E25: … | F25: … | G25: … | H25: … | I25: … | J25: … | K25: … | L25: … | M25: =N25+O25 -> 4591 | N25: 2078 | O25: 2513 | P25: 4328 | Q25: 1928 | R25: 2400 | S25: … | T25: … | U25: … | V25: 14.6 | W25: =P25/P19*W19 -> 14.0908351
C26: 卸売･小売･飲食業 | D26: 4724 | E26: 2221 | F26: 2503 | G26: 5335 | H26: 2461 | I26: 2874 | J26: 5434 | K26: 2370 | L26: 3064 | M26: … | N26: … | O26: … | P26: … | Q26: … | R26: … | S26: 17.6 | T26: 17.2 | U26: 17.6 | V26: … | W26: …
C27: 飲食店・宿泊業 | D27: … | E27: … | F27: … | G27: … | H27: … | I27: … | J27: … | K27: … | L27: … | M27: =N27+O27 -> 1374 | N27: 459 | O27: 915 | P27: … | Q27: … | R27: … | S27: … | T27: … | U27: … | V27: 4.4 | W27: …
C28: 金融･保険業 | D28: … | E28: … | F28: … | G28: … | H28: … | I28: … | J28: … | K28: … | L28: … | M28: =N28+O28 -> 506 | N28: 217 | O28: 289 | P28: 422 | Q28: 182 | R28: 240 | S28: … | T28: … | U28: … | V28: 1.6 | W28: =P28/P19*W19 -> 1.373921537
C29: 不動産業・物品賃貸業 | D29: … | E29: … | F29: … | G29: … | H29: … | I29: … | J29: … | K29: … | L29: … | M29: … | N29: … | O29: … | P29: 453 | Q29: 310 | R29: 143 | S29: … | T29: … | U29: … | V29: … | W29: =P29/P19*W19 -> 1.474849422
C30: 金融･保険業･不動産業 | D30: 841 | E30: 362 | F30: 479 | G30: 936 | H30: 416 | I30: 520 | J30: 794 | K30: 386 | L30: 408 | M30: … | N30: … | O30: … | P30: … | Q30: … | R30: … | S30: 3.1 | T30: 3 | U30: 2.6 | V30: … | W30: …
C31: 不動産業 | D31: … | E31: … | F31: … | G31: … | H31: … | I31: … | J31: … | K31: … | L31: … | M31: =N31+O31 -> 267 | N31: 193 | O31: 74 | P31: … | Q31: … | R31: … | S31: … | T31: … | U31: … | V31: 0.9 | W31: …
C32: 学術研究・専門・技術サービス業 | D32: … | E32: … | F32: … | G32: … | H32: … | I32: … | J32: … | K32: … | L32: … | M32: … | N32: … | O32: … | P32: 549 | Q32: 373 | R32: 176 | S32: … | T32: … | U32: … | V32: … | W32: =P32/P19*W19 -> 1.787400293
C33: 宿泊業・飲食サービス業 | D33: … | E33: … | F33: … | G33: … | H33: … | I33: … | J33: … | K33: … | L33: … | M33: … | N33: … | O33: … | P33: 1737 | Q33: 556 | R33: 1181 | S33: … | T33: … | U33: … | V33: … | W33: =P33/P19*W19 -> 5.655217321
C34: 生活関連サービス業，娯楽業 | D34: … | E34: … | F34: … | G34: … | H34: … | I34: … | J34: … | K34: … | L34: … | M34: … | N34: … | O34: … | P34: 1589 | Q34: 618 | R34: 971 | S34: … | T34: … | U34: … | V34: … | W34: =P34/P19*W19 -> 5.173368061
C35: 教育・学習支援業 | D35: … | E35: … | F35: … | G35: … | H35: … | I35: … | J35: … | K35: … | L35: … | M35: =N35+O35 -> 1349 | N35: 691 | O35: 658 | P35: 1246 | Q35: 594 | R35: 652 | S35: … | T35: … | U35: … | V35: 4.3 | W35: =P35/P19*W19 -> 4.056649845
C36: 医療・福祉 | D36: … | E36: … | F36: … | G36: … | H36: … | I36: … | J36: … | K36: … | L36: … | M36: =N36+O36 -> 2411 | N36: 595 | O36: 1816 | P36: 2812 | Q36: 677 | R36: 2135 | S36: … | T36: … | U36: … | V36: 7.7 | W36: =P36/P19*W19 -> 9.155135927
C37: 複合サービス業 | D37: … | E37: … | F37: … | G37: … | H37: … | I37: … | J37: … | K37: … | L37: … | M37: =N37+O37 -> 359 | N37: 229 | O37: 130 | P37: 202 | Q37: 116 | R37: 86 | S37: … | T37: … | U37: … | V37: 1.1 | W37: =P37/P19*W19 -> 0.6576591242
C38: サービス業 | D38: 5629 | E38: 2666 | F38: 2963 | G38: 7295 | H38: 3518 | I38: 3777 | J38: 7835 | K38: 3745 | L38: 4090 | M38: … | N38: … | O38: … | P38: … | Q38: … | R38: … | S38: 21 | T38: 23.5 | U38: 25.3 | V38: … | W38: …
C39: サービス業(他に分類されないもの） | D39: … | E39: … | F39: … | G39: … | H39: … | I39: … | J39: … | K39: … | L39: … | M39: =N39+O39 -> 4417 | N39: 2348 | O39: 2069 | P39: 1709 | Q39: 1090 | R39: 619 | S39: … | T39: … | U39: … | V39: 14.1 | W39: =P39/P19*W19 -> 5.56405665
C40: 公務(他に分類されないもの） | D40: 5375 | E40: 4984 | F40: 391 | G40: 5545 | H40: 5078 | I40: 467 | J40: 5203 | K40: 4768 | L40: 435 | M40: =N40+O40 -> 4526 | N40: 4128 | O40: 398 | P40: 4092 | Q40: 3688 | R40: 404 | S40: 20.1 | T40: 17.8 | U40: 16.8 | V40: 14.4 | W40: =P40/P19*W19 -> 13.32248087
A42: 分類不能の産業 | D42: 38 | E42: 17 | F42: 21 | G42: 44 | H42: 28 | I42: 16 | J42: 236 | K42: 122 | L42: 114 | M42: =N42+O42 -> 561 | N42: 347 | O42: 214 | P42: 1328 | Q42: 772 | R42: 556 | S42: 0.1 | T42: 0.2 | U42: 0.7 | V42: =M42/M5*100 -> 1.786738009 | W42: =P42/P5*100 -> 4.323620381
A43: 〈資料〉総務省 国勢調査 | V43: （単位：人）
A44: 注) 総数の中に｢不詳｣を含んでいるので合計と総数は一致しない｡

Sheet グラフ（入力シート）
A2: 年度 | C2: 道外 | D2: 道内
A3: H23 | B3: 転入 | C3: ='社会動態（道外）'!$B$8+'社会動態（道外）'!$B$9 -> 607 | D3: ='社会動態（道外）'!$B$7 -> 2404 | E3: =C3+D3 -> 3011
B4: 転出 | C4: ='社会動態（道外）'!$C$8+'社会動態（道外）'!$C$9 -> 699 | D4: ='社会動態（道外）'!$C$7 -> 2276 | E4: =C4+D4 -> 2975
A5: H24 | B5: 転入 | C5: ='社会動態（道外）'!$D$8+'社会動態（道外）'!$D$9 -> 685 | D5: ='社会動態（道外）'!$D$7 -> 2235 | E5: 2920
B6: 転出 | C6: ='社会動態（道外）'!$E$8+'社会動態（道外）'!$E$9 -> 720 | D6: ='社会動態（道外）'!$E$7 -> 2083 | E6: =C6+D6 -> 2803
A7: H25 | B7: 転入 | C7: ='社会動態（道外）'!$F$8+'社会動態（道外）'!$F$9 -> 630 | D7: ='社会動態（道外）'!$F$7 -> 2242 | E7: 2872
B8: 転出 | C8: ='社会動態（道外）'!$G$8+'社会動態（道外）'!$G$9 -> 787 | D8: ='社会動態（道外）'!$G$7 -> 2308 | E8: 3095
A9: H26 | B9: 転入 | C9: ='社会動態（道外）'!$H$8+'社会動態（道外）'!$H$9 -> 585 | D9: ='社会動態（道外）'!$H$7 -> 2536 | E9: 3121
B10: 転出 | C10: ='社会動態（道外）'!$I$8+'社会動態（道外）'!$I$9 -> 760 | D10: ='社会動態（道外）'!$I$7 -> 2186 | E10: 2946
A11: H27 | B11: 転入 | C11: ='社会動態（道外）'!$J$8+'社会動態（道外）'!$J$9 -> 673 | D11: ='社会動態（道外）'!$J$7 -> 2516 | E11: 3189
B12: 転出 | C12: ='社会動態（道外）'!$K$8+'社会動態（道外）'!$K$9 -> 803 | D12: ='社会動態（道外）'!$K$7 -> 2138 | E12: 2941

Sheet グラフ（入力シート）②
L2: 平成22年国勢調査データより
L3: 産業別人口（男女別15歳以上就業者）
M4: 第１次産業 | N4: 第２次産業 | O4: 第３次産業 | P4: 分類不能の産業
L5: 割合 | M5: 3.7 | N5: 21.8 | O5: 70.2 | P5: 4.3 | Q5: =SUM(M5:P5) -> 100
L6: 人数 | M6: 1151 | N6: 6688 | O6: 22876 | P6: 1328
M23: H22年 | N23: H17年 | O23: H12年 | P23: H7年 | Q23: H2年
L24: 第1次産業 | M24: 3.7 | N24: 4.662717371 | O24: 4.5 | P24: 4.9 | Q24: 6.2
L25: 第2次産業 | M25: 21.8 | N25: 23.19256004 | O25: 25.7 | P25: 27 | Q25: 25.5
L26: 第3次産業 | M26: 70.2 | N26: 70.35798459 | O26: 69.1 | P26: 67.9 | Q26: 68.3
L27: 不詳 | M27: 4.3 | N27: 1.8 | O27: 0.7 | P27: 0.2 | Q27: 0.1

Sheet グラフ（入力シート）⑤
A1: ３）年齢別人口（５歳階級）
C3: 12年 | D3: 17年 | E3: 22年
B4: 85 以上 | C4: 222 | D4: 323 | E4: 491
B5: 80～84 | C5: 386 | D5: 500 | E5: 948
B6: 75～79 | C6: 651 | D6: 1175 | E6: 1427
B7: 70～74 | C7: 1375 | D7: 1589 | E7: 1654
B8: 65～69 | C8: 1707 | D8: 1786 | E8: 1872
B9: 60～64 | C9: 1839 | D9: 1945 | E9: 2581
B10: 55～59 | C10: 1925 | D10: 2530 | E10: 2391
B11: 50～54 | C11: 2510 | D11: 2401 | E11: 2051
B12: 45～49 | C12: 2448 | D12: 2069 | E12: 2131
B13: 40～44 | C13: 2089 | D13: 2135 | E13: 2314
B14: 35～39 | C14: 2132 | D14: 2235 | E14: 2540
B15: 30～34 | C15: 2197 | D15: 2482 | E15: 2299
B16: 25～29 | C16: 2483 | D16: 2237 | E16: 1866
B17: 20～24 | C17: 2685 | D17: 2430 | E17: 2157
B18: 15～19 | C18: 2433 | D18: 2272 | E18: 2216
B19: 10～14 | C19: 1917 | D19: 1903 | E19: 1780
B20: 5～9 | C20: 1854 | D20: 1742 | E20: 1662
B21: 0～4 | C21: 1649 | D21: 1563 | E21: 1467
A22: 〈資料〉国勢調査 （第１次基本集計結果 第3表） | E22: （単位：人）

Sheet グラフ（入力シート）⑥
A1: ３）年齢別人口（５歳階級）
C3: 12年 | D3: 17年 | E3: 22年
B4: 85 以上 | C4: 502 | D4: 785 | E4: 1122
B5: 80～84 | C5: 607 | D5: 798 | E5: 1160
B6: 75～79 | C6: 884 | D6: 1219 | E6: 1588
B7: 70～74 | C7: 1290 | D7: 1659 | E7: 1958
B8: 65～69 | C8: 1689 | D8: 2013 | E8: 2207
B9: 60～64 | C9: 2027 | D9: 2222 | E9: 2750
B10: 55～59 | C10: 2178 | D10: 2736 | E10: 2566
B11: 50～54 | C11: 2707 | D11: 2545 | E11: 2113
B12: 45～49 | C12: 2526 | D12: 2087 | E12: 2207
B13: 40～44 | C13: 2065 | D13: 2192 | E13: 2312
B14: 35～39 | C14: 2131 | D14: 2253 | E14: 2526
B15: 30～34 | C15: 2119 | D15: 2385 | E15: 2221
B16: 25～29 | C16: 2274 | D16: 2069 | E16: 1833
B17: 20～24 | C17: 2226 | D17: 2156 | E17: 2028
B18: 15～19 | C18: 2311 | D18: 2175 | E18: 2008
B19: 10～14 | C19: 1881 | D19: 1768 | E19: 1718
B20: 5～9 | C20: 1728 | D20: 1701 | E20: 1602
B21: 0～4 | C21: 1591 | D21: 1534 | E21: 1461
A22: 〈資料〉国勢調査 （第１次基本集計結果 第3表）

Sheet グラフ（入力シート）⑦
A1: 市民の平均年齢の推移
B3: 総数 | C3: 男 | D3: 女
A4: Ｈ7 | B4: 36.8 | C4: 35.9 | D4: 37.7
A5: H12 | B5: 38.8 | C5: 37.3 | D5: 40.3
A6: H17 | B6: 41 | C6: 39.4 | D6: 42.5
A7: H22 | B7: 43.3 | C7: 41.9 | D7: 45
